Workbook

Sheet Menu
B6: User guide | D6: Loan amortization
D8: Drying table
D10: Storage table
B11: Investment
B13: Rice Production | D13: Summary
B15: Operation parameters
D19: Sensitivity Analysis

Sheet User guide
A2: Back to menu
A4: Go to
A5: User Guide
A7: Investment
A9: Rice information
A11: Operation parameters
A13: Loan amortization
A15: Drying table
A17: Storage table
A19: Summary
A21: Sensitivity analysis

Sheet Help (hidden)
A1: H1 | B1: Choose the varietys of paddy you want to dry and the proportion (in %) of each variety for your drying process
A2: H2 | B2: Enter for each variety the maximum possible duration (expressed in number of days) of harvesting
A3: H3 | B3: Enter for each variety of rice the maximum life-tim of wet paddy after harvesting
A4: H4 | B4: Enter for each variety of rice the price (in Riel per kilogramm) of wet paddy after the harvesting
A5: H5 | B5: Enter the margin in percentage (for each paddy) between wet paddy and dried paddy prices after harvesting
A6: H6 | B6: Enter for each variety of rice the price (in Riel per kilogramm) of dried paddy month by month after harvest
A7: H7 | B7: Capacity in tons of each dryer according company specifications
A8: H8 | B8: Price in USD for each dryer
A9: H9 | B9: Dry rate per hour (expressed in %) for each dryer according company specifications
A10: H10 | B10: Electric consumption expresses in kwh per hour according company specifications
A11: H11 | B11: Time needed (in minutes) for loading paddy according company specifications
A12: H12 | B12: Time needed (in minutes) for discharging paddy according company specifications
A13: H13 | B13: Fuel consumption for burner according company specifications
A14: H14 | B14: Choose the dryer according capacity in tons in the list
A15: H15 | B15: Enter the life-time of the dryer
A16: H16 | B16: Enter the cost of electric transformer to connect a medium-voltage line
A17: H17 | B17: Enter the number of kilometers of electric line to connect to a medium-voltage line
A18: H18 | B18: Cost of electric connection by kilometer
A19: H19 | B19: Life-time for electric facilities
A20: H20 | B20: Enter the percentage of loan for total investment
A21: H21 | B21: Enter the invest loan yearly interest rate
A22: H22 | B22: Enter the maturity (in years) of the invest loan
A23: H23 | B23: Enter the grace period (in number of months) for capital reimbursment (if grace period enter 0)
A24: H24 | B24: Enter the yearly interest rate for the short-term loan for working capital requirement
A25: H25 | B25: Enter the moisture rate (in %) of wet paddy at the harvest moment
A26: H26 | B26: Enter the moisture rate (in %) to obtain after drying
A27: H27 | B27: Enter the maximum working time per day of the drying machine (in hours; maximum : 24h)
A28: H28 | B28: Cost of electric consumption for medium voltage in Riel per kWh
A29: H29 | B29: Cost of liter of fuel in Riel per one liter
A30: H30 | B30: Enter in the first column the title of function of salary and then, in the second column, its monthly cost. In the fourth column, enter the number of months for salary. If 2 full-time staff for the same function, the number of months will be 24.
A31: H30bis | B31: Enter the seasonnal employee and the daily cost.
A32: H30ter | B32: Enter the unity that generate seasonnal hire. By example, here, the seasonnal staff is depending on quantity of produced rice expressed in tons
A33: H31 | B33: Enter the first value corresponding to the first quantity (in tons) of paddy for the simulation of cost drying
A34: H32 | B34: Enter the pace of quantity for the cost drying function; by example, if you choose 100, the drying cost will be calculated for every 100 tons of rice
A35: H33 | B35: Choose if you will sell after the harvest of after months of storage; if storage, enter the number of months you will sell after the harvest
A36: H34 | B36: Enter the average cost of building for 1 m2 (in USD per m2)
A37: H35 | B37: The warehouse surface will be used for a part for the drying machines. Estimate the part (in percentage) of warehouse dedicated to storage
A38: H36 | B38: Enter the density of rice bag that determines the capacity of storage in tons par m3
A39: H37 | B39: For a maximum surface, estimate the maximum heigth of warehouse
A40: H38 | B40: Enter the life-time of the warehouse
A41: H39 | B41: Enter the percentage of loan for storage investment
A42: H40 | B42: Enter the invest loan yearly interest rate
A43: H41 | B43: Enter the maturity (in years) of the invest loan for storage
A44: H42 | B44: Choose a quantity (in tons) in the list
A45: H43 | B45: Choose the variation percentage to apply for each parameter and then, click on the button to your right
A46: H44 | B46: Choose your quantity in tons in the list
A47: H45 | B47: Enter the variations of price (negative and positive) relating to the chosen price for simulation

Sheet Rice production
A2: Back to menu | D2: Harvest informations | K2: After harvest
E3: H1 | G3: H2 | H3: H3 | I3: H4 | J3: H5
A4: Go to | D4: Variety | E4: Distribution for drying | F4: Type | G4: Days of harvesting | H4: Life-time of wet paddy before drying | I4: Price wet paddy | J4: Gross margin rate | K4: Price dried paddy | L4: Ratio dried/wet paddy | M4: Price dried paddy for 1 kg Wet | N4: Comments
A5: User Guide | C5: photo-sensitive | D5: Jasmine Rice (Phka Rumduol, Malis) | E5: 0.5 | F5: Fragrant | G5: 10 | H5: 1 | I5: 900 | J5: 0.15 | K5: =ROUNDUP(I5*(1+J5),-1) -> 1040 | L5: =1-Parameters!$E$28 -> 0.88 | M5: =+INT(K5*L5) -> 915
C6: photo-sensitive | D6: Jasmine organic | F6: Fragrant | G6: 10 | H6: 1 | I6: 900 | J6: 0.15 | K6: =ROUNDUP(I6*(1+J6),-1) -> 1040 | L6: =1-Parameters!$E$28 -> 0.88 | M6: =+INT(K6*L6) -> 915 | N6: 80%of mature grain=> max 10 day but grain moisture not <20%
A7: Investment | C7: photo-sensitive | D7: Sen Kraob | F7: Fragrant | G7: 10 | H7: 1 | I7: 900 | J7: 0.15 | K7: =ROUNDUP(I7*(1+J7),-1) -> 1040 | L7: =1-Parameters!$E$28 -> 0.88 | M7: 915 | N7: 80%of mature grain=> max 10 day but grain moisture not <20%
C8: non photo-sensitive | D8: Neang Sauy | E8: 0.5 | F8: Fragrant | G8: 10 | H8: 1 | I8: 900 | J8: 0.15 | K8: 1040 | L8: =1-Parameters!$E$28 -> 0.88 | M8: 915 | N8: 80%of mature grain=> max 10 day bty grain moisture not <20% | O8: 80%of mature grain=> max 5 day but grain moisture not <20%
A9: Rice information | C9: photo-sensitive | D9: Neang Malis | F9: Fragrant | G9: 10 | H9: 1 | I9: 900 | J9: 0.15 | K9: 1040 | L9: =1-Parameters!$E$28 -> 0.88 | M9: 915 | N9: 80%of mature grain=> max 10 day bty grain moisture not <20%
C10: photo-sensitive | D10: White long grain (not variety, kind of white rice) | F10: White | G10: 10 | H10: 1 | I10: 800 | J10: 0.15 | K10: 920 | L10: =1-Parameters!$E$28 -> 0.88 | M10: 809 | N10: 80%of mature grain=> max 10 day bty grain moisture not <20%
A11: Operation parameters | C11: photo-sensitive | D11: Phka Khngey | F11: White | G11: 10 | H11: 1 | I11: 900 | J11: 0.15 | K11: 1040 | L11: =1-Parameters!$E$28 -> 0.88 | M11: 915
C12: photo-sensitive | D12: Long grain parboiled (not variety) | G12: 10 | H12: 1 | I12: 800 | J12: 0.15 | K12: 920 | L12: =1-Parameters!$E$28 -> 0.88 | M12: 809 | N12: 80%of mature grain=> max 10 day bty grain moisture not <20%
A13: Loan amortization | E13: =IF(ROUND(SUM(E5:E12),0)=1,SUM(E5:E12),"Total must equals 100%") -> 1 | G13: =SUMPRODUCT($E$5:$E$12,$G$5:$G$12) -> 10 | H13: =SUMPRODUCT($E$5:$E$12,$H$5:$H$12) -> 1 | I13: =SUMPRODUCT($E$5:$E$12,I5:I12) -> 900 | K13: =SUMPRODUCT($E$5:$E$12,$K$5:$K$12) -> 1040 | M13: =SUMPRODUCT($E$5:$E$12,$M$5:$M$12) -> 915
A15: Drying table | J15: H6
D16: After Harvest Price for dried paddy | E16: Distribution for drying | F16: Ratio dried/wet paddy | G16: Month | H16: Month | I16: Month | J16: Month | K16: Month | L16: Month | M16: Month | N16: Choice
A17: Storage table | G17: 1 | H17: 2 | I17: 3 | J17: 4 | K17: 5 | L17: 6 | M17: 7 | N17: ="month "&HLOOKUP(Drying!$D$9,matrice,1) -> month 4
G18: =SUMPRODUCT($E$19:$E$26,G19:G26)/$K$13-1 -> 0.05384615385 | H18: 0.07884615385 | I18: 0.1572115385 | J18: 0.1778846154 | K18: 0.1538461538 | L18: 0.1331730769 | M18: 0.07980769231 | N18: =HLOOKUP(Drying!$D$9,matrice,2,FALSE) -> 0.1778846154
C19: =+C5 -> photo-sensitive | D19: Jasmine Rice (Phka Rumduol, Malis) | E19: 0.5 | F19: =1-Parameters!$E$28 -> 0.88 | G19: 1100 | H19: 1100 | I19: 1180 | J19: 1250 | K19: 1200 | L19: 1130 | M19: 1050 | N19: =HLOOKUP(Drying!$D$9,matrice,3,FALSE) -> 1250
A20: Summary | C20: photo-sensitive | D20: Jasmine organic | E20: 0 | F20: =1-Parameters!$E$28 -> 0.88 | G20: 1092 | H20: 1144 | I20: 1227 | J20: 1250 | K20: 1250 | L20: 1227 | M20: 1196 | N20: =HLOOKUP(Drying!$D$9,matrice,4,FALSE) -> 1250
C21: photo-sensitive | D21: Sen Kraob | E21: 0 | F21: =1-Parameters!$E$28 -> 0.88 | G21: 1050 | H21: 1100 | I21: 1180 | J21: 1250 | K21: 1200 | L21: 1130 | M21: 1050 | N21: =HLOOKUP(Drying!$D$9,matrice,5,FALSE) -> 1250
A22: Sensitivity analysis | C22: non photo-sensitive | D22: Neang Sauy | E22: 0.5 | F22: =1-Parameters!$E$28 -> 0.88 | G22: 1092 | H22: 1144 | I22: 1227 | J22: 1200 | K22: 1200 | L22: 1227 | M22: 1196 | N22: =HLOOKUP(Drying!$D$9,matrice,6,FALSE) -> 1200
C23: photo-sensitive | D23: Neang Malis | E23: 0 | F23: =1-Parameters!$E$28 -> 0.88 | G23: 1092 | H23: 1144 | I23: 1227 | J23: 1250 | K23: 1250 | L23: 1227 | M23: 1196 | N23: =HLOOKUP(Drying!$D$9,matrice,7,FALSE) -> 1250
C24: photo-sensitive | D24: White long grain (not variety, kind of white rice) | E24: 0 | F24: =1-Parameters!$E$28 -> 0.88 | G24: 966 | H24: 1012 | I24: 1085 | J24: 1100 | K24: 1100 | L24: 1085 | M24: 1058 | N24: =HLOOKUP(Drying!$D$9,matrice,8,FALSE) -> 1100
C25: photo-sensitive | D25: Phka Khngey | E25: 0 | F25: =1-Parameters!$E$28 -> 0.88 | G25: 1092 | H25: 1144 | I25: 1227 | J25: 1250 | K25: 1250 | L25: 1227 | M25: 1196 | N25: =HLOOKUP(Drying!$D$9,matrice,9,FALSE) -> 1250
C26: photo-sensitive | D26: Long grain parboiled (not variety) | E26: 0 | F26: =1-Parameters!$E$28 -> 0.88 | G26: 966 | H26: 1012 | I26: 1085 | J26: 1105 | K26: 1105 | L26: 1085 | M26: 1058 | N26: =HLOOKUP(Drying!$D$9,matrice,10,FALSE) -> 1105
E27: =IF(ROUND(SUM(E19:E26),0)=1,SUM(E19:E26),"Total must equals 100%") -> 1 | N27: =+SUMPRODUCT($E$19:$E$26,$N$19:$N$26) -> 1225
D31: After Harvest Price for 1 kg wet paddy | E31: Distribution for drying | F31: Ratio dried/wet paddy | G31: Month | H31: Month | I31: Month | J31: Month | K31: Month | L31: Month | M31: Month
G32: 1 | H32: 2 | I32: 3 | J32: 4 | K32: 5 | L32: 6 | M32: 7
G33: =SUMPRODUCT($E$34:$E$41,G34:G41)/$K$13-1 -> -0.07307692308 | H33: -0.05096153846 | I33: =SUMPRODUCT($E$34:$E$41,I34:I41)/$K$13-1 -> 0.01778846154 | J33: =SUMPRODUCT($E$34:$E$41,J34:J41)/$K$13-1 -> 0.03653846154 | K33: =SUMPRODUCT($E$34:$E$41,K34:K41)/$K$13-1 -> 0.01538461538 | L33: -0.003365384615 | M33: -0.05 | N33: Choice
C34: =+C5 -> photo-sensitive | D34: =+D5 -> Jasmine Rice (Phka Rumduol, Malis) | E34: =+E5 -> 0.5 | F34: =1-Parameters!$E$28 -> 0.88 | G34: =INT(+G19*$F34) -> 968 | H34: 968 | I34: 1038 | J34: 1100 | K34: 1056 | L34: 994 | M34: 924 | N34: =HLOOKUP(Drying!$D$9,matrice2,3,FALSE) -> 1100
C35: =+C6 -> photo-sensitive | D35: =+D6 -> Jasmine organic | E35: =+E6 -> 0 | F35: =1-Parameters!$E$28 -> 0.88 | G35: 960 | H35: 1006 | I35: 1079 | J35: 1100 | K35: 1100 | L35: 1079 | M35: 1052 | N35: =HLOOKUP(Drying!$D$9,matrice2,4,FALSE) -> 1100
C36: photo-sensitive | D36: Sen Kraob | E36: 0 | F36: =1-Parameters!$E$28 -> 0.88 | G36: 924 | H36: 968 | I36: 1038 | J36: 1100 | K36: 1056 | L36: 994 | M36: 924 | N36: =HLOOKUP(Drying!$D$9,matrice2,5,FALSE) -> 1100
C37: non photo-sensitive | D37: Neang Sauy | E37: 0.5 | F37: =1-Parameters!$E$28 -> 0.88 | G37: =INT(+G22*$F37) -> 960 | H37: 1006 | I37: 1079 | J37: 1056 | K37: 1056 | L37: 1079 | M37: 1052 | N37: =HLOOKUP(Drying!$D$9,matrice2,6,FALSE) -> 1056
C38: photo-sensitive | D38: Neang Malis | E38: 0 | F38: =1-Parameters!$E$28 -> 0.88 | G38: 960 | H38: 1006 | I38: 1079 | J38: 1100 | K38: 1100 | L38: 1079 | M38: 1052 | N38: =HLOOKUP(Drying!$D$9,matrice2,7,FALSE) -> 1100
C39: photo-sensitive | D39: White long grain (not variety, kind of white rice) | E39: 0 | F39: =1-Parameters!$E$28 -> 0.88 | G39: 850 | H39: 890 | I39: 954 | J39: 968 | K39: 968 | L39: 954 | M39: 931 | N39: =HLOOKUP(Drying!$D$9,matrice2,8,FALSE) -> 968
C40: photo-sensitive | D40: Phka Khngey | E40: 0 | F40: =1-Parameters!$E$28 -> 0.88 | G40: 960 | H40: 1006 | I40: 1079 | J40: 1100 | K40: 1100 | L40: 1079 | M40: 1052 | N40: =HLOOKUP(Drying!$D$9,matrice2,9,FALSE) -> 1100
C41: photo-sensitive | D41: Long grain parboiled (not variety) | E41: 0 | F41: =1-Parameters!$E$28 -> 0.88 | G41: 850 | H41: 890 | I41: 954 | J41: 972 | K41: 972 | L41: 954 | M41: 931 | N41: =HLOOKUP(Drying!$D$9,matrice2,10,FALSE) -> 972
E42: =IF(ROUND(SUM(E34:E41),0)=1,SUM(E34:E41),"Total must equals 100%") -> 1 | N42: =+SUMPRODUCT(E34:E41,N34:N41) -> 1078

Sheet Invest data
A2: Back to menu
C3: Technical specification for drying machine
A4: Go to | C4: H7 | D4: H8 | E4: H9 | F4: H10 | G4: H11 | H4: H12 | I4: H13
A5: User Guide | C5: Tons capacity | D5: Price (USD) | E5: Dry rate per hour | F5: kw/h | G5: Loading (min) | H5: Discharging (min) | I5: Fuel (liter/hour)
C6: 8 | D6: 25000 | E6: 0.015 | F6: 8 | G6: 50 | H6: 40 | I6: 12
A7: Investment | C7: 15 | D7: 45000 | E7: 0.015 | F7: 8 | G7: 50 | H7: 40 | I7: 14
C8: 30 | D8: 60000 | E8: 0.015 | F8: 15 | G8: 61 | H8: 63 | I8: 18
A9: Rice information | C9: 50 | D9: =157000 -> 157000 | E9: 0.0125 | F9: 39 | G9: 60 | H9: 50 | I9: 24
C10: 100 | D10: 320000 | E10: 0.0125 | F10: 67 | G10: 85 | H10: 85 | I10: 45
A11: Operation parameters | C11: 120 | D11: 450000 | E11: 0.0125 | F11: 67 | I11: 60
A13: Loan amortization
A15: Drying table
A17: Storage table
A19: Summary
A21: Sensitivity analysis

Sheet Parameters
C1: Parameters | D1: Investments data
A2: Back to menu | D2: Item | E2: Data | F2: Unit
D3: Type of dryer (Volume) | E3: 30 | F3: Tons | G3: H14
A4: Go to | D4: Number of dryer | E4: 1
A5: User Guide | D5: Cost of dryer (USD) | E5: =VLOOKUP(E3,'Invest data'!$C$5:$D$10,2,) -> 60000 | F5: USD
D6: Duration (years) | E6: 8 | F6: years | G6: H15
A7: Investment | D7: Depreciation yearly cost | E7: =+E5/E6 -> 7500 | F7: USD
D8: Electric transformer | E8: 10000 | F8: USD | G8: H16
A9: Rice information | D9: Km for connection | E9: 2 | F9: km | G9: H17
D10: Cost of connection per km | E10: 10000 | F10: USD | G10: H18
A11: Operation parameters | D11: Lifetime | E11: 25 | G11: H19
D12: Depreciation yearly cost | E12: =+($E$8+E9*$E$10)/E11 -> 1200 | F12: USD
A13: Loan amortization | D13: Financial information
D14: Investment loan conditions
A15: Drying table | D15: For drying machine
D16: Autofinancing or grant | E16: =1-E17 -> 0.33 | F16: % | G16: H20
A17: Storage table | D17: Loan | E17: 0.67 | F17: % | G17: H21
D18: Yearly rate | E18: 0.1 | F18: %/Year | G18: H22
A19: Summary | D19: Duration (years) | E19: 7 | F19: years | G19: H23
D20: Grace period (in months) | E20: 12 | F20: Months
A21: Sensitivity analysis | D21: Seasonal loan rate
D22: yearly Interest rate | E22: 0.1 | F22: %/Year | G22: H24
D23: Operation data
D25: Electricity consumption | E25: =VLOOKUP(Parameters!E3,'Invest data'!$C$6:$F$11,4) -> 15 | F25: Kw/H
D26: Moisture rate at harvest | E26: 0.25 | F26: % | G26: H25
D27: Moisture rate after drying | E27: 0.13 | F27: % | G27: H26
D28: Decrease points | E28: =+E26-E27 -> 0.12 | F28: %
D29: Drying rate/hour | E29: =VLOOKUP(Parameters!E3,'Invest data'!$C$5:$E$10,3,) -> 0.015 | F29: %/hour
D30: Maximum dry duration/day | E30: 20 | F30: h | G30: H27
D31: Loading time | E31: =VLOOKUP(Parameters!$E$3,'Invest data'!$C$5:$I$11,5) -> 61 | F31: min
D32: Discharge time | E32: =VLOOKUP(Parameters!$E$3,'Invest data'!$C$5:$I$11,6) -> 63 | F32: min
D33: Riel/KWh | E33: 690 | F33: kWh | G33: H28
D34: USD/Kwh | E34: =+E33/4000 -> 0.1725 | F34: USD/kWh
D35: Fuel consumption | E35: =VLOOKUP(Parameters!$E$5,'Invest data'!$C$5:$I$11,7) -> 60 | F35: liter/hour
D36: Cost of fuel | E36: 2000 | F36: Riel/liter | G36: H29
D37: Labor
D39: Fixed labor | G39: Nb of months
D40: Manager | E40: 300 | F40: USD/Month | G40: 12 | H40: H30
D41: operator | E41: 150 | F41: USD/Month | G41: 12
D42: keeper | E42: 150 | F42: USD/Month | G42: 12
F43: USD/Month
D44: Variable labor
D45: seasonnal employee | E45: 5 | F45: USD/day | H45: H30bis
D46: Employee per tons | E46: 3.5 | F46: Tons/employee/day | H46: H30ter

Sheet Loan Dry
T1: =IF(ISERROR(Avancé!D3),2,Avancé!D3) -> 0 | U1: =IF(Periodicite="M",12)+IF(Periodicite="T",4)+IF(Periodicite="S",2)+IF(Periodicite="A",1)+IF(Periodicite="H",52)+IF(Periodicite="Q",26)+IF(Periodicite="B",24) -> 12 | V1: Nombre échéance par an | W1: Type Taux | X1: Periodicité
A2: Back to menu | C2: Caracteristics | L2: Costs | O2: Summary | T2: =IF(ISERROR(Avancé!I9),TRUE,IF(Avancé!I9=1,TRUE,FALSE)) -> TRUE | U2: =U3*NbEchAn/12 -> 84 | V2: Nombre échéance total | W2: 0 | X2: 1
D3: Loan Amount | E3: =+Parameters!$E$5*Parameters!$E$17 -> 40200 | F3: Maturity | G3: =+Parameters!$E$19 -> 7 | H3: Years | L3: Fixed cost | O3: Date last installment | Q3: =MAX(L14:L447) -> 2025-03-31 | T3: =IF(ISERROR(Avancé!D17),99999,Avancé!D17) -> 99999 | U3: =G3*12+G4 -> 84 | V3: Durée totale (en mois) | W3: =W2=1 -> FALSE | X3: Mensuel | AA3: Mensuel
A4: Go to | F4: & | H4: Months | L4: Variable cost | O4: Nb if installments | Q4: =MAX(I14:I447) -> 97 | T4: =IF(ISERROR(Avancé!E17),99999,Avancé!E17) -> 99999 | U4: =IF(TauxActuariel,((E5+1)^(1/NbEchAn))-1,E5/NbEchAn) -> 0.008333333333 | V4: Taux période | W4: Différé | X4: Quarterly | AA4: Trimestriel
A5: User Guide | D5: Yearly rate : | E5: =+Parameters!$E$18 -> 0.1 | G5: 1rst installment : | I5: Periodicity : | L5: Grace period | O5: Total interest | Q5: =SUM(N14:N447) -> 19892 | T5: =IF(1<=NoEchMaxi, IF(ISERROR(Avancé!D37),ROUND(M15*S15,NbDeci),Avancé!D37),0) -> 335 | U5: =0+IF(Periodicite="M",1)+IF(Periodicite="T",3)+IF(Periodicite="S",6)+IF(Periodicite="A",12)+IF(Periodicite="B",0.5) -> 1 | V5: IntervalMois | W5: 1 | X5: Semestriel | AA5: Semestriel
G6: 2017-03-31 | O6: Total Capital | Q6: =SUM(O14:O447)-SUMIF(D14:D447,"<0") -> 40200 | T6: =IF(1>NoEchMaxi,0,IF(ISERROR(Avancé!E37),IF(1<=Différé,IF(DiffTotal,-INT1E,0),IF(1>=NoEchRemb,M15,IF(T15-(N15*EchFIXE)>M15-2,M15,T15-(N15*EchFIXE))))+D15, Avancé!E37)) -> 0 | U6: =0+IF(Periodicite="H",7)+IF(Periodicite="T",14) -> 0 | V6: IntervalJour | W6: =IF(Différé>0,W5=1,FALSE) -> TRUE | X6: Annuel | AA6: Annuel
A7: Investment | L7: Grace period months Nb | N7: =+Parameters!$E$20 -> 12 | O7: Total costs | Q7: =SUM(P14:P447) -> 0 | T7: =IF(ISERROR(Avancé!C37), IF(Ijour=0,MIN(DATE(YEAR(DebAmort),MONTH(DebAmort)-MoisD-Imois,Jour2),DATE(YEAR(DebAmort),MONTH(DebAmort)-MoisD+1-Imois,0)),DATE(YEAR(DebAmort),MONTH(DebAmort),Jour1-Ijour)), Avancé!C37) -> 2017-02-28 | U7: =DAY(DebAmort) -> 31 | V7: J1 | W7: =IF(Différé>0,W5=2,FALSE) -> FALSE | X7: Hebdomadaire | AA7: Hebdomadaire
D8: =IF(EchFIXE,"Fixed monthly amount :","Capital / installment :") -> Fixed monthly amount : | E8: =IF(OR(E5=0,NOT(EchFIXE)),ROUND(MtEmprunt/NbEch,NbDeci),ROUND(MtEmprunt*TxPer/(1-((1+TxPer)^-NbEch)),NbDeci)) -> 667 | L8: Initial | O8: Total cost Loan | Q8: =SUM(Q5:Q7) -> 60092 | U8: =IF(Periodicite="B",IF(U7>15,MIN(U7-15,15),U7+15),U7) -> 31 | V8: J2 | W8: =N7*NbEchAn/12 -> 12 | X8: Quinzaine | AA8: Quinzaine
A9: Rice information | U9: =IF(Jour2<Jour1,1,0) -> 0 | V9: M1 | W9: MtEmprunt | X9: Bimensuel | AA9: Bimensuel
C10: Operations | I10: Amortization table | S10: Données recalcul | W10: =E3 -> 40200 | X10: =UPPER(LEFT(INDEX(X3:X9,X2,1))) -> M
A11: Operation parameters | C11: =COUNTIF(C15:C447,">0") -> 0 | D11: =COUNTIF(D15:D447,">0")+COUNTIF(D15:D447,"<0") -> 0 | E11: =COUNTIF(E15:E447,">0") -> 0 | F11: =COUNTIF(F15:F447,">0") -> 0 | G11: =COUNTIF(G14:G447,">0") -> 0 | J11: Inst. Rem. | L11: Installment date | M11: Remaining Capital | N11: Paid interests | O11: Reimbursed Capital | P11: Total costs | Q11: Total paid | S11: Taux période | T11: Montant échéance | W11: =INDEX(M15:M996,Différé+1,1) -> 40200
C12: New rate | D12: Reimbursed capital | E12: New installment | F12: New date | G12: Special cost | I12: N° | K12: Year | W12: =IF(DiffTotal,W11,W10) -> 40200
A13: Loan amortization | I13: Inst
D14: =IF(N8>0,-N8,-E3) -> -40200 | E14: Initial disbursment | I14: 0 | K14: =IF(ISNUMBER(L14),YEAR(L14),"") -> 2017 | L14: =DATDB -> 2017-02-28 | M14: 0 | O14: =D14 -> -40200 | P14: =G14 -> 0 | Q14: =SUM(N14:P14) -> -40200
A15: Drying table | I15: =IF(M15=0,"",I14+1) -> 1 | J15: =IF(M15>0,NbEch+Différé+1-I15,"") -> 96 | K15: 2017 | L15: =DATE(YEAR(DebAmort),MONTH(DebAmort),DAY(DebAmort)) -> 2017-03-31 | M15: =M14-O14 -> 40200 | N15: =INT1E -> 335 | O15: =CAP1E+D15 -> 0 | P15: =IF(OR(M15=0,I15>NoEchMaxi),0,ROUND(FraisF+FraisV*M15,NbDeci))+G15 -> 0 | Q15: =SUM(N15:P15) -> 335 | S15: =IF(C15>0,IF(TauxActuariel,((C15+1)^(1/NbEchAn))-1,C15/NbEchAn),TxPer) -> 0.008333333333 | T15: =IF(F15>0,F15,IF(E15>0,IF(AND(EchFIXE,S15>0),ROUND((M15-D15)*S15/(1-((1+S15)^-E15)),NbDeci),ROUND(M15/E15,NbDeci)),MtEch)) -> 667
I16: =IF(M16=0,"",I15+1) -> 2 | J16: 95 | K16: 2017 | L16: =IF(M16=0,"",IF(Ijour=0,MIN(DATE(YEAR(DebAmort),MONTH(DebAmort)+MoisD+(I16-1)*Imois,Jour2),DATE(YEAR(DebAmort),MONTH(DebAmort)+MoisD+1+(I16-1)*Imois,0)),DATE(YEAR(DebAmort),MONTH(DebAmort),Jour1+(I16-1)*Ijour))) -> 2017-04-30 | M16: =M15-O15 -> 40200 | N16: =IF(I16<=NoEchMaxi,ROUND(M16*S16,NbDeci),0) -> 335 | O16: =IF(OR(I16<=Différé,I16>NoEchMaxi),IF(DiffTotal,-N16,0),IF(I16>=NoEchRemb,M16,IF(T16-(N16*EchFIXE)>M16-2,M16,T16-(N16*EchFIXE))))+D16 -> 0 | P16: =IF(OR(M16=0,I16>NoEchMaxi),0,ROUND(FraisF+FraisV*M16,NbDeci))+G16 -> 0 | Q16: =SUM(N16:P16) -> 335 | S16: =IF(C16>0,IF(TauxActuariel,((C16+1)^(1/NbEchAn))-1,C16/NbEchAn),S15) -> 0.008333333333 | T16: =IF(F16>0,F16,IF(E16>0,IF(AND(EchFIXE,S16>0),ROUND((M16-D16)*S16/(1-((1+S16)^-E16)),NbDeci),ROUND(M16/E16,NbDeci)),T15)) -> 667
A17: Storage table | I17: =IF(M17=0,"",I16+1) -> 3 | J17: 94 | K17: 2017 | L17: =IF(M17=0,"",IF(Ijour=0,MIN(DATE(YEAR(DebAmort),MONTH(DebAmort)+(I17-1)*Imois,Jour1),DATE(YEAR(DebAmort),MONTH(DebAmort)+1+(I17-1)*Imois,0)),DATE(YEAR(DebAmort),MONTH(DebAmort),Jour1+(I17-1)*Ijour))) -> 2017-05-31 | M17: =M16-O16 -> 40200 | N17: =IF(I17<=NoEchMaxi,ROUND(M17*S17,NbDeci),0) -> 335 | O17: =IF(OR(I17<=Différé,I17>NoEchMaxi),IF(DiffTotal,-N17,0),IF(I17>=NoEchRemb,M17,IF(T17-(N17*EchFIXE)>M17-2,M17,T17-(N17*EchFIXE))))+D17 -> 0 | P17: =IF(OR(M17=0,I17>NoEchMaxi),0,ROUND(FraisF+FraisV*M17,NbDeci))+G17 -> 0 | Q17: =SUM(N17:P17) -> 335 | S17: =IF(C17>0,IF(TauxActuariel,((C17+1)^(1/NbEchAn))-1,C17/NbEchAn),S16) -> 0.008333333333 | T17: 667
I18: =IF(M18=0,"",I17+1) -> 4 | J18: 93 | K18: 2017 | L18: =IF(M18=0,"",IF(Ijour=0,MIN(DATE(YEAR(DebAmort),MONTH(DebAmort)+MoisD+(I18-1)*Imois,Jour2),DATE(YEAR(DebAmort),MONTH(DebAmort)+MoisD+1+(I18-1)*Imois,0)),DATE(YEAR(DebAmort),MONTH(DebAmort),Jour1+(I18-1)*Ijour))) -> 2017-06-30 | M18: =M17-O17 -> 40200 | N18: =IF(I18<=NoEchMaxi,ROUND(M18*S18,NbDeci),0) -> 335 | O18: =IF(OR(I18<=Différé,I18>NoEchMaxi),IF(DiffTotal,-N18,0),IF(I18>=NoEchRemb,M18,IF(T18-(N18*EchFIXE)>M18-2,M18,T18-(N18*EchFIXE))))+D18 -> 0 | P18: =IF(OR(M18=0,I18>NoEchMaxi),0,ROUND(FraisF+FraisV*M18,NbDeci))+G18 -> 0 | Q18: =SUM(N18:P18) -> 335 | S18: =IF(C18>0,IF(TauxActuariel,((C18+1)^(1/NbEchAn))-1,C18/NbEchAn),S17) -> 0.008333333333 | T18: 667
A19: Summary | I19: =IF(M19=0,"",I18+1) -> 5 | J19: 92 | K19: 2017 | L19: =IF(M19=0,"",IF(Ijour=0,MIN(DATE(YEAR(DebAmort),MONTH(DebAmort)+(I19-1)*Imois,Jour1),DATE(YEAR(DebAmort),MONTH(DebAmort)+1+(I19-1)*Imois,0)),DATE(YEAR(DebAmort),MONTH(DebAmort),Jour1+(I19-1)*Ijour))) -> 2017-07-31 | M19: 40200 | N19: 335 | O19: 0 | P19: 0 | Q19: 335 | S19: 0.008333333333 | T19: 667
I20: 6 | J20: 91 | K20: 2017 | L20: =IF(M20=0,"",IF(Ijour=0,MIN(DATE(YEAR(DebAmort),MONTH(DebAmort)+MoisD+(I20-1)*Imois,Jour2),DATE(YEAR(DebAmort),MONTH(DebAmort)+MoisD+1+(I20-1)*Imois,0)),DATE(YEAR(DebAmort),MONTH(DebAmort),Jour1+(I20-1)*Ijour))) -> 2017-08-31 | M20: 40200 | N20: 335 | O20: 0 | P20: 0 | Q20: 335 | S20: 0.008333333333 | T20: 667
A21: Sensitivity analysis | I21: 7 | J21: 90 | K21: 2017 | L21: =IF(M21=0,"",IF(Ijour=0,MIN(DATE(YEAR(DebAmort),MONTH(DebAmort)+(I21-1)*Imois,Jour1),DATE(YEAR(DebAmort),MONTH(DebAmort)+1+(I21-1)*Imois,0)),DATE(YEAR(DebAmort),MONTH(DebAmort),Jour1+(I21-1)*Ijour))) -> 2017-09-30 | M21: 40200 | N21: 335 | O21: 0 | P21: 0 | Q21: 335 | S21: 0.008333333333 | T21: 667
I22: 8 | J22: 89 | K22: 2017 | L22: =IF(M22=0,"",IF(Ijour=0,MIN(DATE(YEAR(DebAmort),MONTH(DebAmort)+MoisD+(I22-1)*Imois,Jour2),DATE(YEAR(DebAmort),MONTH(DebAmort)+MoisD+1+(I22-1)*Imois,0)),DATE(YEAR(DebAmort),MONTH(DebAmort),Jour1+(I22-1)*Ijour))) -> 2017-10-31 | M22: 40200 | N22: 335 | O22: 0 | P22: 0 | Q22: 335 | S22: 0.008333333333 | T22: 667
I23: 9 | J23: 88 | K23: 2017 | L23: =IF(M23=0,"",IF(Ijour=0,MIN(DATE(YEAR(DebAmort),MONTH(DebAmort)+(I23-1)*Imois,Jour1),DATE(YEAR(DebAmort),MONTH(DebAmort)+1+(I23-1)*Imois,0)),DATE(YEAR(DebAmort),MONTH(DebAmort),Jour1+(I23-1)*Ijour))) -> 2017-11-30 | M23: 40200 | N23: 335 | O23: 0 | P23: 0 | Q23: 335 | S23: 0.008333333333 | T23: 667
I24: 10 | J24: 87 | K24: 2017 | L24: =IF(M24=0,"",IF(Ijour=0,MIN(DATE(YEAR(DebAmort),MONTH(DebAmort)+MoisD+(I24-1)*Imois,Jour2),DATE(YEAR(DebAmort),MONTH(DebAmort)+MoisD+1+(I24-1)*Imois,0)),DATE(YEAR(DebAmort),MONTH(DebAmort),Jour1+(I24-1)*Ijour))) -> 2017-12-31 | M24: 40200 | N24: 335 | O24: 0 | P24: 0 | Q24: 335 | S24: 0.008333333333 | T24: 667
I25: 11 | J25: 86 | K25: 2018 | L25: =IF(M25=0,"",IF(Ijour=0,MIN(DATE(YEAR(DebAmort),MONTH(DebAmort)+(I25-1)*Imois,Jour1),DATE(YEAR(DebAmort),MONTH(DebAmort)+1+(I25-1)*Imois,0)),DATE(YEAR(DebAmort),MONTH(DebAmort),Jour1+(I25-1)*Ijour))) -> 2018-01-31 | M25: 40200 | N25: 335 | O25: 0 | P25: 0 | Q25: 335 | S25: 0.008333333333 | T25: 667
I26: 12 | J26: 85 | K26: 2018 | L26: =IF(M26=0,"",IF(Ijour=0,MIN(DATE(YEAR(DebAmort),MONTH(DebAmort)+MoisD+(I26-1)*Imois,Jour2),DATE(YEAR(DebAmort),MONTH(DebAmort)+MoisD+1+(I26-1)*Imois,0)),DATE(YEAR(DebAmort),MONTH(DebAmort),Jour1+(I26-1)*Ijour))) -> 2018-02-28 | M26: 40200 | N26: 335 | O26: 0 | P26: 0 | Q26: 335 | S26: 0.008333333333 | T26: 667
I27: 13 | J27: 84 | K27: 2018 | L27: =IF(M27=0,"",IF(Ijour=0,MIN(DATE(YEAR(DebAmort),MONTH(DebAmort)+(I27-1)*Imois,Jour1),DATE(YEAR(DebAmort),MONTH(DebAmort)+1+(I27-1)*Imois,0)),DATE(YEAR(DebAmort),MONTH(DebAmort),Jour1+(I27-1)*Ijour))) -> 2018-03-31 | M27: 40200 | N27: 335 | O27: 332 | P27: 0 | Q27: 667 | S27: 0.008333333333 | T27: 667
I28: 14 | J28: 83 | K28: 2018 | L28: =IF(M28=0,"",IF(Ijour=0,MIN(DATE(YEAR(DebAmort),MONTH(DebAmort)+MoisD+(I28-1)*Imois,Jour2),DATE(YEAR(DebAmort),MONTH(DebAmort)+MoisD+1+(I28-1)*Imois,0)),DATE(YEAR(DebAmort),MONTH(DebAmort),Jour1+(I28-1)*Ijour))) -> 2018-04-30 | M28: 39868 | N28: 332 | O28: 335 | P28: 0 | Q28: 667 | S28: 0.008333333333 | T28: 667
I29: 15 | J29: 82 | K29: 2018 | L29: =IF(M29=0,"",IF(Ijour=0,MIN(DATE(YEAR(DebAmort),MONTH(DebAmort)+(I29-1)*Imois,Jour1),DATE(YEAR(DebAmort),MONTH(DebAmort)+1+(I29-1)*Imois,0)),DATE(YEAR(DebAmort),MONTH(DebAmort),Jour1+(I29-1)*Ijour))) -> 2018-05-31 | M29: 39533 | N29: 329 | O29: 338 | P29: 0 | Q29: 667 | S29: 0.008333333333 | T29: 667
I30: 16 | J30: 81 | K30: 2018 | L30: =IF(M30=0,"",IF(Ijour=0,MIN(DATE(YEAR(DebAmort),MONTH(DebAmort)+MoisD+(I30-1)*Imois,Jour2),DATE(YEAR(DebAmort),MONTH(DebAmort)+MoisD+1+(I30-1)*Imois,0)),DATE(YEAR(DebAmort),MONTH(DebAmort),Jour1+(I30-1)*Ijour))) -> 2018-06-30 | M30: 39195 | N30: 327 | O30: 340 | P30: 0 | Q30: 667 | S30: 0.008333333333 | T30: 667
I31: 17 | J31: 80 | K31: 2018 | L31: =IF(M31=0,"",IF(Ijour=0,MIN(DATE(YEAR(DebAmort),MONTH(DebAmort)+(I31-1)*Imois,Jour1),DATE(YEAR(DebAmort),MONTH(DebAmort)+1+(I31-1)*Imois,0)),DATE(YEAR(DebAmort),MONTH(DebAmort),Jour1+(I31-1)*Ijour))) -> 2018-07-31 | M31: 38855 | N31: 324 | O31: 343 | P31: 0 | Q31: 667 | S31: 0.008333333333 | T31: 667
I32: 18 | J32: 79 | K32: 2018 | L32: =IF(M32=0,"",IF(Ijour=0,MIN(DATE(YEAR(DebAmort),MONTH(DebAmort)+MoisD+(I32-1)*Imois,Jour2),DATE(YEAR(DebAmort),MONTH(DebAmort)+MoisD+1+(I32-1)*Imois,0)),DATE(YEAR(DebAmort),MONTH(DebAmort),Jour1+(I32-1)*Ijour))) -> 2018-08-31 | M32: 38512 | N32: 321 | O32: 346 | P32: 0 | Q32: 667 | S32: 0.008333333333 | T32: 667
I33: 19 | J33: 78 | K33: 2018 | L33: =IF(M33=0,"",IF(Ijour=0,MIN(DATE(YEAR(DebAmort),MONTH(DebAmort)+(I33-1)*Imois,Jour1),DATE(YEAR(DebAmort),MONTH(DebAmort)+1+(I33-1)*Imois,0)),DATE(YEAR(DebAmort),MONTH(DebAmort),Jour1+(I33-1)*Ijour))) -> 2018-09-30 | M33: 38166 | N33: 318 | O33: 349 | P33: 0 | Q33: 667 | S33: 0.008333333333 | T33: 667
I34: 20 | J34: 77 | K34: 2018 | L34: =IF(M34=0,"",IF(Ijour=0,MIN(DATE(YEAR(DebAmort),MONTH(DebAmort)+MoisD+(I34-1)*Imois,Jour2),DATE(YEAR(DebAmort),MONTH(DebAmort)+MoisD+1+(I34-1)*Imois,0)),DATE(YEAR(DebAmort),MONTH(DebAmort),Jour1+(I34-1)*Ijour))) -> 2018-10-31 | M34: 37817 | N34: 315 | O34: 352 | P34: 0 | Q34: 667 | S34: 0.008333333333 | T34: 667
I35: 21 | J35: 76 | K35: 2018 | L35: =IF(M35=0,"",IF(Ijour=0,MIN(DATE(YEAR(DebAmort),MONTH(DebAmort)+(I35-1)*Imois,Jour1),DATE(YEAR(DebAmort),MONTH(DebAmort)+1+(I35-1)*Imois,0)),DATE(YEAR(DebAmort),MONTH(DebAmort),Jour1+(I35-1)*Ijour))) -> 2018-11-30 | M35: 37465 | N35: 312 | O35: 355 | P35: 0 | Q35: 667 | S35: 0.008333333333 | T35: 667
I36: 22 | J36: 75 | K36: 2018 | L36: =IF(M36=0,"",IF(Ijour=0,MIN(DATE(YEAR(DebAmort),MONTH(DebAmort)+MoisD+(I36-1)*Imois,Jour2),DATE(YEAR(DebAmort),MONTH(DebAmort)+MoisD+1+(I36-1)*Imois,0)),DATE(YEAR(DebAmort),MONTH(DebAmort),Jour1+(I36-1)*Ijour))) -> 2018-12-31 | M36: 37110 | N36: 309 | O36: 358 | P36: 0 | Q36: 667 | S36: 0.008333333333 | T36: 667
I37: 23 | J37: 74 | K37: 2019 | L37: =IF(M37=0,"",IF(Ijour=0,MIN(DATE(YEAR(DebAmort),MONTH(DebAmort)+(I37-1)*Imois,Jour1),DATE(YEAR(DebAmort),MONTH(DebAmort)+1+(I37-1)*Imois,0)),DATE(YEAR(DebAmort),MONTH(DebAmort),Jour1+(I37-1)*Ijour))) -> 2019-01-31 | M37: 36752 | N37: 306 | O37: 361 | P37: 0 | Q37: 667 | S37: 0.008333333333 | T37: 667
I38: 24 | J38: 73 | K38: 2019 | L38: =IF(M38=0,"",IF(Ijour=0,MIN(DATE(YEAR(DebAmort),MONTH(DebAmort)+MoisD+(I38-1)*Imois,Jour2),DATE(YEAR(DebAmort),MONTH(DebAmort)+MoisD+1+(I38-1)*Imois,0)),DATE(YEAR(DebAmort),MONTH(DebAmort),Jour1+(I38-1)*Ijour))) -> 2019-02-28 | M38: 36391 | N38: 303 | O38: 364 | P38: 0 | Q38: 667 | S38: 0.008333333333 | T38: 667
I39: 25 | J39: 72 | K39: 2019 | L39: =IF(M39=0,"",IF(Ijour=0,MIN(DATE(YEAR(DebAmort),MONTH(DebAmort)+(I39-1)*Imois,Jour1),DATE(YEAR(DebAmort),MONTH(DebAmort)+1+(I39-1)*Imois,0)),DATE(YEAR(DebAmort),MONTH(DebAmort),Jour1+(I39-1)*Ijour))) -> 2019-03-31 | M39: 36027 | N39: 300 | O39: 367 | P39: 0 | Q39: 667 | S39: 0.008333333333 | T39: 667
I40: 26 | J40: 71 | K40: 2019 | L40: =IF(M40=0,"",IF(Ijour=0,MIN(DATE(YEAR(DebAmort),MONTH(DebAmort)+MoisD+(I40-1)*Imois,Jour2),DATE(YEAR(DebAmort),MONTH(DebAmort)+MoisD+1+(I40-1)*Imois,0)),DATE(YEAR(DebAmort),MONTH(DebAmort),Jour1+(I40-1)*Ijour))) -> 2019-04-30 | M40: 35660 | N40: 297 | O40: 370 | P40: 0 | Q40: 667 | S40: 0.008333333333 | T40: 667
I41: 27 | J41: 70 | K41: 2019 | L41: =IF(M41=0,"",IF(Ijour=0,MIN(DATE(YEAR(DebAmort),MONTH(DebAmort)+(I41-1)*Imois,Jour1),DATE(YEAR(DebAmort),MONTH(DebAmort)+1+(I41-1)*Imois,0)),DATE(YEAR(DebAmort),MONTH(DebAmort),Jour1+(I41-1)*Ijour))) -> 2019-05-31 | M41: 35290 | N41: 294 | O41: 373 | P41: 0 | Q41: 667 | S41: 0.008333333333 | T41: 667
I42: 28 | J42: 69 | K42: 2019 | L42: =IF(M42=0,"",IF(Ijour=0,MIN(DATE(YEAR(DebAmort),MONTH(DebAmort)+MoisD+(I42-1)*Imois,Jour2),DATE(YEAR(DebAmort),MONTH(DebAmort)+MoisD+1+(I42-1)*Imois,0)),DATE(YEAR(DebAmort),MONTH(DebAmort),Jour1+(I42-1)*Ijour))) -> 2019-06-30 | M42: 34917 | N42: 291 | O42: 376 | P42: 0 | Q42: 667 | S42: 0.008333333333 | T42: 667
I43: 29 | J43: 68 | K43: 2019 | L43: =IF(M43=0,"",IF(Ijour=0,MIN(DATE(YEAR(DebAmort),MONTH(DebAmort)+(I43-1)*Imois,Jour1),DATE(YEAR(DebAmort),MONTH(DebAmort)+1+(I43-1)*Imois,0)),DATE(YEAR(DebAmort),MONTH(DebAmort),Jour1+(I43-1)*Ijour))) -> 2019-07-31 | M43: 34541 | N43: 288 | O43: 379 | P43: 0 | Q43: 667 | S43: 0.008333333333 | T43: 667
I44: 30 | J44: 67 | K44: 2019 | L44: =IF(M44=0,"",IF(Ijour=0,MIN(DATE(YEAR(DebAmort),MONTH(DebAmort)+MoisD+(I44-1)*Imois,Jour2),DATE(YEAR(DebAmort),MONTH(DebAmort)+MoisD+1+(I44-1)*Imois,0)),DATE(YEAR(DebAmort),MONTH(DebAmort),Jour1+(I44-1)*Ijour))) -> 2019-08-31 | M44: 34162 | N44: 285 | O44: 382 | P44: 0 | Q44: 667 | S44: 0.008333333333 | T44: 667
I45: 31 | J45: 66 | K45: 2019 | L45: =IF(M45=0,"",IF(Ijour=0,MIN(DATE(YEAR(DebAmort),MONTH(DebAmort)+(I45-1)*Imois,Jour1),DATE(YEAR(DebAmort),MONTH(DebAmort)+1+(I45-1)*Imois,0)),DATE(YEAR(DebAmort),MONTH(DebAmort),Jour1+(I45-1)*Ijour))) -> 2019-09-30 | M45: 33780 | N45: 282 | O45: 385 | P45: 0 | Q45: 667 | S45: 0.008333333333 | T45: 667
I46: 32 | J46: 65 | K46: 2019 | L46: =IF(M46=0,"",IF(Ijour=0,MIN(DATE(YEAR(DebAmort),MONTH(DebAmort)+MoisD+(I46-1)*Imois,Jour2),DATE(YEAR(DebAmort),MONTH(DebAmort)+MoisD+1+(I46-1)*Imois,0)),DATE(YEAR(DebAmort),MONTH(DebAmort),Jour1+(I46-1)*Ijour))) -> 2019-10-31 | M46: 33395 | N46: 278 | O46: 389 | P46: 0 | Q46: 667 | S46: 0.008333333333 | T46: 667
I47: 33 | J47: 64 | K47: 2019 | L47: =IF(M47=0,"",IF(Ijour=0,MIN(DATE(YEAR(DebAmort),MONTH(DebAmort)+(I47-1)*Imois,Jour1),DATE(YEAR(DebAmort),MONTH(DebAmort)+1+(I47-1)*Imois,0)),DATE(YEAR(DebAmort),MONTH(DebAmort),Jour1+(I47-1)*Ijour))) -> 2019-11-30 | M47: 33006 | N47: 275 | O47: 392 | P47: 0 | Q47: 667 | S47: 0.008333333333 | T47: 667
I48: 34 | J48: 63 | K48: 2019 | L48: =IF(M48=0,"",IF(Ijour=0,MIN(DATE(YEAR(DebAmort),MONTH(DebAmort)+MoisD+(I48-1)*Imois,Jour2),DATE(YEAR(DebAmort),MONTH(DebAmort)+MoisD+1+(I48-1)*Imois,0)),DATE(YEAR(DebAmort),MONTH(DebAmort),Jour1+(I48-1)*Ijour))) -> 2019-12-31 | M48: 32614 | N48: 272 | O48: 395 | P48: 0 | Q48: 667 | S48: 0.008333333333 | T48: 667
I49: 35 | J49: 62 | K49: 2020 | L49: =IF(M49=0,"",IF(Ijour=0,MIN(DATE(YEAR(DebAmort),MONTH(DebAmort)+(I49-1)*Imois,Jour1),DATE(YEAR(DebAmort),MONTH(DebAmort)+1+(I49-1)*Imois,0)),DATE(YEAR(DebAmort),MONTH(DebAmort),Jour1+(I49-1)*Ijour))) -> 2020-01-31 | M49: 32219 | N49: 268 | O49: 399 | P49: 0 | Q49: 667 | S49: 0.008333333333 | T49: 667
I50: 36 | J50: 61 | K50: 2020 | L50: =IF(M50=0,"",IF(Ijour=0,MIN(DATE(YEAR(DebAmort),MONTH(DebAmort)+MoisD+(I50-1)*Imois,Jour2),DATE(YEAR(DebAmort),MONTH(DebAmort)+MoisD+1+(I50-1)*Imois,0)),DATE(YEAR(DebAmort),MONTH(DebAmort),Jour1+(I50-1)*Ijour))) -> 2020-02-29 | M50: 31820 | N50: 265 | O50: 402 | P50: 0 | Q50: 667 | S50: 0.008333333333 | T50: 667
I51: 37 | J51: 60 | K51: 2020 | L51: =IF(M51=0,"",IF(Ijour=0,MIN(DATE(YEAR(DebAmort),MONTH(DebAmort)+(I51-1)*Imois,Jour1),DATE(YEAR(DebAmort),MONTH(DebAmort)+1+(I51-1)*Imois,0)),DATE(YEAR(DebAmort),MONTH(DebAmort),Jour1+(I51-1)*Ijour))) -> 2020-03-31 | M51: 31418 | N51: 262 | O51: 405 | P51: 0 | Q51: 667 | S51: 0.008333333333 | T51: 667
I52: 38 | J52: 59 | K52: 2020 | L52: =IF(M52=0,"",IF(Ijour=0,MIN(DATE(YEAR(DebAmort),MONTH(DebAmort)+MoisD+(I52-1)*Imois,Jour2),DATE(YEAR(DebAmort),MONTH(DebAmort)+MoisD+1+(I52-1)*Imois,0)),DATE(YEAR(DebAmort),MONTH(DebAmort),Jour1+(I52-1)*Ijour))) -> 2020-04-30 | M52: 31013 | N52: 258 | O52: 409 | P52: 0 | Q52: 667 | S52: 0.008333333333 | T52: 667
I53: 39 | J53: 58 | K53: 2020 | L53: =IF(M53=0,"",IF(Ijour=0,MIN(DATE(YEAR(DebAmort),MONTH(DebAmort)+(I53-1)*Imois,Jour1),DATE(YEAR(DebAmort),MONTH(DebAmort)+1+(I53-1)*Imois,0)),DATE(YEAR(DebAmort),MONTH(DebAmort),Jour1+(I53-1)*Ijour))) -> 2020-05-31 | M53: 30604 | N53: 255 | O53: 412 | P53: 0 | Q53: 667 | S53: 0.008333333333 | T53: 667
I54: 40 | J54: 57 | K54: 2020 | L54: =IF(M54=0,"",IF(Ijour=0,MIN(DATE(YEAR(DebAmort),MONTH(DebAmort)+MoisD+(I54-1)*Imois,Jour2),DATE(YEAR(DebAmort),MONTH(DebAmort)+MoisD+1+(I54-1)*Imois,0)),DATE(YEAR(DebAmort),MONTH(DebAmort),Jour1+(I54-1)*Ijour))) -> 2020-06-30 | M54: 30192 | N54: 252 | O54: 415 | P54: 0 | Q54: 667 | S54: 0.008333333333 | T54: 667
I55: 41 | J55: 56 | K55: 2020 | L55: =IF(M55=0,"",IF(Ijour=0,MIN(DATE(YEAR(DebAmort),MONTH(DebAmort)+(I55-1)*Imois,Jour1),DATE(YEAR(DebAmort),MONTH(DebAmort)+1+(I55-1)*Imois,0)),DATE(YEAR(DebAmort),MONTH(DebAmort),Jour1+(I55-1)*Ijour))) -> 2020-07-31 | M55: 29777 | N55: 248 | O55: 419 | P55: 0 | Q55: 667 | S55: 0.008333333333 | T55: 667
I56: 42 | J56: 55 | K56: 2020 | L56: =IF(M56=0,"",IF(Ijour=0,MIN(DATE(YEAR(DebAmort),MONTH(DebAmort)+MoisD+(I56-1)*Imois,Jour2),DATE(YEAR(DebAmort),MONTH(DebAmort)+MoisD+1+(I56-1)*Imois,0)),DATE(YEAR(DebAmort),MONTH(DebAmort),Jour1+(I56-1)*Ijour))) -> 2020-08-31 | M56: 29358 | N56: 245 | O56: 422 | P56: 0 | Q56: 667 | S56: 0.008333333333 | T56: 667
I57: 43 | J57: 54 | K57: 2020 | L57: =IF(M57=0,"",IF(Ijour=0,MIN(DATE(YEAR(DebAmort),MONTH(DebAmort)+(I57-1)*Imois,Jour1),DATE(YEAR(DebAmort),MONTH(DebAmort)+1+(I57-1)*Imois,0)),DATE(YEAR(DebAmort),MONTH(DebAmort),Jour1+(I57-1)*Ijour))) -> 2020-09-30 | M57: 28936 | N57: 241 | O57: 426 | P57: 0 | Q57: 667 | S57: 0.008333333333 | T57: 667
I58: 44 | J58: 53 | K58: 2020 | L58: =IF(M58=0,"",IF(Ijour=0,MIN(DATE(YEAR(DebAmort),MONTH(DebAmort)+MoisD+(I58-1)*Imois,Jour2),DATE(YEAR(DebAmort),MONTH(DebAmort)+MoisD+1+(I58-1)*Imois,0)),DATE(YEAR(DebAmort),MONTH(DebAmort),Jour1+(I58-1)*Ijour))) -> 2020-10-31 | M58: 28510 | N58: 238 | O58: 429 | P58: 0 | Q58: 667 | S58: 0.008333333333 | T58: 667
I59: 45 | J59: 52 | K59: 2020 | L59: =IF(M59=0,"",IF(Ijour=0,MIN(DATE(YEAR(DebAmort),MONTH(DebAmort)+(I59-1)*Imois,Jour1),DATE(YEAR(DebAmort),MONTH(DebAmort)+1+(I59-1)*Imois,0)),DATE(YEAR(DebAmort),MONTH(DebAmort),Jour1+(I59-1)*Ijour))) -> 2020-11-30 | M59: 28081 | N59: 234 | O59: 433 | P59: 0 | Q59: 667 | S59: 0.008333333333 | T59: 667
I60: 46 | J60: 51 | K60: 2020 | L60: =IF(M60=0,"",IF(Ijour=0,MIN(DATE(YEAR(DebAmort),MONTH(DebAmort)+MoisD+(I60-1)*Imois,Jour2),DATE(YEAR(DebAmort),MONTH(DebAmort)+MoisD+1+(I60-1)*Imois,0)),DATE(YEAR(DebAmort),MONTH(DebAmort),Jour1+(I60-1)*Ijour))) -> 2020-12-31 | M60: 27648 | N60: 230 | O60: 437 | P60: 0 | Q60: 667 | S60: 0.008333333333 | T60: 667
I61: 47 | J61: 50 | K61: 2021 | L61: =IF(M61=0,"",IF(Ijour=0,MIN(DATE(YEAR(DebAmort),MONTH(DebAmort)+(I61-1)*Imois,Jour1),DATE(YEAR(DebAmort),MONTH(DebAmort)+1+(I61-1)*Imois,0)),DATE(YEAR(DebAmort),MONTH(DebAmort),Jour1+(I61-1)*Ijour))) -> 2021-01-31 | M61: 27211 | N61: 227 | O61: 440 | P61: 0 | Q61: 667 | S61: 0.008333333333 | T61: 667
I62: 48 | J62: 49 | K62: 2021 | L62: =IF(M62=0,"",IF(Ijour=0,MIN(DATE(YEAR(DebAmort),MONTH(DebAmort)+MoisD+(I62-1)*Imois,Jour2),DATE(YEAR(DebAmort),MONTH(DebAmort)+MoisD+1+(I62-1)*Imois,0)),DATE(YEAR(DebAmort),MONTH(DebAmort),Jour1+(I62-1)*Ijour))) -> 2021-02-28 | M62: 26771 | N62: 223 | O62: 444 | P62: 0 | Q62: 667 | S62: 0.008333333333 | T62: 667
I63: 49 | J63: 48 | K63: 2021 | L63: =IF(M63=0,"",IF(Ijour=0,MIN(DATE(YEAR(DebAmort),MONTH(DebAmort)+(I63-1)*Imois,Jour1),DATE(YEAR(DebAmort),MONTH(DebAmort)+1+(I63-1)*Imois,0)),DATE(YEAR(DebAmort),MONTH(DebAmort),Jour1+(I63-1)*Ijour))) -> 2021-03-31 | M63: 26327 | N63: 219 | O63: 448 | P63: 0 | Q63: 667 | S63: 0.008333333333 | T63: 667
I64: 50 | J64: 47 | K64: 2021 | L64: =IF(M64=0,"",IF(Ijour=0,MIN(DATE(YEAR(DebAmort),MONTH(DebAmort)+MoisD+(I64-1)*Imois,Jour2),DATE(YEAR(DebAmort),MONTH(DebAmort)+MoisD+1+(I64-1)*Imois,0)),DATE(YEAR(DebAmort),MONTH(DebAmort),Jour1+(I64-1)*Ijour))) -> 2021-04-30 | M64: 25879 | N64: 216 | O64: 451 | P64: 0 | Q64: 667 | S64: 0.008333333333 | T64: 667
I65: 51 | J65: 46 | K65: 2021 | L65: =IF(M65=0,"",IF(Ijour=0,MIN(DATE(YEAR(DebAmort),MONTH(DebAmort)+(I65-1)*Imois,Jour1),DATE(YEAR(DebAmort),MONTH(DebAmort)+1+(I65-1)*Imois,0)),DATE(YEAR(DebAmort),MONTH(DebAmort),Jour1+(I65-1)*Ijour))) -> 2021-05-31 | M65: 25428 | N65: 212 | O65: 455 | P65: 0 | Q65: 667 | S65: 0.008333333333 | T65: 667
I66: 52 | J66: 45 | K66: 2021 | L66: =IF(M66=0,"",IF(Ijour=0,MIN(DATE(YEAR(DebAmort),MONTH(DebAmort)+MoisD+(I66-1)*Imois,Jour2),DATE(YEAR(DebAmort),MONTH(DebAmort)+MoisD+1+(I66-1)*Imois,0)),DATE(YEAR(DebAmort),MONTH(DebAmort),Jour1+(I66-1)*Ijour))) -> 2021-06-30 | M66: 24973 | N66: 208 | O66: 459 | P66: 0 | Q66: 667 | S66: 0.008333333333 | T66: 667
I67: 53 | J67: 44 | K67: 2021 | L67: =IF(M67=0,"",IF(Ijour=0,MIN(DATE(YEAR(DebAmort),MONTH(DebAmort)+(I67-1)*Imois,Jour1),DATE(YEAR(DebAmort),MONTH(DebAmort)+1+(I67-1)*Imois,0)),DATE(YEAR(DebAmort),MONTH(DebAmort),Jour1+(I67-1)*Ijour))) -> 2021-07-31 | M67: 24514 | N67: 204 | O67: 463 | P67: 0 | Q67: 667 | S67: 0.008333333333 | T67: 667
I68: 54 | J68: 43 | K68: 2021 | L68: =IF(M68=0,"",IF(Ijour=0,MIN(DATE(YEAR(DebAmort),MONTH(DebAmort)+MoisD+(I68-1)*Imois,Jour2),DATE(YEAR(DebAmort),MONTH(DebAmort)+MoisD+1+(I68-1)*Imois,0)),DATE(YEAR(DebAmort),MONTH(DebAmort),Jour1+(I68-1)*Ijour))) -> 2021-08-31 | M68: 24051 | N68: 200 | O68: 467 | P68: 0 | Q68: 667 | S68: 0.008333333333 | T68: 667
I69: 55 | J69: 42 | K69: 2021 | L69: =IF(M69=0,"",IF(Ijour=0,MIN(DATE(YEAR(DebAmort),MONTH(DebAmort)+(I69-1)*Imois,Jour1),DATE(YEAR(DebAmort),MONTH(DebAmort)+1+(I69-1)*Imois,0)),DATE(YEAR(DebAmort),MONTH(DebAmort),Jour1+(I69-1)*Ijour))) -> 2021-09-30 | M69: 23584 | N69: 197 | O69: 470 | P69: 0 | Q69: 667 | S69: 0.008333333333 | T69: 667
I70: 56 | J70: 41 | K70: 2021 | L70: =IF(M70=0,"",IF(Ijour=0,MIN(DATE(YEAR(DebAmort),MONTH(DebAmort)+MoisD+(I70-1)*Imois,Jour2),DATE(YEAR(DebAmort),MONTH(DebAmort)+MoisD+1+(I70-1)*Imois,0)),DATE(YEAR(DebAmort),MONTH(DebAmort),Jour1+(I70-1)*Ijour))) -> 2021-10-31 | M70: 23114 | N70: 193 | O70: 474 | P70: 0 | Q70: 667 | S70: 0.008333333333 | T70: 667
I71: 57 | J71: 40 | K71: 2021 | L71: =IF(M71=0,"",IF(Ijour=0,MIN(DATE(YEAR(DebAmort),MONTH(DebAmort)+(I71-1)*Imois,Jour1),DATE(YEAR(DebAmort),MONTH(DebAmort)+1+(I71-1)*Imois,0)),DATE(YEAR(DebAmort),MONTH(DebAmort),Jour1+(I71-1)*Ijour))) -> 2021-11-30 | M71: 22640 | N71: 189 | O71: 478 | P71: 0 | Q71: 667 | S71: 0.008333333333 | T71: 667
I72: 58 | J72: 39 | K72: 2021 | L72: =IF(M72=0,"",IF(Ijour=0,MIN(DATE(YEAR(DebAmort),MONTH(DebAmort)+MoisD+(I72-1)*Imois,Jour2),DATE(YEAR(DebAmort),MONTH(DebAmort)+MoisD+1+(I72-1)*Imois,0)),DATE(YEAR(DebAmort),MONTH(DebAmort),Jour1+(I72-1)*Ijour))) -> 2021-12-31 | M72: 22162 | N72: 185 | O72: 482 | P72: 0 | Q72: 667 | S72: 0.008333333333 | T72: 667
I73: 59 | J73: 38 | K73: 2022 | L73: =IF(M73=0,"",IF(Ijour=0,MIN(DATE(YEAR(DebAmort),MONTH(DebAmort)+(I73-1)*Imois,Jour1),DATE(YEAR(DebAmort),MONTH(DebAmort)+1+(I73-1)*Imois,0)),DATE(YEAR(DebAmort),MONTH(DebAmort),Jour1+(I73-1)*Ijour))) -> 2022-01-31 | M73: 21680 | N73: 181 | O73: 486 | P73: 0 | Q73: 667 | S73: 0.008333333333 | T73: 667
I74: 60 | J74: 37 | K74: 2022 | L74: =IF(M74=0,"",IF(Ijour=0,MIN(DATE(YEAR(DebAmort),MONTH(DebAmort)+MoisD+(I74-1)*Imois,Jour2),DATE(YEAR(DebAmort),MONTH(DebAmort)+MoisD+1+(I74-1)*Imois,0)),DATE(YEAR(DebAmort),MONTH(DebAmort),Jour1+(I74-1)*Ijour))) -> 2022-02-28 | M74: 21194 | N74: 177 | O74: 490 | P74: 0 | Q74: 667 | S74: 0.008333333333 | T74: 667
I75: 61 | J75: 36 | K75: 2022 | L75: =IF(M75=0,"",IF(Ijour=0,MIN(DATE(YEAR(DebAmort),MONTH(DebAmort)+(I75-1)*Imois,Jour1),DATE(YEAR(DebAmort),MONTH(DebAmort)+1+(I75-1)*Imois,0)),DATE(YEAR(DebAmort),MONTH(DebAmort),Jour1+(I75-1)*Ijour))) -> 2022-03-31 | M75: 20704 | N75: 173 | O75: 494 | P75: 0 | Q75: 667 | S75: 0.008333333333 | T75: 667
I76: 62 | J76: 35 | K76: 2022 | L76: =IF(M76=0,"",IF(Ijour=0,MIN(DATE(YEAR(DebAmort),MONTH(DebAmort)+MoisD+(I76-1)*Imois,Jour2),DATE(YEAR(DebAmort),MONTH(DebAmort)+MoisD+1+(I76-1)*Imois,0)),DATE(YEAR(DebAmort),MONTH(DebAmort),Jour1+(I76-1)*Ijour))) -> 2022-04-30 | M76: 20210 | N76: 168 | O76: 499 | P76: 0 | Q76: 667 | S76: 0.008333333333 | T76: 667
I77: 63 | J77: 34 | K77: 2022 | L77: =IF(M77=0,"",IF(Ijour=0,MIN(DATE(YEAR(DebAmort),MONTH(DebAmort)+(I77-1)*Imois,Jour1),DATE(YEAR(DebAmort),MONTH(DebAmort)+1+(I77-1)*Imois,0)),DATE(YEAR(DebAmort),MONTH(DebAmort),Jour1+(I77-1)*Ijour))) -> 2022-05-31 | M77: 19711 | N77: 164 | O77: 503 | P77: 0 | Q77: 667 | S77: 0.008333333333 | T77: 667
I78: 64 | J78: 33 | K78: 2022 | L78: =IF(M78=0,"",IF(Ijour=0,MIN(DATE(YEAR(DebAmort),MONTH(DebAmort)+MoisD+(I78-1)*Imois,Jour2),DATE(YEAR(DebAmort),MONTH(DebAmort)+MoisD+1+(I78-1)*Imois,0)),DATE(YEAR(DebAmort),MONTH(DebAmort),Jour1+(I78-1)*Ijour))) -> 2022-06-30 | M78: 19208 | N78: 160 | O78: 507 | P78: 0 | Q78: 667 | S78: 0.008333333333 | T78: 667
I79: 65 | J79: =IF(M79>0,NbEch+Différé+1-I79,"") -> 32 | K79: =IF(ISNUMBER(L79),YEAR(L79),"") -> 2022 | L79: =IF(M79=0,"",IF(Ijour=0,MIN(DATE(YEAR(DebAmort),MONTH(DebAmort)+(I79-1)*Imois,Jour1),DATE(YEAR(DebAmort),MONTH(DebAmort)+1+(I79-1)*Imois,0)),DATE(YEAR(DebAmort),MONTH(DebAmort),Jour1+(I79-1)*Ijour))) -> 2022-07-31 | M79: 18701 | N79: 156 | O79: 511 | P79: 0 | Q79: 667 | S79: 0.008333333333 | T79: 667
I80: 66 | J80: 31 | K80: 2022 | L80: =IF(M80=0,"",IF(Ijour=0,MIN(DATE(YEAR(DebAmort),MONTH(DebAmort)+MoisD+(I80-1)*Imois,Jour2),DATE(YEAR(DebAmort),MONTH(DebAmort)+MoisD+1+(I80-1)*Imois,0)),DATE(YEAR(DebAmort),MONTH(DebAmort),Jour1+(I80-1)*Ijour))) -> 2022-08-31 | M80: 18190 | N80: 152 | O80: 515 | P80: 0 | Q80: 667 | S80: 0.008333333333 | T80: =IF(F80>0,F80,IF(E80>0,IF(AND(EchFIXE,S80>0),ROUND((M80-D80)*S80/(1-((1+S80)^-E80)),NbDeci),ROUND(M80/E80,NbDeci)),T79)) -> 667
I81: 67 | J81: 30 | K81: 2022 | L81: =IF(M81=0,"",IF(Ijour=0,MIN(DATE(YEAR(DebAmort),MONTH(DebAmort)+(I81-1)*Imois,Jour1),DATE(YEAR(DebAmort),MONTH(DebAmort)+1+(I81-1)*Imois,0)),DATE(YEAR(DebAmort),MONTH(DebAmort),Jour1+(I81-1)*Ijour))) -> 2022-09-30 | M81: 17675 | N81: 147 | O81: 520 | P81: 0 | Q81: 667 | S81: 0.008333333333 | T81: 667
I82: 68 | J82: 29 | K82: 2022 | L82: =IF(M82=0,"",IF(Ijour=0,MIN(DATE(YEAR(DebAmort),MONTH(DebAmort)+MoisD+(I82-1)*Imois,Jour2),DATE(YEAR(DebAmort),MONTH(DebAmort)+MoisD+1+(I82-1)*Imois,0)),DATE(YEAR(DebAmort),MONTH(DebAmort),Jour1+(I82-1)*Ijour))) -> 2022-10-31 | M82: =M81-O81 -> 17155 | N82: =IF(I82<=NoEchMaxi,ROUND(M82*S82,NbDeci),0) -> 143 | O82: =IF(OR(I82<=Différé,I82>NoEchMaxi),IF(DiffTotal,-N82,0),IF(I82>=NoEchRemb,M82,IF(T82-(N82*EchFIXE)>M82-2,M82,T82-(N82*EchFIXE))))+D82 -> 524 | P82: =IF(OR(M82=0,I82>NoEchMaxi),0,ROUND(FraisF+FraisV*M82,NbDeci))+G82 -> 0 | Q82: =SUM(N82:P82) -> 667 | S82: =IF(C82>0,IF(TauxActuariel,((C82+1)^(1/NbEchAn))-1,C82/NbEchAn),S81) -> 0.008333333333 | T82: 667
I83: =IF(M83=0,"",I82+1) -> 69 | J83: 28 | K83: 2022 | L83: =IF(M83=0,"",IF(Ijour=0,MIN(DATE(YEAR(DebAmort),MONTH(DebAmort)+(I83-1)*Imois,Jour1),DATE(YEAR(DebAmort),MONTH(DebAmort)+1+(I83-1)*Imois,0)),DATE(YEAR(DebAmort),MONTH(DebAmort),Jour1+(I83-1)*Ijour))) -> 2022-11-30 | M83: 16631 | N83: 139 | O83: 528 | P83: 0 | Q83: 667 | S83: 0.008333333333 | T83: 667
I84: 70 | J84: 27 | K84: 2022 | L84: =IF(M84=0,"",IF(Ijour=0,MIN(DATE(YEAR(DebAmort),MONTH(DebAmort)+MoisD+(I84-1)*Imois,Jour2),DATE(YEAR(DebAmort),MONTH(DebAmort)+MoisD+1+(I84-1)*Imois,0)),DATE(YEAR(DebAmort),MONTH(DebAmort),Jour1+(I84-1)*Ijour))) -> 2022-12-31 | M84: 16103 | N84: 134 | O84: 533 | P84: 0 | Q84: 667 | S84: 0.008333333333 | T84: 667
I85: 71 | J85: 26 | K85: 2023 | L85: =IF(M85=0,"",IF(Ijour=0,MIN(DATE(YEAR(DebAmort),MONTH(DebAmort)+(I85-1)*Imois,Jour1),DATE(YEAR(DebAmort),MONTH(DebAmort)+1+(I85-1)*Imois,0)),DATE(YEAR(DebAmort),MONTH(DebAmort),Jour1+(I85-1)*Ijour))) -> 2023-01-31 | M85: 15570 | N85: 130 | O85: 537 | P85: 0 | Q85: 667 | S85: 0.008333333333 | T85: 667
I86: 72 | J86: 25 | K86: 2023 | L86: =IF(M86=0,"",IF(Ijour=0,MIN(DATE(YEAR(DebAmort),MONTH(DebAmort)+MoisD+(I86-1)*Imois,Jour2),DATE(YEAR(DebAmort),MONTH(DebAmort)+MoisD+1+(I86-1)*Imois,0)),DATE(YEAR(DebAmort),MONTH(DebAmort),Jour1+(I86-1)*Ijour))) -> 2023-02-28 | M86: 15033 | N86: 125 | O86: 542 | P86: 0 | Q86: 667 | S86: 0.008333333333 | T86: 667
I87: 73 | J87: 24 | K87: 2023 | L87: =IF(M87=0,"",IF(Ijour=0,MIN(DATE(YEAR(DebAmort),MONTH(DebAmort)+(I87-1)*Imois,Jour1),DATE(YEAR(DebAmort),MONTH(DebAmort)+1+(I87-1)*Imois,0)),DATE(YEAR(DebAmort),MONTH(DebAmort),Jour1+(I87-1)*Ijour))) -> 2023-03-31 | M87: 14491 | N87: 121 | O87: 546 | P87: 0 | Q87: 667 | S87: 0.008333333333 | T87: 667
I88: 74 | J88: 23 | K88: 2023 | L88: =IF(M88=0,"",IF(Ijour=0,MIN(DATE(YEAR(DebAmort),MONTH(DebAmort)+MoisD+(I88-1)*Imois,Jour2),DATE(YEAR(DebAmort),MONTH(DebAmort)+MoisD+1+(I88-1)*Imois,0)),DATE(YEAR(DebAmort),MONTH(DebAmort),Jour1+(I88-1)*Ijour))) -> 2023-04-30 | M88: 13945 | N88: 116 | O88: 551 | P88: 0 | Q88: 667 | S88: 0.008333333333 | T88: 667
I89: 75 | J89: 22 | K89: 2023 | L89: =IF(M89=0,"",IF(Ijour=0,MIN(DATE(YEAR(DebAmort),MONTH(DebAmort)+(I89-1)*Imois,Jour1),DATE(YEAR(DebAmort),MONTH(DebAmort)+1+(I89-1)*Imois,0)),DATE(YEAR(DebAmort),MONTH(DebAmort),Jour1+(I89-1)*Ijour))) -> 2023-05-31 | M89: 13394 | N89: 112 | O89: 555 | P89: 0 | Q89: 667 | S89: 0.008333333333 | T89: 667
I90: 76 | J90: 21 | K90: 2023 | L90: =IF(M90=0,"",IF(Ijour=0,MIN(DATE(YEAR(DebAmort),MONTH(DebAmort)+MoisD+(I90-1)*Imois,Jour2),DATE(YEAR(DebAmort),MONTH(DebAmort)+MoisD+1+(I90-1)*Imois,0)),DATE(YEAR(DebAmort),MONTH(DebAmort),Jour1+(I90-1)*Ijour))) -> 2023-06-30 | M90: 12839 | N90: 107 | O90: 560 | P90: 0 | Q90: 667 | S90: 0.008333333333 | T90: 667
I91: 77 | J91: 20 | K91: 2023 | L91: =IF(M91=0,"",IF(Ijour=0,MIN(DATE(YEAR(DebAmort),MONTH(DebAmort)+(I91-1)*Imois,Jour1),DATE(YEAR(DebAmort),MONTH(DebAmort)+1+(I91-1)*Imois,0)),DATE(YEAR(DebAmort),MONTH(DebAmort),Jour1+(I91-1)*Ijour))) -> 2023-07-31 | M91: 12279 | N91: 102 | O91: 565 | P91: 0 | Q91: 667 | S91: 0.008333333333 | T91: 667
I92: 78 | J92: 19 | K92: 2023 | L92: =IF(M92=0,"",IF(Ijour=0,MIN(DATE(YEAR(DebAmort),MONTH(DebAmort)+MoisD+(I92-1)*Imois,Jour2),DATE(YEAR(DebAmort),MONTH(DebAmort)+MoisD+1+(I92-1)*Imois,0)),DATE(YEAR(DebAmort),MONTH(DebAmort),Jour1+(I92-1)*Ijour))) -> 2023-08-31 | M92: 11714 | N92: 98 | O92: 569 | P92: 0 | Q92: 667 | S92: 0.008333333333 | T92: 667
I93: 79 | J93: 18 | K93: 2023 | L93: =IF(M93=0,"",IF(Ijour=0,MIN(DATE(YEAR(DebAmort),MONTH(DebAmort)+(I93-1)*Imois,Jour1),DATE(YEAR(DebAmort),MONTH(DebAmort)+1+(I93-1)*Imois,0)),DATE(YEAR(DebAmort),MONTH(DebAmort),Jour1+(I93-1)*Ijour))) -> 2023-09-30 | M93: 11145 | N93: 93 | O93: 574 | P93: 0 | Q93: 667 | S93: 0.008333333333 | T93: 667
I94: 80 | J94: 17 | K94: 2023 | L94: =IF(M94=0,"",IF(Ijour=0,MIN(DATE(YEAR(DebAmort),MONTH(DebAmort)+MoisD+(I94-1)*Imois,Jour2),DATE(YEAR(DebAmort),MONTH(DebAmort)+MoisD+1+(I94-1)*Imois,0)),DATE(YEAR(DebAmort),MONTH(DebAmort),Jour1+(I94-1)*Ijour))) -> 2023-10-31 | M94: 10571 | N94: 88 | O94: 579 | P94: 0 | Q94: 667 | S94: 0.008333333333 | T94: 667
I95: 81 | J95: 16 | K95: 2023 | L95: =IF(M95=0,"",IF(Ijour=0,MIN(DATE(YEAR(DebAmort),MONTH(DebAmort)+(I95-1)*Imois,Jour1),DATE(YEAR(DebAmort),MONTH(DebAmort)+1+(I95-1)*Imois,0)),DATE(YEAR(DebAmort),MONTH(DebAmort),Jour1+(I95-1)*Ijour))) -> 2023-11-30 | M95: 9992 | N95: 83 | O95: 584 | P95: 0 | Q95: 667 | S95: 0.008333333333 | T95: 667
I96: 82 | J96: 15 | K96: 2023 | L96: =IF(M96=0,"",IF(Ijour=0,MIN(DATE(YEAR(DebAmort),MONTH(DebAmort)+MoisD+(I96-1)*Imois,Jour2),DATE(YEAR(DebAmort),MONTH(DebAmort)+MoisD+1+(I96-1)*Imois,0)),DATE(YEAR(DebAmort),MONTH(DebAmort),Jour1+(I96-1)*Ijour))) -> 2023-12-31 | M96: 9408 | N96: 78 | O96: 589 | P96: 0 | Q96: 667 | S96: 0.008333333333 | T96: 667
I97: 83 | J97: 14 | K97: 2024 | L97: =IF(M97=0,"",IF(Ijour=0,MIN(DATE(YEAR(DebAmort),MONTH(DebAmort)+(I97-1)*Imois,Jour1),DATE(YEAR(DebAmort),MONTH(DebAmort)+1+(I97-1)*Imois,0)),DATE(YEAR(DebAmort),MONTH(DebAmort),Jour1+(I97-1)*Ijour))) -> 2024-01-31 | M97: 8819 | N97: 73 | O97: 594 | P97: 0 | Q97: 667 | S97: 0.008333333333 | T97: 667
I98: 84 | J98: 13 | K98: 2024 | L98: =IF(M98=0,"",IF(Ijour=0,MIN(DATE(YEAR(DebAmort),MONTH(DebAmort)+MoisD+(I98-1)*Imois,Jour2),DATE(YEAR(DebAmort),MONTH(DebAmort)+MoisD+1+(I98-1)*Imois,0)),DATE(YEAR(DebAmort),MONTH(DebAmort),Jour1+(I98-1)*Ijour))) -> 2024-02-29 | M98: 8225 | N98: 69 | O98: 598 | P98: 0 | Q98: 667 | S98: 0.008333333333 | T98: 667
I99: 85 | J99: 12 | K99: 2024 | L99: =IF(M99=0,"",IF(Ijour=0,MIN(DATE(YEAR(DebAmort),MONTH(DebAmort)+(I99-1)*Imois,Jour1),DATE(YEAR(DebAmort),MONTH(DebAmort)+1+(I99-1)*Imois,0)),DATE(YEAR(DebAmort),MONTH(DebAmort),Jour1+(I99-1)*Ijour))) -> 2024-03-31 | M99: 7627 | N99: 64 | O99: 603 | P99: 0 | Q99: 667 | S99: 0.008333333333 | T99: 667
I100: 86 | J100: 11 | K100: 2024 | L100: =IF(M100=0,"",IF(Ijour=0,MIN(DATE(YEAR(DebAmort),MONTH(DebAmort)+MoisD+(I100-1)*Imois,Jour2),DATE(YEAR(DebAmort),MONTH(DebAmort)+MoisD+1+(I100-1)*Imois,0)),DATE(YEAR(DebAmort),MONTH(DebAmort),Jour1+(I100-1)*Ijour))) -> 2024-04-30 | M100: 7024 | N100: 59 | O100: 608 | P100: 0 | Q100: 667 | S100: 0.008333333333 | T100: 667
I101: 87 | J101: 10 | K101: 2024 | L101: =IF(M101=0,"",IF(Ijour=0,MIN(DATE(YEAR(DebAmort),MONTH(DebAmort)+(I101-1)*Imois,Jour1),DATE(YEAR(DebAmort),MONTH(DebAmort)+1+(I101-1)*Imois,0)),DATE(YEAR(DebAmort),MONTH(DebAmort),Jour1+(I101-1)*Ijour))) -> 2024-05-31 | M101: 6416 | N101: 53 | O101: 614 | P101: 0 | Q101: 667 | S101: 0.008333333333 | T101: 667
I102: 88 | J102: 9 | K102: 2024 | L102: =IF(M102=0,"",IF(Ijour=0,MIN(DATE(YEAR(DebAmort),MONTH(DebAmort)+MoisD+(I102-1)*Imois,Jour2),DATE(YEAR(DebAmort),MONTH(DebAmort)+MoisD+1+(I102-1)*Imois,0)),DATE(YEAR(DebAmort),MONTH(DebAmort),Jour1+(I102-1)*Ijour))) -> 2024-06-30 | M102: 5802 | N102: 48 | O102: 619 | P102: 0 | Q102: 667 | S102: 0.008333333333 | T102: 667
I103: 89 | J103: 8 | K103: 2024 | L103: =IF(M103=0,"",IF(Ijour=0,MIN(DATE(YEAR(DebAmort),MONTH(DebAmort)+(I103-1)*Imois,Jour1),DATE(YEAR(DebAmort),MONTH(DebAmort)+1+(I103-1)*Imois,0)),DATE(YEAR(DebAmort),MONTH(DebAmort),Jour1+(I103-1)*Ijour))) -> 2024-07-31 | M103: 5183 | N103: 43 | O103: 624 | P103: 0 | Q103: 667 | S103: 0.008333333333 | T103: 667
I104: 90 | J104: 7 | K104: 2024 | L104: =IF(M104=0,"",IF(Ijour=0,MIN(DATE(YEAR(DebAmort),MONTH(DebAmort)+MoisD+(I104-1)*Imois,Jour2),DATE(YEAR(DebAmort),MONTH(DebAmort)+MoisD+1+(I104-1)*Imois,0)),DATE(YEAR(DebAmort),MONTH(DebAmort),Jour1+(I104-1)*Ijour))) -> 2024-08-31 | M104: 4559 | N104: 38 | O104: 629 | P104: 0 | Q104: 667 | S104: 0.008333333333 | T104: 667
I105: 91 | J105: 6 | K105: 2024 | L105: =IF(M105=0,"",IF(Ijour=0,MIN(DATE(YEAR(DebAmort),MONTH(DebAmort)+(I105-1)*Imois,Jour1),DATE(YEAR(DebAmort),MONTH(DebAmort)+1+(I105-1)*Imois,0)),DATE(YEAR(DebAmort),MONTH(DebAmort),Jour1+(I105-1)*Ijour))) -> 2024-09-30 | M105: 3930 | N105: 33 | O105: 634 | P105: 0 | Q105: 667 | S105: 0.008333333333 | T105: 667
I106: 92 | J106: 5 | K106: 2024 | L106: =IF(M106=0,"",IF(Ijour=0,MIN(DATE(YEAR(DebAmort),MONTH(DebAmort)+MoisD+(I106-1)*Imois,Jour2),DATE(YEAR(DebAmort),MONTH(DebAmort)+MoisD+1+(I106-1)*Imois,0)),DATE(YEAR(DebAmort),MONTH(DebAmort),Jour1+(I106-1)*Ijour))) -> 2024-10-31 | M106: 3296 | N106: 27 | O106: 640 | P106: 0 | Q106: 667 | S106: 0.008333333333 | T106: 667
I107: 93 | J107: 4 | K107: 2024 | L107: =IF(M107=0,"",IF(Ijour=0,MIN(DATE(YEAR(DebAmort),MONTH(DebAmort)+(I107-1)*Imois,Jour1),DATE(YEAR(DebAmort),MONTH(DebAmort)+1+(I107-1)*Imois,0)),DATE(YEAR(DebAmort),MONTH(DebAmort),Jour1+(I107-1)*Ijour))) -> 2024-11-30 | M107: 2656 | N107: 22 | O107: 645 | P107: 0 | Q107: 667 | S107: 0.008333333333 | T107: 667
I108: 94 | J108: 3 | K108: 2024 | L108: =IF(M108=0,"",IF(Ijour=0,MIN(DATE(YEAR(DebAmort),MONTH(DebAmort)+MoisD+(I108-1)*Imois,Jour2),DATE(YEAR(DebAmort),MONTH(DebAmort)+MoisD+1+(I108-1)*Imois,0)),DATE(YEAR(DebAmort),MONTH(DebAmort),Jour1+(I108-1)*Ijour))) -> 2024-12-31 | M108: 2011 | N108: 17 | O108: 650 | P108: 0 | Q108: 667 | S108: 0.008333333333 | T108: 667
I109: 95 | J109: 2 | K109: 2025 | L109: =IF(M109=0,"",IF(Ijour=0,MIN(DATE(YEAR(DebAmort),MONTH(DebAmort)+(I109-1)*Imois,Jour1),DATE(YEAR(DebAmort),MONTH(DebAmort)+1+(I109-1)*Imois,0)),DATE(YEAR(DebAmort),MONTH(DebAmort),Jour1+(I109-1)*Ijour))) -> 2025-01-31 | M109: 1361 | N109: 11 | O109: 656 | P109: 0 | Q109: 667 | S109: 0.008333333333 | T109: 667
I110: 96 | J110: 1 | K110: 2025 | L110: =IF(M110=0,"",IF(Ijour=0,MIN(DATE(YEAR(DebAmort),MONTH(DebAmort)+MoisD+(I110-1)*Imois,Jour2),DATE(YEAR(DebAmort),MONTH(DebAmort)+MoisD+1+(I110-1)*Imois,0)),DATE(YEAR(DebAmort),MONTH(DebAmort),Jour1+(I110-1)*Ijour))) -> 2025-02-28 | M110: 705 | N110: 6 | O110: 661 | P110: 0 | Q110: 667 | S110: 0.008333333333 | T110: 667
I111: 97 | J111: 0 | K111: 2025 | L111: =IF(M111=0,"",IF(Ijour=0,MIN(DATE(YEAR(DebAmort),MONTH(DebAmort)+(I111-1)*Imois,Jour1),DATE(YEAR(DebAmort),MONTH(DebAmort)+1+(I111-1)*Imois,0)),DATE(YEAR(DebAmort),MONTH(DebAmort),Jour1+(I111-1)*Ijour))) -> 2025-03-31 | M111: 44 | N111: 0 | O111: 44 | P111: 0 | Q111: 44 | S111: 0.008333333333 | T111: 667
L112: =IF(M112=0,"",IF(Ijour=0,MIN(DATE(YEAR(DebAmort),MONTH(DebAmort)+MoisD+(I112-1)*Imois,Jour2),DATE(YEAR(DebAmort),MONTH(DebAmort)+MoisD+1+(I112-1)*Imois,0)),DATE(YEAR(DebAmort),MONTH(DebAmort),Jour1+(I112-1)*Ijour))) ->  | M112: 0 | N112: 0 | O112: 0 | P112: 0 | Q112: 0 | S112: 0.008333333333 | T112: 667
L113: =IF(M113=0,"",IF(Ijour=0,MIN(DATE(YEAR(DebAmort),MONTH(DebAmort)+(I113-1)*Imois,Jour1),DATE(YEAR(DebAmort),MONTH(DebAmort)+1+(I113-1)*Imois,0)),DATE(YEAR(DebAmort),MONTH(DebAmort),Jour1+(I113-1)*Ijour))) ->  | M113: 0 | N113: 0 | O113: 0 | P113: 0 | Q113: 0 | S113: 0.008333333333 | T113: 667
L114: =IF(M114=0,"",IF(Ijour=0,MIN(DATE(YEAR(DebAmort),MONTH(DebAmort)+MoisD+(I114-1)*Imois,Jour2),DATE(YEAR(DebAmort),MONTH(DebAmort)+MoisD+1+(I114-1)*Imois,0)),DATE(YEAR(DebAmort),MONTH(DebAmort),Jour1+(I114-1)*Ijour))) ->  | M114: 0 | N114: 0 | O114: 0 | P114: 0 | Q114: 0 | S114: 0.008333333333 | T114: 667
L115: =IF(M115=0,"",IF(Ijour=0,MIN(DATE(YEAR(DebAmort),MONTH(DebAmort)+(I115-1)*Imois,Jour1),DATE(YEAR(DebAmort),MONTH(DebAmort)+1+(I115-1)*Imois,0)),DATE(YEAR(DebAmort),MONTH(DebAmort),Jour1+(I115-1)*Ijour))) ->  | M115: 0 | N115: 0 | O115: 0 | P115: 0 | Q115: 0 | S115: 0.008333333333 | T115: 667
L116: =IF(M116=0,"",IF(Ijour=0,MIN(DATE(YEAR(DebAmort),MONTH(DebAmort)+MoisD+(I116-1)*Imois,Jour2),DATE(YEAR(DebAmort),MONTH(DebAmort)+MoisD+1+(I116-1)*Imois,0)),DATE(YEAR(DebAmort),MONTH(DebAmort),Jour1+(I116-1)*Ijour))) ->  | M116: 0 | N116: 0 | O116: 0 | P116: 0 | Q116: 0 | S116: 0.008333333333 | T116: 667
L117: =IF(M117=0,"",IF(Ijour=0,MIN(DATE(YEAR(DebAmort),MONTH(DebAmort)+(I117-1)*Imois,Jour1),DATE(YEAR(DebAmort),MONTH(DebAmort)+1+(I117-1)*Imois,0)),DATE(YEAR(DebAmort),MONTH(DebAmort),Jour1+(I117-1)*Ijour))) ->  | M117: 0 | N117: 0 | O117: 0 | P117: 0 | Q117: 0 | S117: 0.008333333333 | T117: 667
L118: =IF(M118=0,"",IF(Ijour=0,MIN(DATE(YEAR(DebAmort),MONTH(DebAmort)+MoisD+(I118-1)*Imois,Jour2),DATE(YEAR(DebAmort),MONTH(DebAmort)+MoisD+1+(I118-1)*Imois,0)),DATE(YEAR(DebAmort),MONTH(DebAmort),Jour1+(I118-1)*Ijour))) ->  | M118: 0 | N118: 0 | O118: 0 | P118: 0 | Q118: 0 | S118: 0.008333333333 | T118: 667
L119: =IF(M119=0,"",IF(Ijour=0,MIN(DATE(YEAR(DebAmort),MONTH(DebAmort)+(I119-1)*Imois,Jour1),DATE(YEAR(DebAmort),MONTH(DebAmort)+1+(I119-1)*Imois,0)),DATE(YEAR(DebAmort),MONTH(DebAmort),Jour1+(I119-1)*Ijour))) ->  | M119: 0 | N119: 0 | O119: 0 | P119: 0 | Q119: 0 | S119: 0.008333333333 | T119: 667
L120: =IF(M120=0,"",IF(Ijour=0,MIN(DATE(YEAR(DebAmort),MONTH(DebAmort)+MoisD+(I120-1)*Imois,Jour2),DATE(YEAR(DebAmort),MONTH(DebAmort)+MoisD+1+(I120-1)*Imois,0)),DATE(YEAR(DebAmort),MONTH(DebAmort),Jour1+(I120-1)*Ijour))) ->  | M120: 0 | N120: 0 | O120: 0 | P120: 0 | Q120: 0 | S120: 0.008333333333 | T120: 667
L121: =IF(M121=0,"",IF(Ijour=0,MIN(DATE(YEAR(DebAmort),MONTH(DebAmort)+(I121-1)*Imois,Jour1),DATE(YEAR(DebAmort),MONTH(DebAmort)+1+(I121-1)*Imois,0)),DATE(YEAR(DebAmort),MONTH(DebAmort),Jour1+(I121-1)*Ijour))) ->  | M121: 0 | N121: 0 | O121: 0 | P121: 0 | Q121: 0 | S121: 0.008333333333 | T121: 667
L122: =IF(M122=0,"",IF(Ijour=0,MIN(DATE(YEAR(DebAmort),MONTH(DebAmort)+MoisD+(I122-1)*Imois,Jour2),DATE(YEAR(DebAmort),MONTH(DebAmort)+MoisD+1+(I122-1)*Imois,0)),DATE(YEAR(DebAmort),MONTH(DebAmort),Jour1+(I122-1)*Ijour))) ->  | M122: 0 | N122: 0 | O122: 0 | P122: 0 | Q122: 0 | S122: 0.008333333333 | T122: 667
L123: =IF(M123=0,"",IF(Ijour=0,MIN(DATE(YEAR(DebAmort),MONTH(DebAmort)+(I123-1)*Imois,Jour1),DATE(YEAR(DebAmort),MONTH(DebAmort)+1+(I123-1)*Imois,0)),DATE(YEAR(DebAmort),MONTH(DebAmort),Jour1+(I123-1)*Ijour))) ->  | M123: 0 | N123: 0 | O123: 0 | P123: 0 | Q123: 0 | S123: 0.008333333333 | T123: 667
L124: =IF(M124=0,"",IF(Ijour=0,MIN(DATE(YEAR(DebAmort),MONTH(DebAmort)+MoisD+(I124-1)*Imois,Jour2),DATE(YEAR(DebAmort),MONTH(DebAmort)+MoisD+1+(I124-1)*Imois,0)),DATE(YEAR(DebAmort),MONTH(DebAmort),Jour1+(I124-1)*Ijour))) ->  | M124: 0 | N124: 0 | O124: 0 | P124: 0 | Q124: 0 | S124: 0.008333333333 | T124: 667
L125: =IF(M125=0,"",IF(Ijour=0,MIN(DATE(YEAR(DebAmort),MONTH(DebAmort)+(I125-1)*Imois,Jour1),DATE(YEAR(DebAmort),MONTH(DebAmort)+1+(I125-1)*Imois,0)),DATE(YEAR(DebAmort),MONTH(DebAmort),Jour1+(I125-1)*Ijour))) ->  | M125: 0 | N125: 0 | O125: 0 | P125: 0 | Q125: 0 | S125: 0.008333333333 | T125: 667
L126: =IF(M126=0,"",IF(Ijour=0,MIN(DATE(YEAR(DebAmort),MONTH(DebAmort)+MoisD+(I126-1)*Imois,Jour2),DATE(YEAR(DebAmort),MONTH(DebAmort)+MoisD+1+(I126-1)*Imois,0)),DATE(YEAR(DebAmort),MONTH(DebAmort),Jour1+(I126-1)*Ijour))) ->  | M126: 0 | N126: 0 | O126: 0 | P126: 0 | Q126: 0 | S126: 0.008333333333 | T126: 667
L127: =IF(M127=0,"",IF(Ijour=0,MIN(DATE(YEAR(DebAmort),MONTH(DebAmort)+(I127-1)*Imois,Jour1),DATE(YEAR(DebAmort),MONTH(DebAmort)+1+(I127-1)*Imois,0)),DATE(YEAR(DebAmort),MONTH(DebAmort),Jour1+(I127-1)*Ijour))) ->  | M127: 0 | N127: 0 | O127: 0 | P127: 0 | Q127: 0 | S127: 0.008333333333 | T127: 667
L128: =IF(M128=0,"",IF(Ijour=0,MIN(DATE(YEAR(DebAmort),MONTH(DebAmort)+MoisD+(I128-1)*Imois,Jour2),DATE(YEAR(DebAmort),MONTH(DebAmort)+MoisD+1+(I128-1)*Imois,0)),DATE(YEAR(DebAmort),MONTH(DebAmort),Jour1+(I128-1)*Ijour))) ->  | M128: 0 | N128: 0 | O128: 0 | P128: 0 | Q128: 0 | S128: 0.008333333333 | T128: 667
L129: =IF(M129=0,"",IF(Ijour=0,MIN(DATE(YEAR(DebAmort),MONTH(DebAmort)+(I129-1)*Imois,Jour1),DATE(YEAR(DebAmort),MONTH(DebAmort)+1+(I129-1)*Imois,0)),DATE(YEAR(DebAmort),MONTH(DebAmort),Jour1+(I129-1)*Ijour))) ->  | M129: 0 | N129: 0 | O129: 0 | P129: 0 | Q129: 0 | S129: 0.008333333333 | T129: 667
L130: =IF(M130=0,"",IF(Ijour=0,MIN(DATE(YEAR(DebAmort),MONTH(DebAmort)+MoisD+(I130-1)*Imois,Jour2),DATE(YEAR(DebAmort),MONTH(DebAmort)+MoisD+1+(I130-1)*Imois,0)),DATE(YEAR(DebAmort),MONTH(DebAmort),Jour1+(I130-1)*Ijour))) ->  | M130: 0 | N130: 0 | O130: 0 | P130: 0 | Q130: 0 | S130: 0.008333333333 | T130: 667
L131: =IF(M131=0,"",IF(Ijour=0,MIN(DATE(YEAR(DebAmort),MONTH(DebAmort)+(I131-1)*Imois,Jour1),DATE(YEAR(DebAmort),MONTH(DebAmort)+1+(I131-1)*Imois,0)),DATE(YEAR(DebAmort),MONTH(DebAmort),Jour1+(I131-1)*Ijour))) ->  | M131: 0 | N131: 0 | O131: 0 | P131: 0 | Q131: 0 | S131: 0.008333333333 | T131: 667
L132: =IF(M132=0,"",IF(Ijour=0,MIN(DATE(YEAR(DebAmort),MONTH(DebAmort)+MoisD+(I132-1)*Imois,Jour2),DATE(YEAR(DebAmort),MONTH(DebAmort)+MoisD+1+(I132-1)*Imois,0)),DATE(YEAR(DebAmort),MONTH(DebAmort),Jour1+(I132-1)*Ijour))) ->  | M132: 0 | N132: 0 | O132: 0 | P132: 0 | Q132: 0 | S132: 0.008333333333 | T132: 667
L133: =IF(M133=0,"",IF(Ijour=0,MIN(DATE(YEAR(DebAmort),MONTH(DebAmort)+(I133-1)*Imois,Jour1),DATE(YEAR(DebAmort),MONTH(DebAmort)+1+(I133-1)*Imois,0)),DATE(YEAR(DebAmort),MONTH(DebAmort),Jour1+(I133-1)*Ijour))) ->  | M133: 0 | N133: 0 | O133: 0 | P133: 0 | Q133: 0 | S133: 0.008333333333 | T133: 667
L134: =IF(M134=0,"",IF(Ijour=0,MIN(DATE(YEAR(DebAmort),MONTH(DebAmort)+MoisD+(I134-1)*Imois,Jour2),DATE(YEAR(DebAmort),MONTH(DebAmort)+MoisD+1+(I134-1)*Imois,0)),DATE(YEAR(DebAmort),MONTH(DebAmort),Jour1+(I134-1)*Ijour))) ->  | M134: 0 | N134: 0 | O134: 0 | P134: 0 | Q134: 0 | S134: 0.008333333333 | T134: 667
L135: =IF(M135=0,"",IF(Ijour=0,MIN(DATE(YEAR(DebAmort),MONTH(DebAmort)+(I135-1)*Imois,Jour1),DATE(YEAR(DebAmort),MONTH(DebAmort)+1+(I135-1)*Imois,0)),DATE(YEAR(DebAmort),MONTH(DebAmort),Jour1+(I135-1)*Ijour))) ->  | M135: 0 | N135: 0 | O135: 0 | P135: 0 | Q135: 0 | S135: 0.008333333333 | T135: 667
L136: =IF(M136=0,"",IF(Ijour=0,MIN(DATE(YEAR(DebAmort),MONTH(DebAmort)+MoisD+(I136-1)*Imois,Jour2),DATE(YEAR(DebAmort),MONTH(DebAmort)+MoisD+1+(I136-1)*Imois,0)),DATE(YEAR(DebAmort),MONTH(DebAmort),Jour1+(I136-1)*Ijour))) ->  | M136: 0 | N136: 0 | O136: 0 | P136: 0 | Q136: 0 | S136: 0.008333333333 | T136: 667
L137: =IF(M137=0,"",IF(Ijour=0,MIN(DATE(YEAR(DebAmort),MONTH(DebAmort)+(I137-1)*Imois,Jour1),DATE(YEAR(DebAmort),MONTH(DebAmort)+1+(I137-1)*Imois,0)),DATE(YEAR(DebAmort),MONTH(DebAmort),Jour1+(I137-1)*Ijour))) ->  | M137: 0 | N137: 0 | O137: 0 | P137: 0 | Q137: 0 | S137: 0.008333333333 | T137: 667
L138: =IF(M138=0,"",IF(Ijour=0,MIN(DATE(YEAR(DebAmort),MONTH(DebAmort)+MoisD+(I138-1)*Imois,Jour2),DATE(YEAR(DebAmort),MONTH(DebAmort)+MoisD+1+(I138-1)*Imois,0)),DATE(YEAR(DebAmort),MONTH(DebAmort),Jour1+(I138-1)*Ijour))) ->  | M138: 0 | N138: 0 | O138: 0 | P138: 0 | Q138: 0 | S138: 0.008333333333 | T138: 667
L139: =IF(M139=0,"",IF(Ijour=0,MIN(DATE(YEAR(DebAmort),MONTH(DebAmort)+(I139-1)*Imois,Jour1),DATE(YEAR(DebAmort),MONTH(DebAmort)+1+(I139-1)*Imois,0)),DATE(YEAR(DebAmort),MONTH(DebAmort),Jour1+(I139-1)*Ijour))) ->  | M139: 0 | N139: 0 | O139: 0 | P139: 0 | Q139: 0 | S139: 0.008333333333 | T139: 667
L140: =IF(M140=0,"",IF(Ijour=0,MIN(DATE(YEAR(DebAmort),MONTH(DebAmort)+MoisD+(I140-1)*Imois,Jour2),DATE(YEAR(DebAmort),MONTH(DebAmort)+MoisD+1+(I140-1)*Imois,0)),DATE(YEAR(DebAmort),MONTH(DebAmort),Jour1+(I140-1)*Ijour))) ->  | M140: 0 | N140: 0 | O140: 0 | P140: 0 | Q140: 0 | S140: 0.008333333333 | T140: 667
L141: =IF(M141=0,"",IF(Ijour=0,MIN(DATE(YEAR(DebAmort),MONTH(DebAmort)+(I141-1)*Imois,Jour1),DATE(YEAR(DebAmort),MONTH(DebAmort)+1+(I141-1)*Imois,0)),DATE(YEAR(DebAmort),MONTH(DebAmort),Jour1+(I141-1)*Ijour))) ->  | M141: 0 | N141: 0 | O141: 0 | P141: 0 | Q141: 0 | S141: 0.008333333333 | T141: 667
L142: =IF(M142=0,"",IF(Ijour=0,MIN(DATE(YEAR(DebAmort),MONTH(DebAmort)+MoisD+(I142-1)*Imois,Jour2),DATE(YEAR(DebAmort),MONTH(DebAmort)+MoisD+1+(I142-1)*Imois,0)),DATE(YEAR(DebAmort),MONTH(DebAmort),Jour1+(I142-1)*Ijour))) ->  | M142: 0 | N142: 0 | O142: 0 | P142: 0 | Q142: 0 | S142: 0.008333333333 | T142: 667
J143: =IF(M143>0,NbEch+Différé+1-I143,"") ->  | K143: =IF(ISNUMBER(L143),YEAR(L143),"") ->  | L143: =IF(M143=0,"",IF(Ijour=0,MIN(DATE(YEAR(DebAmort),MONTH(DebAmort)+(I143-1)*Imois,Jour1),DATE(YEAR(DebAmort),MONTH(DebAmort)+1+(I143-1)*Imois,0)),DATE(YEAR(DebAmort),MONTH(DebAmort),Jour1+(I143-1)*Ijour))) ->  | M143: 0 | N143: 0 | O143: 0 | P143: 0 | Q143: 0 | S143: 0.008333333333 | T143: 667
L144: =IF(M144=0,"",IF(Ijour=0,MIN(DATE(YEAR(DebAmort),MONTH(DebAmort)+MoisD+(I144-1)*Imois,Jour2),DATE(YEAR(DebAmort),MONTH(DebAmort)+MoisD+1+(I144-1)*Imois,0)),DATE(YEAR(DebAmort),MONTH(DebAmort),Jour1+(I144-1)*Ijour))) ->  | M144: 0 | N144: 0 | O144: 0 | P144: 0 | Q144: 0 | S144: 0.008333333333 | T144: =IF(F144>0,F144,IF(E144>0,IF(AND(EchFIXE,S144>0),ROUND((M144-D144)*S144/(1-((1+S144)^-E144)),NbDeci),ROUND(M144/E144,NbDeci)),T143)) -> 667
L145: =IF(M145=0,"",IF(Ijour=0,MIN(DATE(YEAR(DebAmort),MONTH(DebAmort)+(I145-1)*Imois,Jour1),DATE(YEAR(DebAmort),MONTH(DebAmort)+1+(I145-1)*Imois,0)),DATE(YEAR(DebAmort),MONTH(DebAmort),Jour1+(I145-1)*Ijour))) ->  | M145: 0 | N145: 0 | O145: 0 | P145: 0 | Q145: 0 | S145: 0.008333333333 | T145: 667
L146: =IF(M146=0,"",IF(Ijour=0,MIN(DATE(YEAR(DebAmort),MONTH(DebAmort)+MoisD+(I146-1)*Imois,Jour2),DATE(YEAR(DebAmort),MONTH(DebAmort)+MoisD+1+(I146-1)*Imois,0)),DATE(YEAR(DebAmort),MONTH(DebAmort),Jour1+(I146-1)*Ijour))) ->  | M146: =M145-O145 -> 0 | N146: =IF(I146<=NoEchMaxi,ROUND(M146*S146,NbDeci),0) -> 0 | O146: =IF(OR(I146<=Différé,I146>NoEchMaxi),IF(DiffTotal,-N146,0),IF(I146>=NoEchRemb,M146,IF(T146-(N146*EchFIXE)>M146-2,M146,T146-(N146*EchFIXE))))+D146 -> 0 | P146: =IF(OR(M146=0,I146>NoEchMaxi),0,ROUND(FraisF+FraisV*M146,NbDeci))+G146 -> 0 | Q146: =SUM(N146:P146) -> 0 | S146: =IF(C146>0,IF(TauxActuariel,((C146+1)^(1/NbEchAn))-1,C146/NbEchAn),S145) -> 0.008333333333 | T146: 667
I147: =IF(M147=0,"",I146+1) ->  | L147: =IF(M147=0,"",IF(Ijour=0,MIN(DATE(YEAR(DebAmort),MONTH(DebAmort)+(I147-1)*Imois,Jour1),DATE(YEAR(DebAmort),MONTH(DebAmort)+1+(I147-1)*Imois,0)),DATE(YEAR(DebAmort),MONTH(DebAmort),Jour1+(I147-1)*Ijour))) ->  | M147: 0 | N147: 0 | O147: 0 | P147: 0 | Q147: 0 | S147: 0.008333333333 | T147: 667
L148: =IF(M148=0,"",IF(Ijour=0,MIN(DATE(YEAR(DebAmort),MONTH(DebAmort)+MoisD+(I148-1)*Imois,Jour2),DATE(YEAR(DebAmort),MONTH(DebAmort)+MoisD+1+(I148-1)*Imois,0)),DATE(YEAR(DebAmort),MONTH(DebAmort),Jour1+(I148-1)*Ijour))) ->  | M148: 0 | N148: 0 | O148: 0 | P148: 0 | Q148: 0 | S148: 0.008333333333 | T148: 667
L149: =IF(M149=0,"",IF(Ijour=0,MIN(DATE(YEAR(DebAmort),MONTH(DebAmort)+(I149-1)*Imois,Jour1),DATE(YEAR(DebAmort),MONTH(DebAmort)+1+(I149-1)*Imois,0)),DATE(YEAR(DebAmort),MONTH(DebAmort),Jour1+(I149-1)*Ijour))) ->  | M149: 0 | N149: 0 | O149: 0 | P149: 0 | Q149: 0 | S149: 0.008333333333 | T149: 667
L150: =IF(M150=0,"",IF(Ijour=0,MIN(DATE(YEAR(DebAmort),MONTH(DebAmort)+MoisD+(I150-1)*Imois,Jour2),DATE(YEAR(DebAmort),MONTH(DebAmort)+MoisD+1+(I150-1)*Imois,0)),DATE(YEAR(DebAmort),MONTH(DebAmort),Jour1+(I150-1)*Ijour))) ->  | M150: 0 | N150: 0 | O150: 0 | P150: 0 | Q150: 0 | S150: 0.008333333333 | T150: 667
L151: =IF(M151=0,"",IF(Ijour=0,MIN(DATE(YEAR(DebAmort),MONTH(DebAmort)+(I151-1)*Imois,Jour1),DATE(YEAR(DebAmort),MONTH(DebAmort)+1+(I151-1)*Imois,0)),DATE(YEAR(DebAmort),MONTH(DebAmort),Jour1+(I151-1)*Ijour))) ->  | M151: 0 | N151: 0 | O151: 0 | P151: 0 | Q151: 0 | S151: 0.008333333333 | T151: 667
L152: =IF(M152=0,"",IF(Ijour=0,MIN(DATE(YEAR(DebAmort),MONTH(DebAmort)+MoisD+(I152-1)*Imois,Jour2),DATE(YEAR(DebAmort),MONTH(DebAmort)+MoisD+1+(I152-1)*Imois,0)),DATE(YEAR(DebAmort),MONTH(DebAmort),Jour1+(I152-1)*Ijour))) ->  | M152: 0 | N152: 0 | O152: 0 | P152: 0 | Q152: 0 | S152: 0.008333333333 | T152: 667
L153: =IF(M153=0,"",IF(Ijour=0,MIN(DATE(YEAR(DebAmort),MONTH(DebAmort)+(I153-1)*Imois,Jour1),DATE(YEAR(DebAmort),MONTH(DebAmort)+1+(I153-1)*Imois,0)),DATE(YEAR(DebAmort),MONTH(DebAmort),Jour1+(I153-1)*Ijour))) ->  | M153: 0 | N153: 0 | O153: 0 | P153: 0 | Q153: 0 | S153: 0.008333333333 | T153: 667
L154: =IF(M154=0,"",IF(Ijour=0,MIN(DATE(YEAR(DebAmort),MONTH(DebAmort)+MoisD+(I154-1)*Imois,Jour2),DATE(YEAR(DebAmort),MONTH(DebAmort)+MoisD+1+(I154-1)*Imois,0)),DATE(YEAR(DebAmort),MONTH(DebAmort),Jour1+(I154-1)*Ijour))) ->  | M154: 0 | N154: 0 | O154: 0 | P154: 0 | Q154: 0 | S154: 0.008333333333 | T154: 667
L155: =IF(M155=0,"",IF(Ijour=0,MIN(DATE(YEAR(DebAmort),MONTH(DebAmort)+(I155-1)*Imois,Jour1),DATE(YEAR(DebAmort),MONTH(DebAmort)+1+(I155-1)*Imois,0)),DATE(YEAR(DebAmort),MONTH(DebAmort),Jour1+(I155-1)*Ijour))) ->  | M155: 0 | N155: 0 | O155: 0 | P155: 0 | Q155: 0 | S155: 0.008333333333 | T155: 667
L156: =IF(M156=0,"",IF(Ijour=0,MIN(DATE(YEAR(DebAmort),MONTH(DebAmort)+MoisD+(I156-1)*Imois,Jour2),DATE(YEAR(DebAmort),MONTH(DebAmort)+MoisD+1+(I156-1)*Imois,0)),DATE(YEAR(DebAmort),MONTH(DebAmort),Jour1+(I156-1)*Ijour))) ->  | M156: 0 | N156: 0 | O156: 0 | P156: 0 | Q156: 0 | S156: 0.008333333333 | T156: 667
L157: =IF(M157=0,"",IF(Ijour=0,MIN(DATE(YEAR(DebAmort),MONTH(DebAmort)+(I157-1)*Imois,Jour1),DATE(YEAR(DebAmort),MONTH(DebAmort)+1+(I157-1)*Imois,0)),DATE(YEAR(DebAmort),MONTH(DebAmort),Jour1+(I157-1)*Ijour))) ->  | M157: 0 | N157: 0 | O157: 0 | P157: 0 | Q157: 0 | S157: 0.008333333333 | T157: 667
L158: =IF(M158=0,"",IF(Ijour=0,MIN(DATE(YEAR(DebAmort),MONTH(DebAmort)+MoisD+(I158-1)*Imois,Jour2),DATE(YEAR(DebAmort),MONTH(DebAmort)+MoisD+1+(I158-1)*Imois,0)),DATE(YEAR(DebAmort),MONTH(DebAmort),Jour1+(I158-1)*Ijour))) ->  | M158: 0 | N158: 0 | O158: 0 | P158: 0 | Q158: 0 | S158: 0.008333333333 | T158: 667
L159: =IF(M159=0,"",IF(Ijour=0,MIN(DATE(YEAR(DebAmort),MONTH(DebAmort)+(I159-1)*Imois,Jour1),DATE(YEAR(DebAmort),MONTH(DebAmort)+1+(I159-1)*Imois,0)),DATE(YEAR(DebAmort),MONTH(DebAmort),Jour1+(I159-1)*Ijour))) ->  | M159: 0 | N159: 0 | O159: 0 | P159: 0 | Q159: 0 | S159: 0.008333333333 | T159: 667
L160: =IF(M160=0,"",IF(Ijour=0,MIN(DATE(YEAR(DebAmort),MONTH(DebAmort)+MoisD+(I160-1)*Imois,Jour2),DATE(YEAR(DebAmort),MONTH(DebAmort)+MoisD+1+(I160-1)*Imois,0)),DATE(YEAR(DebAmort),MONTH(DebAmort),Jour1+(I160-1)*Ijour))) ->  | M160: 0 | N160: 0 | O160: 0 | P160: 0 | Q160: 0 | S160: 0.008333333333 | T160: 667
L161: =IF(M161=0,"",IF(Ijour=0,MIN(DATE(YEAR(DebAmort),MONTH(DebAmort)+(I161-1)*Imois,Jour1),DATE(YEAR(DebAmort),MONTH(DebAmort)+1+(I161-1)*Imois,0)),DATE(YEAR(DebAmort),MONTH(DebAmort),Jour1+(I161-1)*Ijour))) ->  | M161: 0 | N161: 0 | O161: 0 | P161: 0 | Q161: 0 | S161: 0.008333333333 | T161: 667
L162: =IF(M162=0,"",IF(Ijour=0,MIN(DATE(YEAR(DebAmort),MONTH(DebAmort)+MoisD+(I162-1)*Imois,Jour2),DATE(YEAR(DebAmort),MONTH(DebAmort)+MoisD+1+(I162-1)*Imois,0)),DATE(YEAR(DebAmort),MONTH(DebAmort),Jour1+(I162-1)*Ijour))) ->  | M162: 0 | N162: 0 | O162: 0 | P162: 0 | Q162: 0 | S162: 0.008333333333 | T162: 667
L163: =IF(M163=0,"",IF(Ijour=0,MIN(DATE(YEAR(DebAmort),MONTH(DebAmort)+(I163-1)*Imois,Jour1),DATE(YEAR(DebAmort),MONTH(DebAmort)+1+(I163-1)*Imois,0)),DATE(YEAR(DebAmort),MONTH(DebAmort),Jour1+(I163-1)*Ijour))) ->  | M163: 0 | N163: 0 | O163: 0 | P163: 0 | Q163: 0 | S163: 0.008333333333 | T163: 667
L164: =IF(M164=0,"",IF(Ijour=0,MIN(DATE(YEAR(DebAmort),MONTH(DebAmort)+MoisD+(I164-1)*Imois,Jour2),DATE(YEAR(DebAmort),MONTH(DebAmort)+MoisD+1+(I164-1)*Imois,0)),DATE(YEAR(DebAmort),MONTH(DebAmort),Jour1+(I164-1)*Ijour))) ->  | M164: 0 | N164: 0 | O164: 0 | P164: 0 | Q164: 0 | S164: 0.008333333333 | T164: 667
L165: =IF(M165=0,"",IF(Ijour=0,MIN(DATE(YEAR(DebAmort),MONTH(DebAmort)+(I165-1)*Imois,Jour1),DATE(YEAR(DebAmort),MONTH(DebAmort)+1+(I165-1)*Imois,0)),DATE(YEAR(DebAmort),MONTH(DebAmort),Jour1+(I165-1)*Ijour))) ->  | M165: 0 | N165: 0 | O165: 0 | P165: 0 | Q165: 0 | S165: 0.008333333333 | T165: 667
L166: =IF(M166=0,"",IF(Ijour=0,MIN(DATE(YEAR(DebAmort),MONTH(DebAmort)+MoisD+(I166-1)*Imois,Jour2),DATE(YEAR(DebAmort),MONTH(DebAmort)+MoisD+1+(I166-1)*Imois,0)),DATE(YEAR(DebAmort),MONTH(DebAmort),Jour1+(I166-1)*Ijour))) ->  | M166: 0 | N166: 0 | O166: 0 | P166: 0 | Q166: 0 | S166: 0.008333333333 | T166: 667
L167: =IF(M167=0,"",IF(Ijour=0,MIN(DATE(YEAR(DebAmort),MONTH(DebAmort)+(I167-1)*Imois,Jour1),DATE(YEAR(DebAmort),MONTH(DebAmort)+1+(I167-1)*Imois,0)),DATE(YEAR(DebAmort),MONTH(DebAmort),Jour1+(I167-1)*Ijour))) ->  | M167: 0 | N167: 0 | O167: 0 | P167: 0 | Q167: 0 | S167: 0.008333333333 | T167: 667
L168: =IF(M168=0,"",IF(Ijour=0,MIN(DATE(YEAR(DebAmort),MONTH(DebAmort)+MoisD+(I168-1)*Imois,Jour2),DATE(YEAR(DebAmort),MONTH(DebAmort)+MoisD+1+(I168-1)*Imois,0)),DATE(YEAR(DebAmort),MONTH(DebAmort),Jour1+(I168-1)*Ijour))) ->  | M168: 0 | N168: 0 | O168: 0 | P168: 0 | Q168: 0 | S168: 0.008333333333 | T168: 667
L169: =IF(M169=0,"",IF(Ijour=0,MIN(DATE(YEAR(DebAmort),MONTH(DebAmort)+(I169-1)*Imois,Jour1),DATE(YEAR(DebAmort),MONTH(DebAmort)+1+(I169-1)*Imois,0)),DATE(YEAR(DebAmort),MONTH(DebAmort),Jour1+(I169-1)*Ijour))) ->  | M169: 0 | N169: 0 | O169: 0 | P169: 0 | Q169: 0 | S169: 0.008333333333 | T169: 667
L170: =IF(M170=0,"",IF(Ijour=0,MIN(DATE(YEAR(DebAmort),MONTH(DebAmort)+MoisD+(I170-1)*Imois,Jour2),DATE(YEAR(DebAmort),MONTH(DebAmort)+MoisD+1+(I170-1)*Imois,0)),DATE(YEAR(DebAmort),MONTH(DebAmort),Jour1+(I170-1)*Ijour))) ->  | M170: 0 | N170: 0 | O170: 0 | P170: 0 | Q170: 0 | S170: 0.008333333333 | T170: 667
L171: =IF(M171=0,"",IF(Ijour=0,MIN(DATE(YEAR(DebAmort),MONTH(DebAmort)+(I171-1)*Imois,Jour1),DATE(YEAR(DebAmort),MONTH(DebAmort)+1+(I171-1)*Imois,0)),DATE(YEAR(DebAmort),MONTH(DebAmort),Jour1+(I171-1)*Ijour))) ->  | M171: 0 | N171: 0 | O171: 0 | P171: 0 | Q171: 0 | S171: 0.008333333333 | T171: 667
L172: =IF(M172=0,"",IF(Ijour=0,MIN(DATE(YEAR(DebAmort),MONTH(DebAmort)+MoisD+(I172-1)*Imois,Jour2),DATE(YEAR(DebAmort),MONTH(DebAmort)+MoisD+1+(I172-1)*Imois,0)),DATE(YEAR(DebAmort),MONTH(DebAmort),Jour1+(I172-1)*Ijour))) ->  | M172: 0 | N172: 0 | O172: 0 | P172: 0 | Q172: 0 | S172: 0.008333333333 | T172: 667
L173: =IF(M173=0,"",IF(Ijour=0,MIN(DATE(YEAR(DebAmort),MONTH(DebAmort)+(I173-1)*Imois,Jour1),DATE(YEAR(DebAmort),MONTH(DebAmort)+1+(I173-1)*Imois,0)),DATE(YEAR(DebAmort),MONTH(DebAmort),Jour1+(I173-1)*Ijour))) ->  | M173: 0 | N173: 0 | O173: 0 | P173: 0 | Q173: 0 | S173: 0.008333333333 | T173: 667
L174: =IF(M174=0,"",IF(Ijour=0,MIN(DATE(YEAR(DebAmort),MONTH(DebAmort)+MoisD+(I174-1)*Imois,Jour2),DATE(YEAR(DebAmort),MONTH(DebAmort)+MoisD+1+(I174-1)*Imois,0)),DATE(YEAR(DebAmort),MONTH(DebAmort),Jour1+(I174-1)*Ijour))) ->  | M174: 0 | N174: 0 | O174: 0 | P174: 0 | Q174: 0 | S174: 0.008333333333 | T174: 667
L175: =IF(M175=0,"",IF(Ijour=0,MIN(DATE(YEAR(DebAmort),MONTH(DebAmort)+(I175-1)*Imois,Jour1),DATE(YEAR(DebAmort),MONTH(DebAmort)+1+(I175-1)*Imois,0)),DATE(YEAR(DebAmort),MONTH(DebAmort),Jour1+(I175-1)*Ijour))) ->  | M175: 0 | N175: 0 | O175: 0 | P175: 0 | Q175: 0 | S175: 0.008333333333 | T175: 667
L176: =IF(M176=0,"",IF(Ijour=0,MIN(DATE(YEAR(DebAmort),MONTH(DebAmort)+MoisD+(I176-1)*Imois,Jour2),DATE(YEAR(DebAmort),MONTH(DebAmort)+MoisD+1+(I176-1)*Imois,0)),DATE(YEAR(DebAmort),MONTH(DebAmort),Jour1+(I176-1)*Ijour))) ->  | M176: 0 | N176: 0 | O176: 0 | P176: 0 | Q176: 0 | S176: 0.008333333333 | T176: 667
L177: =IF(M177=0,"",IF(Ijour=0,MIN(DATE(YEAR(DebAmort),MONTH(DebAmort)+(I177-1)*Imois,Jour1),DATE(YEAR(DebAmort),MONTH(DebAmort)+1+(I177-1)*Imois,0)),DATE(YEAR(DebAmort),MONTH(DebAmort),Jour1+(I177-1)*Ijour))) ->  | M177: 0 | N177: 0 | O177: 0 | P177: 0 | Q177: 0 | S177: 0.008333333333 | T177: 667
L178: =IF(M178=0,"",IF(Ijour=0,MIN(DATE(YEAR(DebAmort),MONTH(DebAmort)+MoisD+(I178-1)*Imois,Jour2),DATE(YEAR(DebAmort),MONTH(DebAmort)+MoisD+1+(I178-1)*Imois,0)),DATE(YEAR(DebAmort),MONTH(DebAmort),Jour1+(I178-1)*Ijour))) ->  | M178: 0 | N178: 0 | O178: 0 | P178: 0 | Q178: 0 | S178: 0.008333333333 | T178: 667
L179: =IF(M179=0,"",IF(Ijour=0,MIN(DATE(YEAR(DebAmort),MONTH(DebAmort)+(I179-1)*Imois,Jour1),DATE(YEAR(DebAmort),MONTH(DebAmort)+1+(I179-1)*Imois,0)),DATE(YEAR(DebAmort),MONTH(DebAmort),Jour1+(I179-1)*Ijour))) ->  | M179: 0 | N179: 0 | O179: 0 | P179: 0 | Q179: 0 | S179: 0.008333333333 | T179: 667
L180: =IF(M180=0,"",IF(Ijour=0,MIN(DATE(YEAR(DebAmort),MONTH(DebAmort)+MoisD+(I180-1)*Imois,Jour2),DATE(YEAR(DebAmort),MONTH(DebAmort)+MoisD+1+(I180-1)*Imois,0)),DATE(YEAR(DebAmort),MONTH(DebAmort),Jour1+(I180-1)*Ijour))) ->  | M180: 0 | N180: 0 | O180: 0 | P180: 0 | Q180: 0 | S180: 0.008333333333 | T180: 667
L181: =IF(M181=0,"",IF(Ijour=0,MIN(DATE(YEAR(DebAmort),MONTH(DebAmort)+(I181-1)*Imois,Jour1),DATE(YEAR(DebAmort),MONTH(DebAmort)+1+(I181-1)*Imois,0)),DATE(YEAR(DebAmort),MONTH(DebAmort),Jour1+(I181-1)*Ijour))) ->  | M181: 0 | N181: 0 | O181: 0 | P181: 0 | Q181: 0 | S181: 0.008333333333 | T181: 667
L182: =IF(M182=0,"",IF(Ijour=0,MIN(DATE(YEAR(DebAmort),MONTH(DebAmort)+MoisD+(I182-1)*Imois,Jour2),DATE(YEAR(DebAmort),MONTH(DebAmort)+MoisD+1+(I182-1)*Imois,0)),DATE(YEAR(DebAmort),MONTH(DebAmort),Jour1+(I182-1)*Ijour))) ->  | M182: 0 | N182: 0 | O182: 0 | P182: 0 | Q182: 0 | S182: 0.008333333333 | T182: 667
L183: =IF(M183=0,"",IF(Ijour=0,MIN(DATE(YEAR(DebAmort),MONTH(DebAmort)+(I183-1)*Imois,Jour1),DATE(YEAR(DebAmort),MONTH(DebAmort)+1+(I183-1)*Imois,0)),DATE(YEAR(DebAmort),MONTH(DebAmort),Jour1+(I183-1)*Ijour))) ->  | M183: 0 | N183: 0 | O183: 0 | P183: 0 | Q183: 0 | S183: 0.008333333333 | T183: 667
L184: =IF(M184=0,"",IF(Ijour=0,MIN(DATE(YEAR(DebAmort),MONTH(DebAmort)+MoisD+(I184-1)*Imois,Jour2),DATE(YEAR(DebAmort),MONTH(DebAmort)+MoisD+1+(I184-1)*Imois,0)),DATE(YEAR(DebAmort),MONTH(DebAmort),Jour1+(I184-1)*Ijour))) ->  | M184: 0 | N184: 0 | O184: 0 | P184: 0 | Q184: 0 | S184: 0.008333333333 | T184: 667
L185: =IF(M185=0,"",IF(Ijour=0,MIN(DATE(YEAR(DebAmort),MONTH(DebAmort)+(I185-1)*Imois,Jour1),DATE(YEAR(DebAmort),MONTH(DebAmort)+1+(I185-1)*Imois,0)),DATE(YEAR(DebAmort),MONTH(DebAmort),Jour1+(I185-1)*Ijour))) ->  | M185: 0 | N185: 0 | O185: 0 | P185: 0 | Q185: 0 | S185: 0.008333333333 | T185: 667
L186: =IF(M186=0,"",IF(Ijour=0,MIN(DATE(YEAR(DebAmort),MONTH(DebAmort)+MoisD+(I186-1)*Imois,Jour2),DATE(YEAR(DebAmort),MONTH(DebAmort)+MoisD+1+(I186-1)*Imois,0)),DATE(YEAR(DebAmort),MONTH(DebAmort),Jour1+(I186-1)*Ijour))) ->  | M186: 0 | N186: 0 | O186: 0 | P186: 0 | Q186: 0 | S186: 0.008333333333 | T186: 667
L187: =IF(M187=0,"",IF(Ijour=0,MIN(DATE(YEAR(DebAmort),MONTH(DebAmort)+(I187-1)*Imois,Jour1),DATE(YEAR(DebAmort),MONTH(DebAmort)+1+(I187-1)*Imois,0)),DATE(YEAR(DebAmort),MONTH(DebAmort),Jour1+(I187-1)*Ijour))) ->  | M187: 0 | N187: 0 | O187: 0 | P187: 0 | Q187: 0 | S187: 0.008333333333 | T187: 667
L188: =IF(M188=0,"",IF(Ijour=0,MIN(DATE(YEAR(DebAmort),MONTH(DebAmort)+MoisD+(I188-1)*Imois,Jour2),DATE(YEAR(DebAmort),MONTH(DebAmort)+MoisD+1+(I188-1)*Imois,0)),DATE(YEAR(DebAmort),MONTH(DebAmort),Jour1+(I188-1)*Ijour))) ->  | M188: 0 | N188: 0 | O188: 0 | P188: 0 | Q188: 0 | S188: 0.008333333333 | T188: 667
L189: =IF(M189=0,"",IF(Ijour=0,MIN(DATE(YEAR(DebAmort),MONTH(DebAmort)+(I189-1)*Imois,Jour1),DATE(YEAR(DebAmort),MONTH(DebAmort)+1+(I189-1)*Imois,0)),DATE(YEAR(DebAmort),MONTH(DebAmort),Jour1+(I189-1)*Ijour))) ->  | M189: 0 | N189: 0 | O189: 0 | P189: 0 | Q189: 0 | S189: 0.008333333333 | T189: 667
L190: =IF(M190=0,"",IF(Ijour=0,MIN(DATE(YEAR(DebAmort),MONTH(DebAmort)+MoisD+(I190-1)*Imois,Jour2),DATE(YEAR(DebAmort),MONTH(DebAmort)+MoisD+1+(I190-1)*Imois,0)),DATE(YEAR(DebAmort),MONTH(DebAmort),Jour1+(I190-1)*Ijour))) ->  | M190: 0 | N190: 0 | O190: 0 | P190: 0 | Q190: 0 | S190: 0.008333333333 | T190: 667
L191: =IF(M191=0,"",IF(Ijour=0,MIN(DATE(YEAR(DebAmort),MONTH(DebAmort)+(I191-1)*Imois,Jour1),DATE(YEAR(DebAmort),MONTH(DebAmort)+1+(I191-1)*Imois,0)),DATE(YEAR(DebAmort),MONTH(DebAmort),Jour1+(I191-1)*Ijour))) ->  | M191: 0 | N191: 0 | O191: 0 | P191: 0 | Q191: 0 | S191: 0.008333333333 | T191: 667
L192: =IF(M192=0,"",IF(Ijour=0,MIN(DATE(YEAR(DebAmort),MONTH(DebAmort)+MoisD+(I192-1)*Imois,Jour2),DATE(YEAR(DebAmort),MONTH(DebAmort)+MoisD+1+(I192-1)*Imois,0)),DATE(YEAR(DebAmort),MONTH(DebAmort),Jour1+(I192-1)*Ijour))) ->  | M192: 0 | N192: 0 | O192: 0 | P192: 0 | Q192: 0 | S192: 0.008333333333 | T192: 667
L193: =IF(M193=0,"",IF(Ijour=0,MIN(DATE(YEAR(DebAmort),MONTH(DebAmort)+(I193-1)*Imois,Jour1),DATE(YEAR(DebAmort),MONTH(DebAmort)+1+(I193-1)*Imois,0)),DATE(YEAR(DebAmort),MONTH(DebAmort),Jour1+(I193-1)*Ijour))) ->  | M193: 0 | N193: 0 | O193: 0 | P193: 0 | Q193: 0 | S193: 0.008333333333 | T193: 667
L194: =IF(M194=0,"",IF(Ijour=0,MIN(DATE(YEAR(DebAmort),MONTH(DebAmort)+MoisD+(I194-1)*Imois,Jour2),DATE(YEAR(DebAmort),MONTH(DebAmort)+MoisD+1+(I194-1)*Imois,0)),DATE(YEAR(DebAmort),MONTH(DebAmort),Jour1+(I194-1)*Ijour))) ->  | M194: 0 | N194: 0 | O194: 0 | P194: 0 | Q194: 0 | S194: 0.008333333333 | T194: 667
L195: =IF(M195=0,"",IF(Ijour=0,MIN(DATE(YEAR(DebAmort),MONTH(DebAmort)+(I195-1)*Imois,Jour1),DATE(YEAR(DebAmort),MONTH(DebAmort)+1+(I195-1)*Imois,0)),DATE(YEAR(DebAmort),MONTH(DebAmort),Jour1+(I195-1)*Ijour))) ->  | M195: 0 | N195: 0 | O195: 0 | P195: 0 | Q195: 0 | S195: 0.008333333333 | T195: 667
L196: =IF(M196=0,"",IF(Ijour=0,MIN(DATE(YEAR(DebAmort),MONTH(DebAmort)+MoisD+(I196-1)*Imois,Jour2),DATE(YEAR(DebAmort),MONTH(DebAmort)+MoisD+1+(I196-1)*Imois,0)),DATE(YEAR(DebAmort),MONTH(DebAmort),Jour1+(I196-1)*Ijour))) ->  | M196: 0 | N196: 0 | O196: 0 | P196: 0 | Q196: 0 | S196: 0.008333333333 | T196: 667
L197: =IF(M197=0,"",IF(Ijour=0,MIN(DATE(YEAR(DebAmort),MONTH(DebAmort)+(I197-1)*Imois,Jour1),DATE(YEAR(DebAmort),MONTH(DebAmort)+1+(I197-1)*Imois,0)),DATE(YEAR(DebAmort),MONTH(DebAmort),Jour1+(I197-1)*Ijour))) ->  | M197: 0 | N197: 0 | O197: 0 | P197: 0 | Q197: 0 | S197: 0.008333333333 | T197: 667
L198: =IF(M198=0,"",IF(Ijour=0,MIN(DATE(YEAR(DebAmort),MONTH(DebAmort)+MoisD+(I198-1)*Imois,Jour2),DATE(YEAR(DebAmort),MONTH(DebAmort)+MoisD+1+(I198-1)*Imois,0)),DATE(YEAR(DebAmort),MONTH(DebAmort),Jour1+(I198-1)*Ijour))) ->  | M198: 0 | N198: 0 | O198: 0 | P198: 0 | Q198: 0 | S198: 0.008333333333 | T198: 667
L199: =IF(M199=0,"",IF(Ijour=0,MIN(DATE(YEAR(DebAmort),MONTH(DebAmort)+(I199-1)*Imois,Jour1),DATE(YEAR(DebAmort),MONTH(DebAmort)+1+(I199-1)*Imois,0)),DATE(YEAR(DebAmort),MONTH(DebAmort),Jour1+(I199-1)*Ijour))) ->  | M199: 0 | N199: 0 | O199: 0 | P199: 0 | Q199: 0 | S199: 0.008333333333 | T199: 667
L200: =IF(M200=0,"",IF(Ijour=0,MIN(DATE(YEAR(DebAmort),MONTH(DebAmort)+MoisD+(I200-1)*Imois,Jour2),DATE(YEAR(DebAmort),MONTH(DebAmort)+MoisD+1+(I200-1)*Imois,0)),DATE(YEAR(DebAmort),MONTH(DebAmort),Jour1+(I200-1)*Ijour))) ->  | M200: 0 | N200: 0 | O200: 0 | P200: 0 | Q200: 0 | S200: 0.008333333333 | T200: 667
... 248 more rows

Sheet Avancé (hidden)
I1: Colonne
B2: Décimalisation de la monnaie | I2: Non
B3: Nombre de décimales | D3: 0 | I3: Verouillé
I4: (A CACHER)
B5: Type d'amortissement
I9: 1
B11: Limitation de l'amortissement
I12: FALSE
C14: à | E14: an(s) et / ou | G14: mois
I15: FALSE
D17: =IF(I12=TRUE,(D14*12+F14)*NbEchAn/12,99999) -> 99999 | E17: =IF(AND(I12,I15),(D14*12+F14)*NbEchAn/12,99999) -> 99999
B19: Calcul première échéance
B21: Date première échéance : | D21: =DebAmort -> 2017-03-31
B22: Date déblocage théorique : | D22: =IF(Ijour=0,MIN(DATE(YEAR(DebAmort),MONTH(DebAmort)-MoisD-Imois,Jour2),DATE(YEAR(DebAmort),MONTH(DebAmort)-MoisD+1-Imois,0)),DATE(YEAR(DebAmort),MONTH(DebAmort),Jour1-Ijour)) -> 2017-02-28 | E22: =" (Durée période : "&F37&" jours)" -> (Durée période : 31 jours)
B23: Date déblocage réel : | D23: =DebAmort -> 2017-03-31 | E23: =" (Durée période : "&G37&" jours)" -> (Durée période : 0 jours) | I23: 523
I27: 1
D32: -1- | E32: -2- | F32: -3-
B33: Date déblocage fonds : | D33: =D22 -> 2017-02-28 | E33: =D23 -> 2017-03-31 | F33: =D23 -> 2017-03-31
B34: Montant des Intérêts : | D34: =ROUND('Loan Dry'!M15*'Loan Dry'!S15,NbDeci) -> 335 | E34: =IF(TauxActuariel, ROUND('Loan Dry'!M15*((('Loan Dry'!E5+1)^(G37/365))-1),NbDeci), ROUND('Loan Dry'!M15*('Loan Dry'!E5*G37/365),NbDeci)) -> 0
B35: Montant du capital : | D35: 0 | E35: =IF(AND(1<=Différé,DiffTotal),-E34,D35) -> 0
B36: Total échéance (hors frais) : | D36: =D34+D35 -> 335 | E36: =E34+E35 -> 0 | F36: =F34+F35 -> 0
C37: =IF(I27=1,D22,D23) -> 2017-02-28 | D37: =IF(I27=1,D34)+IF(I27=2,E34)+IF(I27=3,F34) -> 335 | E37: =IF(I27=1,D35)+IF(I27=2,E35)+IF(I27=3,F35) -> 0 | F37: =D21-D22 -> 31 | G37: =D21-D23 -> 0

Sheet Drying
A1: 2 | C1: Recall days of harvesting | D1: =time_harv -> 10 | F1: 1.Tons wet paddy | G1: 2.Tons dried paddy | H1: 3. price wet paddy | I1: 4.Price dried paddy | J1: 5.Riel Margin per kilo | K1: 6.USD Margin per Ton | L1: 7.Nb of tons photo sensitive | M1: 8.Nb of tons non-photo-sensitive | N1: 9. Nb of loading photosensitive | O1: 10. Nb of loading non- photosensitive | P1: 11. Hours needed for photosensitive | Q1: 12. Hours needed for non-photosensitive | R1: 13.Days needed for photosensitive | S1: 14.Days needed (for non-photosensitive) | T1: 15. nb of dryer | U1: 16. Dep dryer | V1: 17. Dep elect | W1: 18. Int | X1: 19. Labour | Y1: 20. Total Fixed costs | Z1: 21. Fixed costs per ton (USD) | AA1: 22. Electricity costs | AB1: 23. Fuel cost | AC1: 24. Variable labor | AD1: 25.Seasonal loan interests | AE1: 26. Total variable costs | AF1: 27. Total variable cost/tons | AG1: 28. Total dry costs per ton | AH1: 29. Total dry and storage costs per ton | AI1: 30. total dry per kilo in riel | AJ1: 31. total dry and storage costs per kilo in riel
A2: Back to menu | F2: =+Drying!D3 -> 200 | G2: =+Tableau1[[#This Row],[1.Tons wet paddy]]*(1-Parameters!$E$28) -> 176 | H2: =SUMPRODUCT('Rice production'!$E$5:$E$12,'Rice production'!$I$5:$I$12) -> 900 | I2: =IF($A$1=1,SUMPRODUCT('Rice production'!$E$5:$E$12,'Rice production'!$K$5:$K$12),SUMPRODUCT('Rice production'!$E$19:$E$26,'Rice production'!$N$19:$N$26)) -> 1225 | J2: =+Tableau1[[#This Row],[4.Price dried paddy]]*SUMPRODUCT('Rice production'!$E$5:$E$12,'Rice production'!$L$5:$L$12)-Tableau1[[#This Row],[3. price wet paddy]] -> 178 | K2: =+Tableau1[[#This Row],[5.Riel Margin per kilo]]/4000*1000 -> 44.5 | L2: =Tableau1[[#This Row],[1.Tons wet paddy]]*SUMPRODUCT('Rice production'!$E$5:$E$12*('Rice production'!$C$5:$C$12="photo-sensitive")) -> 100 | M2: =Tableau1[[#This Row],[1.Tons wet paddy]]*SUMPRODUCT('Rice production'!$E$5:$E$12*('Rice production'!$C$5:$C$12="non photo-sensitive")) -> 100 | N2: =(Tableau1[[#This Row],[7.Nb of tons photo sensitive]]/Parameters!$E$3) -> 3.333333333 | O2: =Tableau1[[#This Row],[8.Nb of tons non-photo-sensitive]]/Parameters!$E$3 -> 3.333333333 | P2: =Tableau1[[#This Row],[9. Nb of loading photosensitive]]*(Parameters!$E$28/Parameters!$E$29)+Tableau1[[#This Row],[9. Nb of loading photosensitive]]*(Parameters!$E$31+Parameters!$E$32)/60 -> 33.55555556 | Q2: =Tableau1[[#This Row],[10. Nb of loading non- photosensitive]]*(Parameters!$E$28/Parameters!$E$29) -> 26.66666667 | R2: =ROUNDUP(+Tableau1[[#This Row],[11. Hours needed for photosensitive]]/Parameters!$E$30,1) -> 1.7 | S2: =ROUNDUP(+Tableau1[[#This Row],[12. Hours needed for non-photosensitive]]/Parameters!$E$30,1) -> 1.4 | T2: =IFERROR(INT(MAX(Tableau1[[#This Row],[13.Days needed for photosensitive]],Tableau1[[#This Row],[14.Days needed (for non-photosensitive)]])/($D$1*'Rice production'!$H$13)),0)+1 -> 1 | U2: =Parameters!$E$7*Tableau1[[#This Row],[15. nb of dryer]] -> 7500 | V2: =Parameters!$E$12 -> 1200 | W2: =+Total_Intérêts/'Loan Dry'!$G$3*Tableau1[[#This Row],[15. nb of dryer]] -> 2841.714286 | X2: =SUMPRODUCT(Parameters!$E$40:$E$43,Parameters!$G$40:$G$43) -> 7200 | Y2: =SUM(Tableau1[[#This Row],[16. Dep dryer]:[19. Labour]]) -> 18741.71429 | Z2: =Y2/Tableau1[[#This Row],[2.Tons dried paddy]] -> 106.487013 | AA2: =+(Tableau1[[#This Row],[11. Hours needed for photosensitive]]+Tableau1[[#This Row],[12. Hours needed for non-photosensitive]])*Parameters!$E$25*Parameters!$E$34 -> 155.825 | AB2: =Parameters!$E$35*(Tableau1[[#This Row],[11. Hours needed for photosensitive]]+Tableau1[[#This Row],[12. Hours needed for non-photosensitive]])*Parameters!$E$36/4000 -> 1806.666667 | AC2: =+Tableau1[[#This Row],[1.Tons wet paddy]]/Parameters!$E$46*Parameters!$E$45 -> 285.7142857 | AD2: =IF($A$1=1,0,(Tableau1[[#This Row],[3. price wet paddy]]*Tableau1[[#This Row],[1.Tons wet paddy]]*Parameters!$E$22/12*$D$9))*1000/4000 -> 1500 | AE2: =+SUM(Tableau1[[#This Row],[22. Electricity costs]:[25.Seasonal loan interests]]) -> 3748.205952 | AF2: =+Tableau1[[#This Row],[26. Total variable costs]]/Tableau1[[#This Row],[2.Tons dried paddy]] -> 21.29662473 | AG2: =+Tableau1[[#This Row],[27. Total variable cost/tons]]+Tableau1[[#This Row],[21. Fixed costs per ton (USD)]] -> 127.7836377 | AH2: =+Tableau1[[#This Row],[28. Total dry costs per ton]]+Storage!P6 -> 134.4060538 | AI2: =+Tableau1[[#This Row],[28. Total dry costs per ton]]/1000*4000 -> 511.1345509 | AJ2: =+Tableau1[[#This Row],[30. total dry per kilo in riel]]+Storage!Q6 -> 537.6242152
B3: H31 | C3: First value | D3: 200 | F3: =+F2+Drying!$D$4 -> 400 | G3: =+Tableau1[[#This Row],[1.Tons wet paddy]]*(1-Parameters!$E$28) -> 352 | H3: =SUMPRODUCT('Rice production'!$E$5:$E$12,'Rice production'!$I$5:$I$12) -> 900 | I3: =IF($A$1=1,SUMPRODUCT('Rice production'!$E$5:$E$12,'Rice production'!$K$5:$K$12),SUMPRODUCT('Rice production'!$E$19:$E$26,'Rice production'!$N$19:$N$26)) -> 1225 | J3: =+Tableau1[[#This Row],[4.Price dried paddy]]*SUMPRODUCT('Rice production'!$E$5:$E$12,'Rice production'!$L$5:$L$12)-Tableau1[[#This Row],[3. price wet paddy]] -> 178 | K3: =+Tableau1[[#This Row],[5.Riel Margin per kilo]]/4000*1000 -> 44.5 | L3: =Tableau1[[#This Row],[1.Tons wet paddy]]*SUMPRODUCT('Rice production'!$E$5:$E$12*('Rice production'!$C$5:$C$12="photo-sensitive")) -> 200 | M3: =Tableau1[[#This Row],[1.Tons wet paddy]]*SUMPRODUCT('Rice production'!$E$5:$E$12*('Rice production'!$C$5:$C$12="non photo-sensitive")) -> 200 | N3: =(Tableau1[[#This Row],[7.Nb of tons photo sensitive]]/Parameters!$E$3) -> 6.666666667 | O3: =Tableau1[[#This Row],[8.Nb of tons non-photo-sensitive]]/Parameters!$E$3 -> 6.666666667 | P3: =Tableau1[[#This Row],[9. Nb of loading photosensitive]]*(Parameters!$E$28/Parameters!$E$29)+Tableau1[[#This Row],[9. Nb of loading photosensitive]]*(Parameters!$E$31+Parameters!$E$32)/60 -> 67.11111111 | Q3: =Tableau1[[#This Row],[10. Nb of loading non- photosensitive]]*(Parameters!$E$28/Parameters!$E$29) -> 53.33333333 | R3: =ROUNDUP(+Tableau1[[#This Row],[11. Hours needed for photosensitive]]/Parameters!$E$30,1) -> 3.4 | S3: =ROUNDUP(+Tableau1[[#This Row],[12. Hours needed for non-photosensitive]]/Parameters!$E$30,1) -> 2.7 | T3: =IFERROR(INT(MAX(Tableau1[[#This Row],[13.Days needed for photosensitive]],Tableau1[[#This Row],[14.Days needed (for non-photosensitive)]])/($D$1*'Rice production'!$H$13)),0)+1 -> 1 | U3: =Parameters!$E$7*Tableau1[[#This Row],[15. nb of dryer]] -> 7500 | V3: =Parameters!$E$12 -> 1200 | W3: =+Total_Intérêts/'Loan Dry'!$G$3*Tableau1[[#This Row],[15. nb of dryer]] -> 2841.714286 | X3: =SUMPRODUCT(Parameters!$E$40:$E$43,Parameters!$G$40:$G$43) -> 7200 | Y3: =SUM(Tableau1[[#This Row],[16. Dep dryer]:[19. Labour]]) -> 18741.71429 | Z3: =Y3/Tableau1[[#This Row],[2.Tons dried paddy]] -> 53.24350649 | AA3: =+(Tableau1[[#This Row],[11. Hours needed for photosensitive]]+Tableau1[[#This Row],[12. Hours needed for non-photosensitive]])*Parameters!$E$25*Parameters!$E$34 -> 311.65 | AB3: =Parameters!$E$35*(Tableau1[[#This Row],[11. Hours needed for photosensitive]]+Tableau1[[#This Row],[12. Hours needed for non-photosensitive]])*Parameters!$E$36/4000 -> 3613.333333 | AC3: =+Tableau1[[#This Row],[1.Tons wet paddy]]/Parameters!$E$46*Parameters!$E$45 -> 571.4285714 | AD3: =IF($A$1=1,0,(Tableau1[[#This Row],[3. price wet paddy]]*Tableau1[[#This Row],[1.Tons wet paddy]]*Parameters!$E$22/12*$D$9))*1000/4000 -> 3000 | AE3: =+SUM(Tableau1[[#This Row],[22. Electricity costs]:[25.Seasonal loan interests]]) -> 7496.411905 | AF3: =+Tableau1[[#This Row],[26. Total variable costs]]/Tableau1[[#This Row],[2.Tons dried paddy]] -> 21.29662473 | AG3: =+Tableau1[[#This Row],[27. Total variable cost/tons]]+Tableau1[[#This Row],[21. Fixed costs per ton (USD)]] -> 74.54013122 | AH3: =+Tableau1[[#This Row],[28. Total dry costs per ton]]+Storage!P7 -> 79.50694329 | AI3: =+Tableau1[[#This Row],[28. Total dry costs per ton]]/1000*4000 -> 298.1605249 | AJ3: =+Tableau1[[#This Row],[30. total dry per kilo in riel]]+Storage!Q7 -> 318.0277732
A4: Go to | B4: H32 | C4: Pace | D4: 200 | F4: =+F3+Drying!$D$4 -> 600 | G4: =+Tableau1[[#This Row],[1.Tons wet paddy]]*(1-Parameters!$E$28) -> 528 | H4: =SUMPRODUCT('Rice production'!$E$5:$E$12,'Rice production'!$I$5:$I$12) -> 900 | I4: =IF($A$1=1,SUMPRODUCT('Rice production'!$E$5:$E$12,'Rice production'!$K$5:$K$12),SUMPRODUCT('Rice production'!$E$19:$E$26,'Rice production'!$N$19:$N$26)) -> 1225 | J4: =+Tableau1[[#This Row],[4.Price dried paddy]]*SUMPRODUCT('Rice production'!$E$5:$E$12,'Rice production'!$L$5:$L$12)-Tableau1[[#This Row],[3. price wet paddy]] -> 178 | K4: =+Tableau1[[#This Row],[5.Riel Margin per kilo]]/4000*1000 -> 44.5 | L4: =Tableau1[[#This Row],[1.Tons wet paddy]]*SUMPRODUCT('Rice production'!$E$5:$E$12*('Rice production'!$C$5:$C$12="photo-sensitive")) -> 300 | M4: =Tableau1[[#This Row],[1.Tons wet paddy]]*SUMPRODUCT('Rice production'!$E$5:$E$12*('Rice production'!$C$5:$C$12="non photo-sensitive")) -> 300 | N4: =(Tableau1[[#This Row],[7.Nb of tons photo sensitive]]/Parameters!$E$3) -> 10 | O4: =Tableau1[[#This Row],[8.Nb of tons non-photo-sensitive]]/Parameters!$E$3 -> 10 | P4: =Tableau1[[#This Row],[9. Nb of loading photosensitive]]*(Parameters!$E$28/Parameters!$E$29)+Tableau1[[#This Row],[9. Nb of loading photosensitive]]*(Parameters!$E$31+Parameters!$E$32)/60 -> 100.6666667 | Q4: =Tableau1[[#This Row],[10. Nb of loading non- photosensitive]]*(Parameters!$E$28/Parameters!$E$29) -> 80 | R4: =ROUNDUP(+Tableau1[[#This Row],[11. Hours needed for photosensitive]]/Parameters!$E$30,1) -> 5.1 | S4: =ROUNDUP(+Tableau1[[#This Row],[12. Hours needed for non-photosensitive]]/Parameters!$E$30,1) -> 4 | T4: =IFERROR(INT(MAX(Tableau1[[#This Row],[13.Days needed for photosensitive]],Tableau1[[#This Row],[14.Days needed (for non-photosensitive)]])/($D$1*'Rice production'!$H$13)),0)+1 -> 1 | U4: =Parameters!$E$7*Tableau1[[#This Row],[15. nb of dryer]] -> 7500 | V4: =Parameters!$E$12 -> 1200 | W4: =+Total_Intérêts/'Loan Dry'!$G$3*Tableau1[[#This Row],[15. nb of dryer]] -> 2841.714286 | X4: =SUMPRODUCT(Parameters!$E$40:$E$43,Parameters!$G$40:$G$43) -> 7200 | Y4: =SUM(Tableau1[[#This Row],[16. Dep dryer]:[19. Labour]]) -> 18741.71429 | Z4: =Y4/Tableau1[[#This Row],[2.Tons dried paddy]] -> 35.495671 | AA4: =+(Tableau1[[#This Row],[11. Hours needed for photosensitive]]+Tableau1[[#This Row],[12. Hours needed for non-photosensitive]])*Parameters!$E$25*Parameters!$E$34 -> 467.475 | AB4: =Parameters!$E$35*(Tableau1[[#This Row],[11. Hours needed for photosensitive]]+Tableau1[[#This Row],[12. Hours needed for non-photosensitive]])*Parameters!$E$36/4000 -> 5420 | AC4: =+Tableau1[[#This Row],[1.Tons wet paddy]]/Parameters!$E$46*Parameters!$E$45 -> 857.1428571 | AD4: =IF($A$1=1,0,(Tableau1[[#This Row],[3. price wet paddy]]*Tableau1[[#This Row],[1.Tons wet paddy]]*Parameters!$E$22/12*$D$9))*1000/4000 -> 4500 | AE4: =+SUM(Tableau1[[#This Row],[22. Electricity costs]:[25.Seasonal loan interests]]) -> 11244.61786 | AF4: =+Tableau1[[#This Row],[26. Total variable costs]]/Tableau1[[#This Row],[2.Tons dried paddy]] -> 21.29662473 | AG4: =+Tableau1[[#This Row],[27. Total variable cost/tons]]+Tableau1[[#This Row],[21. Fixed costs per ton (USD)]] -> 56.79229573 | AH4: =+Tableau1[[#This Row],[28. Total dry costs per ton]]+Storage!P8 -> 59.63047405 | AI4: =+Tableau1[[#This Row],[28. Total dry costs per ton]]/1000*4000 -> 227.1691829 | AJ4: =+Tableau1[[#This Row],[30. total dry per kilo in riel]]+Storage!Q8 -> 238.5218962
A5: User Guide | F5: =+F4+Drying!$D$4 -> 800 | G5: =+Tableau1[[#This Row],[1.Tons wet paddy]]*(1-Parameters!$E$28) -> 704 | H5: =SUMPRODUCT('Rice production'!$E$5:$E$12,'Rice production'!$I$5:$I$12) -> 900 | I5: =IF($A$1=1,SUMPRODUCT('Rice production'!$E$5:$E$12,'Rice production'!$K$5:$K$12),SUMPRODUCT('Rice production'!$E$19:$E$26,'Rice production'!$N$19:$N$26)) -> 1225 | J5: =+Tableau1[[#This Row],[4.Price dried paddy]]*SUMPRODUCT('Rice production'!$E$5:$E$12,'Rice production'!$L$5:$L$12)-Tableau1[[#This Row],[3. price wet paddy]] -> 178 | K5: =+Tableau1[[#This Row],[5.Riel Margin per kilo]]/4000*1000 -> 44.5 | L5: =Tableau1[[#This Row],[1.Tons wet paddy]]*SUMPRODUCT('Rice production'!$E$5:$E$12*('Rice production'!$C$5:$C$12="photo-sensitive")) -> 400 | M5: =Tableau1[[#This Row],[1.Tons wet paddy]]*SUMPRODUCT('Rice production'!$E$5:$E$12*('Rice production'!$C$5:$C$12="non photo-sensitive")) -> 400 | N5: =(Tableau1[[#This Row],[7.Nb of tons photo sensitive]]/Parameters!$E$3) -> 13.33333333 | O5: =Tableau1[[#This Row],[8.Nb of tons non-photo-sensitive]]/Parameters!$E$3 -> 13.33333333 | P5: =Tableau1[[#This Row],[9. Nb of loading photosensitive]]*(Parameters!$E$28/Parameters!$E$29)+Tableau1[[#This Row],[9. Nb of loading photosensitive]]*(Parameters!$E$31+Parameters!$E$32)/60 -> 134.2222222 | Q5: =Tableau1[[#This Row],[10. Nb of loading non- photosensitive]]*(Parameters!$E$28/Parameters!$E$29) -> 106.6666667 | R5: =ROUNDUP(+Tableau1[[#This Row],[11. Hours needed for photosensitive]]/Parameters!$E$30,1) -> 6.8 | S5: =ROUNDUP(+Tableau1[[#This Row],[12. Hours needed for non-photosensitive]]/Parameters!$E$30,1) -> 5.4 | T5: =IFERROR(INT(MAX(Tableau1[[#This Row],[13.Days needed for photosensitive]],Tableau1[[#This Row],[14.Days needed (for non-photosensitive)]])/($D$1*'Rice production'!$H$13)),0)+1 -> 1 | U5: =Parameters!$E$7*Tableau1[[#This Row],[15. nb of dryer]] -> 7500 | V5: =Parameters!$E$12 -> 1200 | W5: =+Total_Intérêts/'Loan Dry'!$G$3*Tableau1[[#This Row],[15. nb of dryer]] -> 2841.714286 | X5: =SUMPRODUCT(Parameters!$E$40:$E$43,Parameters!$G$40:$G$43) -> 7200 | Y5: =SUM(Tableau1[[#This Row],[16. Dep dryer]:[19. Labour]]) -> 18741.71429 | Z5: =Y5/Tableau1[[#This Row],[2.Tons dried paddy]] -> 26.62175325 | AA5: =+(Tableau1[[#This Row],[11. Hours needed for photosensitive]]+Tableau1[[#This Row],[12. Hours needed for non-photosensitive]])*Parameters!$E$25*Parameters!$E$34 -> 623.3 | AB5: =Parameters!$E$35*(Tableau1[[#This Row],[11. Hours needed for photosensitive]]+Tableau1[[#This Row],[12. Hours needed for non-photosensitive]])*Parameters!$E$36/4000 -> 7226.666667 | AC5: =+Tableau1[[#This Row],[1.Tons wet paddy]]/Parameters!$E$46*Parameters!$E$45 -> 1142.857143 | AD5: =IF($A$1=1,0,(Tableau1[[#This Row],[3. price wet paddy]]*Tableau1[[#This Row],[1.Tons wet paddy]]*Parameters!$E$22/12*$D$9))*1000/4000 -> 6000 | AE5: =+SUM(Tableau1[[#This Row],[22. Electricity costs]:[25.Seasonal loan interests]]) -> 14992.82381 | AF5: =+Tableau1[[#This Row],[26. Total variable costs]]/Tableau1[[#This Row],[2.Tons dried paddy]] -> 21.29662473 | AG5: =+Tableau1[[#This Row],[27. Total variable cost/tons]]+Tableau1[[#This Row],[21. Fixed costs per ton (USD)]] -> 47.91837798 | AH5: =+Tableau1[[#This Row],[28. Total dry costs per ton]]+Storage!P9 -> 50.40178401 | AI5: =+Tableau1[[#This Row],[28. Total dry costs per ton]]/1000*4000 -> 191.6735119 | AJ5: =+Tableau1[[#This Row],[30. total dry per kilo in riel]]+Storage!Q9 -> 201.607136
B6: H33 | F6: =+F5+Drying!$D$4 -> 1000 | G6: =+Tableau1[[#This Row],[1.Tons wet paddy]]*(1-Parameters!$E$28) -> 880 | H6: =SUMPRODUCT('Rice production'!$E$5:$E$12,'Rice production'!$I$5:$I$12) -> 900 | I6: =IF($A$1=1,SUMPRODUCT('Rice production'!$E$5:$E$12,'Rice production'!$K$5:$K$12),SUMPRODUCT('Rice production'!$E$19:$E$26,'Rice production'!$N$19:$N$26)) -> 1225 | J6: =+Tableau1[[#This Row],[4.Price dried paddy]]*SUMPRODUCT('Rice production'!$E$5:$E$12,'Rice production'!$L$5:$L$12)-Tableau1[[#This Row],[3. price wet paddy]] -> 178 | K6: =+Tableau1[[#This Row],[5.Riel Margin per kilo]]/4000*1000 -> 44.5 | L6: =Tableau1[[#This Row],[1.Tons wet paddy]]*SUMPRODUCT('Rice production'!$E$5:$E$12*('Rice production'!$C$5:$C$12="photo-sensitive")) -> 500 | M6: =Tableau1[[#This Row],[1.Tons wet paddy]]*SUMPRODUCT('Rice production'!$E$5:$E$12*('Rice production'!$C$5:$C$12="non photo-sensitive")) -> 500 | N6: =(Tableau1[[#This Row],[7.Nb of tons photo sensitive]]/Parameters!$E$3) -> 16.66666667 | O6: =Tableau1[[#This Row],[8.Nb of tons non-photo-sensitive]]/Parameters!$E$3 -> 16.66666667 | P6: =Tableau1[[#This Row],[9. Nb of loading photosensitive]]*(Parameters!$E$28/Parameters!$E$29)+Tableau1[[#This Row],[9. Nb of loading photosensitive]]*(Parameters!$E$31+Parameters!$E$32)/60 -> 167.7777778 | Q6: =Tableau1[[#This Row],[10. Nb of loading non- photosensitive]]*(Parameters!$E$28/Parameters!$E$29) -> 133.3333333 | R6: =ROUNDUP(+Tableau1[[#This Row],[11. Hours needed for photosensitive]]/Parameters!$E$30,1) -> 8.4 | S6: =ROUNDUP(+Tableau1[[#This Row],[12. Hours needed for non-photosensitive]]/Parameters!$E$30,1) -> 6.7 | T6: =IFERROR(INT(MAX(Tableau1[[#This Row],[13.Days needed for photosensitive]],Tableau1[[#This Row],[14.Days needed (for non-photosensitive)]])/($D$1*'Rice production'!$H$13)),0)+1 -> 1 | U6: =Parameters!$E$7*Tableau1[[#This Row],[15. nb of dryer]] -> 7500 | V6: =Parameters!$E$12 -> 1200 | W6: =+Total_Intérêts/'Loan Dry'!$G$3*Tableau1[[#This Row],[15. nb of dryer]] -> 2841.714286 | X6: =SUMPRODUCT(Parameters!$E$40:$E$43,Parameters!$G$40:$G$43) -> 7200 | Y6: =SUM(Tableau1[[#This Row],[16. Dep dryer]:[19. Labour]]) -> 18741.71429 | Z6: =Y6/Tableau1[[#This Row],[2.Tons dried paddy]] -> 21.2974026 | AA6: =+(Tableau1[[#This Row],[11. Hours needed for photosensitive]]+Tableau1[[#This Row],[12. Hours needed for non-photosensitive]])*Parameters!$E$25*Parameters!$E$34 -> 779.125 | AB6: =Parameters!$E$35*(Tableau1[[#This Row],[11. Hours needed for photosensitive]]+Tableau1[[#This Row],[12. Hours needed for non-photosensitive]])*Parameters!$E$36/4000 -> 9033.333333 | AC6: =+Tableau1[[#This Row],[1.Tons wet paddy]]/Parameters!$E$46*Parameters!$E$45 -> 1428.571429 | AD6: =IF($A$1=1,0,(Tableau1[[#This Row],[3. price wet paddy]]*Tableau1[[#This Row],[1.Tons wet paddy]]*Parameters!$E$22/12*$D$9))*1000/4000 -> 7500 | AE6: =+SUM(Tableau1[[#This Row],[22. Electricity costs]:[25.Seasonal loan interests]]) -> 18741.02976 | AF6: =+Tableau1[[#This Row],[26. Total variable costs]]/Tableau1[[#This Row],[2.Tons dried paddy]] -> 21.29662473 | AG6: =+Tableau1[[#This Row],[27. Total variable cost/tons]]+Tableau1[[#This Row],[21. Fixed costs per ton (USD)]] -> 42.59402733 | AH6: =+Tableau1[[#This Row],[28. Total dry costs per ton]]+Storage!P10 -> 45.07743336 | AI6: =+Tableau1[[#This Row],[28. Total dry costs per ton]]/1000*4000 -> 170.3761093 | AJ6: =+Tableau1[[#This Row],[30. total dry per kilo in riel]]+Storage!Q10 -> 180.3097334
A7: Investment | F7: =+F6+Drying!$D$4 -> 1200 | G7: =+Tableau1[[#This Row],[1.Tons wet paddy]]*(1-Parameters!$E$28) -> 1056 | H7: =SUMPRODUCT('Rice production'!$E$5:$E$12,'Rice production'!$I$5:$I$12) -> 900 | I7: =IF($A$1=1,SUMPRODUCT('Rice production'!$E$5:$E$12,'Rice production'!$K$5:$K$12),SUMPRODUCT('Rice production'!$E$19:$E$26,'Rice production'!$N$19:$N$26)) -> 1225 | J7: =+Tableau1[[#This Row],[4.Price dried paddy]]*SUMPRODUCT('Rice production'!$E$5:$E$12,'Rice production'!$L$5:$L$12)-Tableau1[[#This Row],[3. price wet paddy]] -> 178 | K7: =+Tableau1[[#This Row],[5.Riel Margin per kilo]]/4000*1000 -> 44.5 | L7: =Tableau1[[#This Row],[1.Tons wet paddy]]*SUMPRODUCT('Rice production'!$E$5:$E$12*('Rice production'!$C$5:$C$12="photo-sensitive")) -> 600 | M7: =Tableau1[[#This Row],[1.Tons wet paddy]]*SUMPRODUCT('Rice production'!$E$5:$E$12*('Rice production'!$C$5:$C$12="non photo-sensitive")) -> 600 | N7: =(Tableau1[[#This Row],[7.Nb of tons photo sensitive]]/Parameters!$E$3) -> 20 | O7: =Tableau1[[#This Row],[8.Nb of tons non-photo-sensitive]]/Parameters!$E$3 -> 20 | P7: =Tableau1[[#This Row],[9. Nb of loading photosensitive]]*(Parameters!$E$28/Parameters!$E$29)+Tableau1[[#This Row],[9. Nb of loading photosensitive]]*(Parameters!$E$31+Parameters!$E$32)/60 -> 201.3333333 | Q7: =Tableau1[[#This Row],[10. Nb of loading non- photosensitive]]*(Parameters!$E$28/Parameters!$E$29) -> 160 | R7: =ROUNDUP(+Tableau1[[#This Row],[11. Hours needed for photosensitive]]/Parameters!$E$30,1) -> 10.1 | S7: =ROUNDUP(+Tableau1[[#This Row],[12. Hours needed for non-photosensitive]]/Parameters!$E$30,1) -> 8 | T7: =IFERROR(INT(MAX(Tableau1[[#This Row],[13.Days needed for photosensitive]],Tableau1[[#This Row],[14.Days needed (for non-photosensitive)]])/($D$1*'Rice production'!$H$13)),0)+1 -> 2 | U7: =Parameters!$E$7*Tableau1[[#This Row],[15. nb of dryer]] -> 15000 | V7: =Parameters!$E$12 -> 1200 | W7: =+Total_Intérêts/'Loan Dry'!$G$3*Tableau1[[#This Row],[15. nb of dryer]] -> 5683.428571 | X7: =SUMPRODUCT(Parameters!$E$40:$E$43,Parameters!$G$40:$G$43) -> 7200 | Y7: =SUM(Tableau1[[#This Row],[16. Dep dryer]:[19. Labour]]) -> 29083.42857 | Z7: =Y7/Tableau1[[#This Row],[2.Tons dried paddy]] -> 27.54112554 | AA7: =+(Tableau1[[#This Row],[11. Hours needed for photosensitive]]+Tableau1[[#This Row],[12. Hours needed for non-photosensitive]])*Parameters!$E$25*Parameters!$E$34 -> 934.95 | AB7: =Parameters!$E$35*(Tableau1[[#This Row],[11. Hours needed for photosensitive]]+Tableau1[[#This Row],[12. Hours needed for non-photosensitive]])*Parameters!$E$36/4000 -> 10840 | AC7: =+Tableau1[[#This Row],[1.Tons wet paddy]]/Parameters!$E$46*Parameters!$E$45 -> 1714.285714 | AD7: =IF($A$1=1,0,(Tableau1[[#This Row],[3. price wet paddy]]*Tableau1[[#This Row],[1.Tons wet paddy]]*Parameters!$E$22/12*$D$9))*1000/4000 -> 9000 | AE7: =+SUM(Tableau1[[#This Row],[22. Electricity costs]:[25.Seasonal loan interests]]) -> 22489.23571 | AF7: =+Tableau1[[#This Row],[26. Total variable costs]]/Tableau1[[#This Row],[2.Tons dried paddy]] -> 21.29662473 | AG7: =+Tableau1[[#This Row],[27. Total variable cost/tons]]+Tableau1[[#This Row],[21. Fixed costs per ton (USD)]] -> 48.83775027 | AH7: =+Tableau1[[#This Row],[28. Total dry costs per ton]]+Storage!P11 -> 51.3211563 | AI7: =+Tableau1[[#This Row],[28. Total dry costs per ton]]/1000*4000 -> 195.3510011 | AJ7: =+Tableau1[[#This Row],[30. total dry per kilo in riel]]+Storage!Q11 -> 205.2846252
D8: If after storage, how many months | F8: =+F7+Drying!$D$4 -> 1400 | G8: =+Tableau1[[#This Row],[1.Tons wet paddy]]*(1-Parameters!$E$28) -> 1232 | H8: =SUMPRODUCT('Rice production'!$E$5:$E$12,'Rice production'!$I$5:$I$12) -> 900 | I8: =IF($A$1=1,SUMPRODUCT('Rice production'!$E$5:$E$12,'Rice production'!$K$5:$K$12),SUMPRODUCT('Rice production'!$E$19:$E$26,'Rice production'!$N$19:$N$26)) -> 1225 | J8: =+Tableau1[[#This Row],[4.Price dried paddy]]*SUMPRODUCT('Rice production'!$E$5:$E$12,'Rice production'!$L$5:$L$12)-Tableau1[[#This Row],[3. price wet paddy]] -> 178 | K8: =+Tableau1[[#This Row],[5.Riel Margin per kilo]]/4000*1000 -> 44.5 | L8: =Tableau1[[#This Row],[1.Tons wet paddy]]*SUMPRODUCT('Rice production'!$E$5:$E$12*('Rice production'!$C$5:$C$12="photo-sensitive")) -> 700 | M8: =Tableau1[[#This Row],[1.Tons wet paddy]]*SUMPRODUCT('Rice production'!$E$5:$E$12*('Rice production'!$C$5:$C$12="non photo-sensitive")) -> 700 | N8: =(Tableau1[[#This Row],[7.Nb of tons photo sensitive]]/Parameters!$E$3) -> 23.33333333 | O8: =Tableau1[[#This Row],[8.Nb of tons non-photo-sensitive]]/Parameters!$E$3 -> 23.33333333 | P8: =Tableau1[[#This Row],[9. Nb of loading photosensitive]]*(Parameters!$E$28/Parameters!$E$29)+Tableau1[[#This Row],[9. Nb of loading photosensitive]]*(Parameters!$E$31+Parameters!$E$32)/60 -> 234.8888889 | Q8: =Tableau1[[#This Row],[10. Nb of loading non- photosensitive]]*(Parameters!$E$28/Parameters!$E$29) -> 186.6666667 | R8: =ROUNDUP(+Tableau1[[#This Row],[11. Hours needed for photosensitive]]/Parameters!$E$30,1) -> 11.8 | S8: =ROUNDUP(+Tableau1[[#This Row],[12. Hours needed for non-photosensitive]]/Parameters!$E$30,1) -> 9.4 | T8: =IFERROR(INT(MAX(Tableau1[[#This Row],[13.Days needed for photosensitive]],Tableau1[[#This Row],[14.Days needed (for non-photosensitive)]])/($D$1*'Rice production'!$H$13)),0)+1 -> 2 | U8: =Parameters!$E$7*Tableau1[[#This Row],[15. nb of dryer]] -> 15000 | V8: =Parameters!$E$12 -> 1200 | W8: =+Total_Intérêts/'Loan Dry'!$G$3*Tableau1[[#This Row],[15. nb of dryer]] -> 5683.428571 | X8: =SUMPRODUCT(Parameters!$E$40:$E$43,Parameters!$G$40:$G$43) -> 7200 | Y8: =SUM(Tableau1[[#This Row],[16. Dep dryer]:[19. Labour]]) -> 29083.42857 | Z8: =Y8/Tableau1[[#This Row],[2.Tons dried paddy]] -> 23.60667904 | AA8: =+(Tableau1[[#This Row],[11. Hours needed for photosensitive]]+Tableau1[[#This Row],[12. Hours needed for non-photosensitive]])*Parameters!$E$25*Parameters!$E$34 -> 1090.775 | AB8: =Parameters!$E$35*(Tableau1[[#This Row],[11. Hours needed for photosensitive]]+Tableau1[[#This Row],[12. Hours needed for non-photosensitive]])*Parameters!$E$36/4000 -> 12646.66667 | AC8: =+Tableau1[[#This Row],[1.Tons wet paddy]]/Parameters!$E$46*Parameters!$E$45 -> 2000 | AD8: =IF($A$1=1,0,(Tableau1[[#This Row],[3. price wet paddy]]*Tableau1[[#This Row],[1.Tons wet paddy]]*Parameters!$E$22/12*$D$9))*1000/4000 -> 10500 | AE8: =+SUM(Tableau1[[#This Row],[22. Electricity costs]:[25.Seasonal loan interests]]) -> 26237.44167 | AF8: =+Tableau1[[#This Row],[26. Total variable costs]]/Tableau1[[#This Row],[2.Tons dried paddy]] -> 21.29662473 | AG8: =+Tableau1[[#This Row],[27. Total variable cost/tons]]+Tableau1[[#This Row],[21. Fixed costs per ton (USD)]] -> 44.90330376 | AH8: =+Tableau1[[#This Row],[28. Total dry costs per ton]]+Storage!P12 -> 47.3867098 | AI8: =+Tableau1[[#This Row],[28. Total dry costs per ton]]/1000*4000 -> 179.6132151 | AJ8: =+Tableau1[[#This Row],[30. total dry per kilo in riel]]+Storage!Q12 -> 189.5468392
A9: Rice information | D9: 4 | F9: =+F8+Drying!$D$4 -> 1600 | G9: =+Tableau1[[#This Row],[1.Tons wet paddy]]*(1-Parameters!$E$28) -> 1408 | H9: =SUMPRODUCT('Rice production'!$E$5:$E$12,'Rice production'!$I$5:$I$12) -> 900 | I9: =IF($A$1=1,SUMPRODUCT('Rice production'!$E$5:$E$12,'Rice production'!$K$5:$K$12),SUMPRODUCT('Rice production'!$E$19:$E$26,'Rice production'!$N$19:$N$26)) -> 1225 | J9: =+Tableau1[[#This Row],[4.Price dried paddy]]*SUMPRODUCT('Rice production'!$E$5:$E$12,'Rice production'!$L$5:$L$12)-Tableau1[[#This Row],[3. price wet paddy]] -> 178 | K9: =+Tableau1[[#This Row],[5.Riel Margin per kilo]]/4000*1000 -> 44.5 | L9: =Tableau1[[#This Row],[1.Tons wet paddy]]*SUMPRODUCT('Rice production'!$E$5:$E$12*('Rice production'!$C$5:$C$12="photo-sensitive")) -> 800 | M9: =Tableau1[[#This Row],[1.Tons wet paddy]]*SUMPRODUCT('Rice production'!$E$5:$E$12*('Rice production'!$C$5:$C$12="non photo-sensitive")) -> 800 | N9: =(Tableau1[[#This Row],[7.Nb of tons photo sensitive]]/Parameters!$E$3) -> 26.66666667 | O9: =Tableau1[[#This Row],[8.Nb of tons non-photo-sensitive]]/Parameters!$E$3 -> 26.66666667 | P9: =Tableau1[[#This Row],[9. Nb of loading photosensitive]]*(Parameters!$E$28/Parameters!$E$29)+Tableau1[[#This Row],[9. Nb of loading photosensitive]]*(Parameters!$E$31+Parameters!$E$32)/60 -> 268.4444444 | Q9: =Tableau1[[#This Row],[10. Nb of loading non- photosensitive]]*(Parameters!$E$28/Parameters!$E$29) -> 213.3333333 | R9: =ROUNDUP(+Tableau1[[#This Row],[11. Hours needed for photosensitive]]/Parameters!$E$30,1) -> 13.5 | S9: =ROUNDUP(+Tableau1[[#This Row],[12. Hours needed for non-photosensitive]]/Parameters!$E$30,1) -> 10.7 | T9: =IFERROR(INT(MAX(Tableau1[[#This Row],[13.Days needed for photosensitive]],Tableau1[[#This Row],[14.Days needed (for non-photosensitive)]])/($D$1*'Rice production'!$H$13)),0)+1 -> 2 | U9: =Parameters!$E$7*Tableau1[[#This Row],[15. nb of dryer]] -> 15000 | V9: =Parameters!$E$12 -> 1200 | W9: =+Total_Intérêts/'Loan Dry'!$G$3*Tableau1[[#This Row],[15. nb of dryer]] -> 5683.428571 | X9: =SUMPRODUCT(Parameters!$E$40:$E$43,Parameters!$G$40:$G$43) -> 7200 | Y9: =SUM(Tableau1[[#This Row],[16. Dep dryer]:[19. Labour]]) -> 29083.42857 | Z9: =Y9/Tableau1[[#This Row],[2.Tons dried paddy]] -> 20.65584416 | AA9: =+(Tableau1[[#This Row],[11. Hours needed for photosensitive]]+Tableau1[[#This Row],[12. Hours needed for non-photosensitive]])*Parameters!$E$25*Parameters!$E$34 -> 1246.6 | AB9: =Parameters!$E$35*(Tableau1[[#This Row],[11. Hours needed for photosensitive]]+Tableau1[[#This Row],[12. Hours needed for non-photosensitive]])*Parameters!$E$36/4000 -> 14453.33333 | AC9: =+Tableau1[[#This Row],[1.Tons wet paddy]]/Parameters!$E$46*Parameters!$E$45 -> 2285.714286 | AD9: =IF($A$1=1,0,(Tableau1[[#This Row],[3. price wet paddy]]*Tableau1[[#This Row],[1.Tons wet paddy]]*Parameters!$E$22/12*$D$9))*1000/4000 -> 12000 | AE9: =+SUM(Tableau1[[#This Row],[22. Electricity costs]:[25.Seasonal loan interests]]) -> 29985.64762 | AF9: =+Tableau1[[#This Row],[26. Total variable costs]]/Tableau1[[#This Row],[2.Tons dried paddy]] -> 21.29662473 | AG9: =+Tableau1[[#This Row],[27. Total variable cost/tons]]+Tableau1[[#This Row],[21. Fixed costs per ton (USD)]] -> 41.95246889 | AH9: =+Tableau1[[#This Row],[28. Total dry costs per ton]]+Storage!P13 -> 44.43587492 | AI9: =+Tableau1[[#This Row],[28. Total dry costs per ton]]/1000*4000 -> 167.8098755 | AJ9: =+Tableau1[[#This Row],[30. total dry per kilo in riel]]+Storage!Q13 -> 177.7434997
F10: =+F9+Drying!$D$4 -> 1800 | G10: =+Tableau1[[#This Row],[1.Tons wet paddy]]*(1-Parameters!$E$28) -> 1584 | H10: =SUMPRODUCT('Rice production'!$E$5:$E$12,'Rice production'!$I$5:$I$12) -> 900 | I10: =IF($A$1=1,SUMPRODUCT('Rice production'!$E$5:$E$12,'Rice production'!$K$5:$K$12),SUMPRODUCT('Rice production'!$E$19:$E$26,'Rice production'!$N$19:$N$26)) -> 1225 | J10: =+Tableau1[[#This Row],[4.Price dried paddy]]*SUMPRODUCT('Rice production'!$E$5:$E$12,'Rice production'!$L$5:$L$12)-Tableau1[[#This Row],[3. price wet paddy]] -> 178 | K10: =+Tableau1[[#This Row],[5.Riel Margin per kilo]]/4000*1000 -> 44.5 | L10: =Tableau1[[#This Row],[1.Tons wet paddy]]*SUMPRODUCT('Rice production'!$E$5:$E$12*('Rice production'!$C$5:$C$12="photo-sensitive")) -> 900 | M10: =Tableau1[[#This Row],[1.Tons wet paddy]]*SUMPRODUCT('Rice production'!$E$5:$E$12*('Rice production'!$C$5:$C$12="non photo-sensitive")) -> 900 | N10: =(Tableau1[[#This Row],[7.Nb of tons photo sensitive]]/Parameters!$E$3) -> 30 | O10: =Tableau1[[#This Row],[8.Nb of tons non-photo-sensitive]]/Parameters!$E$3 -> 30 | P10: =Tableau1[[#This Row],[9. Nb of loading photosensitive]]*(Parameters!$E$28/Parameters!$E$29)+Tableau1[[#This Row],[9. Nb of loading photosensitive]]*(Parameters!$E$31+Parameters!$E$32)/60 -> 302 | Q10: =Tableau1[[#This Row],[10. Nb of loading non- photosensitive]]*(Parameters!$E$28/Parameters!$E$29) -> 240 | R10: =ROUNDUP(+Tableau1[[#This Row],[11. Hours needed for photosensitive]]/Parameters!$E$30,1) -> 15.1 | S10: =ROUNDUP(+Tableau1[[#This Row],[12. Hours needed for non-photosensitive]]/Parameters!$E$30,1) -> 12 | T10: =IFERROR(INT(MAX(Tableau1[[#This Row],[13.Days needed for photosensitive]],Tableau1[[#This Row],[14.Days needed (for non-photosensitive)]])/($D$1*'Rice production'!$H$13)),0)+1 -> 2 | U10: =Parameters!$E$7*Tableau1[[#This Row],[15. nb of dryer]] -> 15000 | V10: =Parameters!$E$12 -> 1200 | W10: =+Total_Intérêts/'Loan Dry'!$G$3*Tableau1[[#This Row],[15. nb of dryer]] -> 5683.428571 | X10: =SUMPRODUCT(Parameters!$E$40:$E$43,Parameters!$G$40:$G$43) -> 7200 | Y10: =SUM(Tableau1[[#This Row],[16. Dep dryer]:[19. Labour]]) -> 29083.42857 | Z10: =Y10/Tableau1[[#This Row],[2.Tons dried paddy]] -> 18.36075036 | AA10: =+(Tableau1[[#This Row],[11. Hours needed for photosensitive]]+Tableau1[[#This Row],[12. Hours needed for non-photosensitive]])*Parameters!$E$25*Parameters!$E$34 -> 1402.425 | AB10: =Parameters!$E$35*(Tableau1[[#This Row],[11. Hours needed for photosensitive]]+Tableau1[[#This Row],[12. Hours needed for non-photosensitive]])*Parameters!$E$36/4000 -> 16260 | AC10: =+Tableau1[[#This Row],[1.Tons wet paddy]]/Parameters!$E$46*Parameters!$E$45 -> 2571.428571 | AD10: =IF($A$1=1,0,(Tableau1[[#This Row],[3. price wet paddy]]*Tableau1[[#This Row],[1.Tons wet paddy]]*Parameters!$E$22/12*$D$9))*1000/4000 -> 13500 | AE10: =+SUM(Tableau1[[#This Row],[22. Electricity costs]:[25.Seasonal loan interests]]) -> 33733.85357 | AF10: =+Tableau1[[#This Row],[26. Total variable costs]]/Tableau1[[#This Row],[2.Tons dried paddy]] -> 21.29662473 | AG10: =+Tableau1[[#This Row],[27. Total variable cost/tons]]+Tableau1[[#This Row],[21. Fixed costs per ton (USD)]] -> 39.65737509 | AH10: =+Tableau1[[#This Row],[28. Total dry costs per ton]]+Storage!P14 -> 42.14078112 | AI10: =+Tableau1[[#This Row],[28. Total dry costs per ton]]/1000*4000 -> 158.6295004 | AJ10: =+Tableau1[[#This Row],[30. total dry per kilo in riel]]+Storage!Q14 -> 168.5631245 | AQ10: Capacity (T) | AR10: Price (US$)
A11: Operation parameters | F11: =+F10+Drying!$D$4 -> 2000 | G11: =+Tableau1[[#This Row],[1.Tons wet paddy]]*(1-Parameters!$E$28) -> 1760 | H11: =SUMPRODUCT('Rice production'!$E$5:$E$12,'Rice production'!$I$5:$I$12) -> 900 | I11: =IF($A$1=1,SUMPRODUCT('Rice production'!$E$5:$E$12,'Rice production'!$K$5:$K$12),SUMPRODUCT('Rice production'!$E$19:$E$26,'Rice production'!$N$19:$N$26)) -> 1225 | J11: =+Tableau1[[#This Row],[4.Price dried paddy]]*SUMPRODUCT('Rice production'!$E$5:$E$12,'Rice production'!$L$5:$L$12)-Tableau1[[#This Row],[3. price wet paddy]] -> 178 | K11: =+Tableau1[[#This Row],[5.Riel Margin per kilo]]/4000*1000 -> 44.5 | L11: =Tableau1[[#This Row],[1.Tons wet paddy]]*SUMPRODUCT('Rice production'!$E$5:$E$12*('Rice production'!$C$5:$C$12="photo-sensitive")) -> 1000 | M11: =Tableau1[[#This Row],[1.Tons wet paddy]]*SUMPRODUCT('Rice production'!$E$5:$E$12*('Rice production'!$C$5:$C$12="non photo-sensitive")) -> 1000 | N11: =(Tableau1[[#This Row],[7.Nb of tons photo sensitive]]/Parameters!$E$3) -> 33.33333333 | O11: =Tableau1[[#This Row],[8.Nb of tons non-photo-sensitive]]/Parameters!$E$3 -> 33.33333333 | P11: =Tableau1[[#This Row],[9. Nb of loading photosensitive]]*(Parameters!$E$28/Parameters!$E$29)+Tableau1[[#This Row],[9. Nb of loading photosensitive]]*(Parameters!$E$31+Parameters!$E$32)/60 -> 335.5555556 | Q11: =Tableau1[[#This Row],[10. Nb of loading non- photosensitive]]*(Parameters!$E$28/Parameters!$E$29) -> 266.6666667 | R11: =ROUNDUP(+Tableau1[[#This Row],[11. Hours needed for photosensitive]]/Parameters!$E$30,1) -> 16.8 | S11: =ROUNDUP(+Tableau1[[#This Row],[12. Hours needed for non-photosensitive]]/Parameters!$E$30,1) -> 13.4 | T11: =IFERROR(INT(MAX(Tableau1[[#This Row],[13.Days needed for photosensitive]],Tableau1[[#This Row],[14.Days needed (for non-photosensitive)]])/($D$1*'Rice production'!$H$13)),0)+1 -> 2 | U11: =Parameters!$E$7*Tableau1[[#This Row],[15. nb of dryer]] -> 15000 | V11: =Parameters!$E$12 -> 1200 | W11: =+Total_Intérêts/'Loan Dry'!$G$3*Tableau1[[#This Row],[15. nb of dryer]] -> 5683.428571 | X11: =SUMPRODUCT(Parameters!$E$40:$E$43,Parameters!$G$40:$G$43) -> 7200 | Y11: =SUM(Tableau1[[#This Row],[16. Dep dryer]:[19. Labour]]) -> 29083.42857 | Z11: =Y11/Tableau1[[#This Row],[2.Tons dried paddy]] -> 16.52467532 | AA11: =+(Tableau1[[#This Row],[11. Hours needed for photosensitive]]+Tableau1[[#This Row],[12. Hours needed for non-photosensitive]])*Parameters!$E$25*Parameters!$E$34 -> 1558.25 | AB11: =Parameters!$E$35*(Tableau1[[#This Row],[11. Hours needed for photosensitive]]+Tableau1[[#This Row],[12. Hours needed for non-photosensitive]])*Parameters!$E$36/4000 -> 18066.66667 | AC11: =+Tableau1[[#This Row],[1.Tons wet paddy]]/Parameters!$E$46*Parameters!$E$45 -> 2857.142857 | AD11: =IF($A$1=1,0,(Tableau1[[#This Row],[3. price wet paddy]]*Tableau1[[#This Row],[1.Tons wet paddy]]*Parameters!$E$22/12*$D$9))*1000/4000 -> 15000 | AE11: =+SUM(Tableau1[[#This Row],[22. Electricity costs]:[25.Seasonal loan interests]]) -> 37482.05952 | AF11: =+Tableau1[[#This Row],[26. Total variable costs]]/Tableau1[[#This Row],[2.Tons dried paddy]] -> 21.29662473 | AG11: =+Tableau1[[#This Row],[27. Total variable cost/tons]]+Tableau1[[#This Row],[21. Fixed costs per ton (USD)]] -> 37.82130005 | AH11: =+Tableau1[[#This Row],[28. Total dry costs per ton]]+Storage!P15 -> 40.30470609 | AI11: =+Tableau1[[#This Row],[28. Total dry costs per ton]]/1000*4000 -> 151.2852002 | AJ11: =+Tableau1[[#This Row],[30. total dry per kilo in riel]]+Storage!Q15 -> 161.2188244 | AQ11: 15 T | AR11: 45000
F12: =+F11+Drying!$D$4 -> 2200 | G12: =+Tableau1[[#This Row],[1.Tons wet paddy]]*(1-Parameters!$E$28) -> 1936 | H12: =SUMPRODUCT('Rice production'!$E$5:$E$12,'Rice production'!$I$5:$I$12) -> 900 | I12: =IF($A$1=1,SUMPRODUCT('Rice production'!$E$5:$E$12,'Rice production'!$K$5:$K$12),SUMPRODUCT('Rice production'!$E$19:$E$26,'Rice production'!$N$19:$N$26)) -> 1225 | J12: =+Tableau1[[#This Row],[4.Price dried paddy]]*SUMPRODUCT('Rice production'!$E$5:$E$12,'Rice production'!$L$5:$L$12)-Tableau1[[#This Row],[3. price wet paddy]] -> 178 | K12: =+Tableau1[[#This Row],[5.Riel Margin per kilo]]/4000*1000 -> 44.5 | L12: =Tableau1[[#This Row],[1.Tons wet paddy]]*SUMPRODUCT('Rice production'!$E$5:$E$12*('Rice production'!$C$5:$C$12="photo-sensitive")) -> 1100 | M12: =Tableau1[[#This Row],[1.Tons wet paddy]]*SUMPRODUCT('Rice production'!$E$5:$E$12*('Rice production'!$C$5:$C$12="non photo-sensitive")) -> 1100 | N12: =(Tableau1[[#This Row],[7.Nb of tons photo sensitive]]/Parameters!$E$3) -> 36.66666667 | O12: =Tableau1[[#This Row],[8.Nb of tons non-photo-sensitive]]/Parameters!$E$3 -> 36.66666667 | P12: =Tableau1[[#This Row],[9. Nb of loading photosensitive]]*(Parameters!$E$28/Parameters!$E$29)+Tableau1[[#This Row],[9. Nb of loading photosensitive]]*(Parameters!$E$31+Parameters!$E$32)/60 -> 369.1111111 | Q12: =Tableau1[[#This Row],[10. Nb of loading non- photosensitive]]*(Parameters!$E$28/Parameters!$E$29) -> 293.3333333 | R12: =ROUNDUP(+Tableau1[[#This Row],[11. Hours needed for photosensitive]]/Parameters!$E$30,1) -> 18.5 | S12: =ROUNDUP(+Tableau1[[#This Row],[12. Hours needed for non-photosensitive]]/Parameters!$E$30,1) -> 14.7 | T12: =IFERROR(INT(MAX(Tableau1[[#This Row],[13.Days needed for photosensitive]],Tableau1[[#This Row],[14.Days needed (for non-photosensitive)]])/($D$1*'Rice production'!$H$13)),0)+1 -> 2 | U12: =Parameters!$E$7*Tableau1[[#This Row],[15. nb of dryer]] -> 15000 | V12: =Parameters!$E$12 -> 1200 | W12: =+Total_Intérêts/'Loan Dry'!$G$3*Tableau1[[#This Row],[15. nb of dryer]] -> 5683.428571 | X12: =SUMPRODUCT(Parameters!$E$40:$E$43,Parameters!$G$40:$G$43) -> 7200 | Y12: =SUM(Tableau1[[#This Row],[16. Dep dryer]:[19. Labour]]) -> 29083.42857 | Z12: =Y12/Tableau1[[#This Row],[2.Tons dried paddy]] -> 15.02243211 | AA12: =+(Tableau1[[#This Row],[11. Hours needed for photosensitive]]+Tableau1[[#This Row],[12. Hours needed for non-photosensitive]])*Parameters!$E$25*Parameters!$E$34 -> 1714.075 | AB12: =Parameters!$E$35*(Tableau1[[#This Row],[11. Hours needed for photosensitive]]+Tableau1[[#This Row],[12. Hours needed for non-photosensitive]])*Parameters!$E$36/4000 -> 19873.33333 | AC12: =+Tableau1[[#This Row],[1.Tons wet paddy]]/Parameters!$E$46*Parameters!$E$45 -> 3142.857143 | AD12: =IF($A$1=1,0,(Tableau1[[#This Row],[3. price wet paddy]]*Tableau1[[#This Row],[1.Tons wet paddy]]*Parameters!$E$22/12*$D$9))*1000/4000 -> 16500 | AE12: =+SUM(Tableau1[[#This Row],[22. Electricity costs]:[25.Seasonal loan interests]]) -> 41230.26548 | AF12: =+Tableau1[[#This Row],[26. Total variable costs]]/Tableau1[[#This Row],[2.Tons dried paddy]] -> 21.29662473 | AG12: =+Tableau1[[#This Row],[27. Total variable cost/tons]]+Tableau1[[#This Row],[21. Fixed costs per ton (USD)]] -> 36.31905684 | AH12: =+Tableau1[[#This Row],[28. Total dry costs per ton]]+Storage!P16 -> 38.80246288 | AI12: =+Tableau1[[#This Row],[28. Total dry costs per ton]]/1000*4000 -> 145.2762274 | AJ12: =+Tableau1[[#This Row],[30. total dry per kilo in riel]]+Storage!Q16 -> 155.2098515 | AQ12: 30 T | AR12: 89500
A13: Loan amortization | F13: =+F12+Drying!$D$4 -> 2400 | G13: =+Tableau1[[#This Row],[1.Tons wet paddy]]*(1-Parameters!$E$28) -> 2112 | H13: =SUMPRODUCT('Rice production'!$E$5:$E$12,'Rice production'!$I$5:$I$12) -> 900 | I13: =IF($A$1=1,SUMPRODUCT('Rice production'!$E$5:$E$12,'Rice production'!$K$5:$K$12),SUMPRODUCT('Rice production'!$E$19:$E$26,'Rice production'!$N$19:$N$26)) -> 1225 | J13: =+Tableau1[[#This Row],[4.Price dried paddy]]*SUMPRODUCT('Rice production'!$E$5:$E$12,'Rice production'!$L$5:$L$12)-Tableau1[[#This Row],[3. price wet paddy]] -> 178 | K13: =+Tableau1[[#This Row],[5.Riel Margin per kilo]]/4000*1000 -> 44.5 | L13: =Tableau1[[#This Row],[1.Tons wet paddy]]*SUMPRODUCT('Rice production'!$E$5:$E$12*('Rice production'!$C$5:$C$12="photo-sensitive")) -> 1200 | M13: =Tableau1[[#This Row],[1.Tons wet paddy]]*SUMPRODUCT('Rice production'!$E$5:$E$12*('Rice production'!$C$5:$C$12="non photo-sensitive")) -> 1200 | N13: =(Tableau1[[#This Row],[7.Nb of tons photo sensitive]]/Parameters!$E$3) -> 40 | O13: =Tableau1[[#This Row],[8.Nb of tons non-photo-sensitive]]/Parameters!$E$3 -> 40 | P13: =Tableau1[[#This Row],[9. Nb of loading photosensitive]]*(Parameters!$E$28/Parameters!$E$29)+Tableau1[[#This Row],[9. Nb of loading photosensitive]]*(Parameters!$E$31+Parameters!$E$32)/60 -> 402.6666667 | Q13: =Tableau1[[#This Row],[10. Nb of loading non- photosensitive]]*(Parameters!$E$28/Parameters!$E$29) -> 320 | R13: =ROUNDUP(+Tableau1[[#This Row],[11. Hours needed for photosensitive]]/Parameters!$E$30,1) -> 20.2 | S13: =ROUNDUP(+Tableau1[[#This Row],[12. Hours needed for non-photosensitive]]/Parameters!$E$30,1) -> 16 | T13: =IFERROR(INT(MAX(Tableau1[[#This Row],[13.Days needed for photosensitive]],Tableau1[[#This Row],[14.Days needed (for non-photosensitive)]])/($D$1*'Rice production'!$H$13)),0)+1 -> 3 | U13: =Parameters!$E$7*Tableau1[[#This Row],[15. nb of dryer]] -> 22500 | V13: =Parameters!$E$12 -> 1200 | W13: =+Total_Intérêts/'Loan Dry'!$G$3*Tableau1[[#This Row],[15. nb of dryer]] -> 8525.142857 | X13: =SUMPRODUCT(Parameters!$E$40:$E$43,Parameters!$G$40:$G$43) -> 7200 | Y13: =SUM(Tableau1[[#This Row],[16. Dep dryer]:[19. Labour]]) -> 39425.14286 | Z13: =Y13/Tableau1[[#This Row],[2.Tons dried paddy]] -> 18.66720779 | AA13: =+(Tableau1[[#This Row],[11. Hours needed for photosensitive]]+Tableau1[[#This Row],[12. Hours needed for non-photosensitive]])*Parameters!$E$25*Parameters!$E$34 -> 1869.9 | AB13: =Parameters!$E$35*(Tableau1[[#This Row],[11. Hours needed for photosensitive]]+Tableau1[[#This Row],[12. Hours needed for non-photosensitive]])*Parameters!$E$36/4000 -> 21680 | AC13: =+Tableau1[[#This Row],[1.Tons wet paddy]]/Parameters!$E$46*Parameters!$E$45 -> 3428.571429 | AD13: =IF($A$1=1,0,(Tableau1[[#This Row],[3. price wet paddy]]*Tableau1[[#This Row],[1.Tons wet paddy]]*Parameters!$E$22/12*$D$9))*1000/4000 -> 18000 | AE13: =+SUM(Tableau1[[#This Row],[22. Electricity costs]:[25.Seasonal loan interests]]) -> 44978.47143 | AF13: =+Tableau1[[#This Row],[26. Total variable costs]]/Tableau1[[#This Row],[2.Tons dried paddy]] -> 21.29662473 | AG13: =+Tableau1[[#This Row],[27. Total variable cost/tons]]+Tableau1[[#This Row],[21. Fixed costs per ton (USD)]] -> 39.96383252 | AH13: =+Tableau1[[#This Row],[28. Total dry costs per ton]]+Storage!P17 -> 42.44723856 | AI13: =+Tableau1[[#This Row],[28. Total dry costs per ton]]/1000*4000 -> 159.8553301 | AJ13: =+Tableau1[[#This Row],[30. total dry per kilo in riel]]+Storage!Q17 -> 169.7889542 | AQ13: 60 T | AR13: 157000
F14: =+F13+Drying!$D$4 -> 2600 | G14: =+Tableau1[[#This Row],[1.Tons wet paddy]]*(1-Parameters!$E$28) -> 2288 | H14: =SUMPRODUCT('Rice production'!$E$5:$E$12,'Rice production'!$I$5:$I$12) -> 900 | I14: =IF($A$1=1,SUMPRODUCT('Rice production'!$E$5:$E$12,'Rice production'!$K$5:$K$12),SUMPRODUCT('Rice production'!$E$19:$E$26,'Rice production'!$N$19:$N$26)) -> 1225 | J14: =+Tableau1[[#This Row],[4.Price dried paddy]]*SUMPRODUCT('Rice production'!$E$5:$E$12,'Rice production'!$L$5:$L$12)-Tableau1[[#This Row],[3. price wet paddy]] -> 178 | K14: =+Tableau1[[#This Row],[5.Riel Margin per kilo]]/4000*1000 -> 44.5 | L14: =Tableau1[[#This Row],[1.Tons wet paddy]]*SUMPRODUCT('Rice production'!$E$5:$E$12*('Rice production'!$C$5:$C$12="photo-sensitive")) -> 1300 | M14: =Tableau1[[#This Row],[1.Tons wet paddy]]*SUMPRODUCT('Rice production'!$E$5:$E$12*('Rice production'!$C$5:$C$12="non photo-sensitive")) -> 1300 | N14: =(Tableau1[[#This Row],[7.Nb of tons photo sensitive]]/Parameters!$E$3) -> 43.33333333 | O14: =Tableau1[[#This Row],[8.Nb of tons non-photo-sensitive]]/Parameters!$E$3 -> 43.33333333 | P14: =Tableau1[[#This Row],[9. Nb of loading photosensitive]]*(Parameters!$E$28/Parameters!$E$29)+Tableau1[[#This Row],[9. Nb of loading photosensitive]]*(Parameters!$E$31+Parameters!$E$32)/60 -> 436.2222222 | Q14: =Tableau1[[#This Row],[10. Nb of loading non- photosensitive]]*(Parameters!$E$28/Parameters!$E$29) -> 346.6666667 | R14: =ROUNDUP(+Tableau1[[#This Row],[11. Hours needed for photosensitive]]/Parameters!$E$30,1) -> 21.9 | S14: =ROUNDUP(+Tableau1[[#This Row],[12. Hours needed for non-photosensitive]]/Parameters!$E$30,1) -> 17.4 | T14: =IFERROR(INT(MAX(Tableau1[[#This Row],[13.Days needed for photosensitive]],Tableau1[[#This Row],[14.Days needed (for non-photosensitive)]])/($D$1*'Rice production'!$H$13)),0)+1 -> 3 | U14: =Parameters!$E$7*Tableau1[[#This Row],[15. nb of dryer]] -> 22500 | V14: =Parameters!$E$12 -> 1200 | W14: =+Total_Intérêts/'Loan Dry'!$G$3*Tableau1[[#This Row],[15. nb of dryer]] -> 8525.142857 | X14: =SUMPRODUCT(Parameters!$E$40:$E$43,Parameters!$G$40:$G$43) -> 7200 | Y14: =SUM(Tableau1[[#This Row],[16. Dep dryer]:[19. Labour]]) -> 39425.14286 | Z14: =Y14/Tableau1[[#This Row],[2.Tons dried paddy]] -> 17.23126873 | AA14: =+(Tableau1[[#This Row],[11. Hours needed for photosensitive]]+Tableau1[[#This Row],[12. Hours needed for non-photosensitive]])*Parameters!$E$25*Parameters!$E$34 -> 2025.725 | AB14: =Parameters!$E$35*(Tableau1[[#This Row],[11. Hours needed for photosensitive]]+Tableau1[[#This Row],[12. Hours needed for non-photosensitive]])*Parameters!$E$36/4000 -> 23486.66667 | AC14: =+Tableau1[[#This Row],[1.Tons wet paddy]]/Parameters!$E$46*Parameters!$E$45 -> 3714.285714 | AD14: =IF($A$1=1,0,(Tableau1[[#This Row],[3. price wet paddy]]*Tableau1[[#This Row],[1.Tons wet paddy]]*Parameters!$E$22/12*$D$9))*1000/4000 -> 19500 | AE14: =+SUM(Tableau1[[#This Row],[22. Electricity costs]:[25.Seasonal loan interests]]) -> 48726.67738 | AF14: =+Tableau1[[#This Row],[26. Total variable costs]]/Tableau1[[#This Row],[2.Tons dried paddy]] -> 21.29662473 | AG14: =+Tableau1[[#This Row],[27. Total variable cost/tons]]+Tableau1[[#This Row],[21. Fixed costs per ton (USD)]] -> 38.52789346 | AH14: =+Tableau1[[#This Row],[28. Total dry costs per ton]]+Storage!P18 -> 41.01129949 | AI14: =+Tableau1[[#This Row],[28. Total dry costs per ton]]/1000*4000 -> 154.1115738 | AJ14: =+Tableau1[[#This Row],[30. total dry per kilo in riel]]+Storage!Q18 -> 164.045198 | AQ14: 90 T | AR14: 320000
A15: Drying table | F15: =+F14+Drying!$D$4 -> 2800 | G15: =+Tableau1[[#This Row],[1.Tons wet paddy]]*(1-Parameters!$E$28) -> 2464 | H15: =SUMPRODUCT('Rice production'!$E$5:$E$12,'Rice production'!$I$5:$I$12) -> 900 | I15: =IF($A$1=1,SUMPRODUCT('Rice production'!$E$5:$E$12,'Rice production'!$K$5:$K$12),SUMPRODUCT('Rice production'!$E$19:$E$26,'Rice production'!$N$19:$N$26)) -> 1225 | J15: =+Tableau1[[#This Row],[4.Price dried paddy]]*SUMPRODUCT('Rice production'!$E$5:$E$12,'Rice production'!$L$5:$L$12)-Tableau1[[#This Row],[3. price wet paddy]] -> 178 | K15: =+Tableau1[[#This Row],[5.Riel Margin per kilo]]/4000*1000 -> 44.5 | L15: =Tableau1[[#This Row],[1.Tons wet paddy]]*SUMPRODUCT('Rice production'!$E$5:$E$12*('Rice production'!$C$5:$C$12="photo-sensitive")) -> 1400 | M15: =Tableau1[[#This Row],[1.Tons wet paddy]]*SUMPRODUCT('Rice production'!$E$5:$E$12*('Rice production'!$C$5:$C$12="non photo-sensitive")) -> 1400 | N15: =(Tableau1[[#This Row],[7.Nb of tons photo sensitive]]/Parameters!$E$3) -> 46.66666667 | O15: =Tableau1[[#This Row],[8.Nb of tons non-photo-sensitive]]/Parameters!$E$3 -> 46.66666667 | P15: =Tableau1[[#This Row],[9. Nb of loading photosensitive]]*(Parameters!$E$28/Parameters!$E$29)+Tableau1[[#This Row],[9. Nb of loading photosensitive]]*(Parameters!$E$31+Parameters!$E$32)/60 -> 469.7777778 | Q15: =Tableau1[[#This Row],[10. Nb of loading non- photosensitive]]*(Parameters!$E$28/Parameters!$E$29) -> 373.3333333 | R15: =ROUNDUP(+Tableau1[[#This Row],[11. Hours needed for photosensitive]]/Parameters!$E$30,1) -> 23.5 | S15: =ROUNDUP(+Tableau1[[#This Row],[12. Hours needed for non-photosensitive]]/Parameters!$E$30,1) -> 18.7 | T15: =IFERROR(INT(MAX(Tableau1[[#This Row],[13.Days needed for photosensitive]],Tableau1[[#This Row],[14.Days needed (for non-photosensitive)]])/($D$1*'Rice production'!$H$13)),0)+1 -> 3 | U15: =Parameters!$E$7*Tableau1[[#This Row],[15. nb of dryer]] -> 22500 | V15: =Parameters!$E$12 -> 1200 | W15: =+Total_Intérêts/'Loan Dry'!$G$3*Tableau1[[#This Row],[15. nb of dryer]] -> 8525.142857 | X15: =SUMPRODUCT(Parameters!$E$40:$E$43,Parameters!$G$40:$G$43) -> 7200 | Y15: =SUM(Tableau1[[#This Row],[16. Dep dryer]:[19. Labour]]) -> 39425.14286 | Z15: =Y15/Tableau1[[#This Row],[2.Tons dried paddy]] -> 16.00046382 | AA15: =+(Tableau1[[#This Row],[11. Hours needed for photosensitive]]+Tableau1[[#This Row],[12. Hours needed for non-photosensitive]])*Parameters!$E$25*Parameters!$E$34 -> 2181.55 | AB15: =Parameters!$E$35*(Tableau1[[#This Row],[11. Hours needed for photosensitive]]+Tableau1[[#This Row],[12. Hours needed for non-photosensitive]])*Parameters!$E$36/4000 -> 25293.33333 | AC15: =+Tableau1[[#This Row],[1.Tons wet paddy]]/Parameters!$E$46*Parameters!$E$45 -> 4000 | AD15: =IF($A$1=1,0,(Tableau1[[#This Row],[3. price wet paddy]]*Tableau1[[#This Row],[1.Tons wet paddy]]*Parameters!$E$22/12*$D$9))*1000/4000 -> 21000 | AE15: =+SUM(Tableau1[[#This Row],[22. Electricity costs]:[25.Seasonal loan interests]]) -> 52474.88333 | AF15: =+Tableau1[[#This Row],[26. Total variable costs]]/Tableau1[[#This Row],[2.Tons dried paddy]] -> 21.29662473 | AG15: =+Tableau1[[#This Row],[27. Total variable cost/tons]]+Tableau1[[#This Row],[21. Fixed costs per ton (USD)]] -> 37.29708855 | AH15: =+Tableau1[[#This Row],[28. Total dry costs per ton]]+Storage!P19 -> 39.78049459 | AI15: =+Tableau1[[#This Row],[28. Total dry costs per ton]]/1000*4000 -> 149.1883542 | AJ15: =+Tableau1[[#This Row],[30. total dry per kilo in riel]]+Storage!Q19 -> 159.1219783 | AQ15: 120 T | AR15: 450000
F16: =+F15+Drying!$D$4 -> 3000 | G16: =+Tableau1[[#This Row],[1.Tons wet paddy]]*(1-Parameters!$E$28) -> 2640 | H16: =SUMPRODUCT('Rice production'!$E$5:$E$12,'Rice production'!$I$5:$I$12) -> 900 | I16: =IF($A$1=1,SUMPRODUCT('Rice production'!$E$5:$E$12,'Rice production'!$K$5:$K$12),SUMPRODUCT('Rice production'!$E$19:$E$26,'Rice production'!$N$19:$N$26)) -> 1225 | J16: =+Tableau1[[#This Row],[4.Price dried paddy]]*SUMPRODUCT('Rice production'!$E$5:$E$12,'Rice production'!$L$5:$L$12)-Tableau1[[#This Row],[3. price wet paddy]] -> 178 | K16: =+Tableau1[[#This Row],[5.Riel Margin per kilo]]/4000*1000 -> 44.5 | L16: =Tableau1[[#This Row],[1.Tons wet paddy]]*SUMPRODUCT('Rice production'!$E$5:$E$12*('Rice production'!$C$5:$C$12="photo-sensitive")) -> 1500 | M16: =Tableau1[[#This Row],[1.Tons wet paddy]]*SUMPRODUCT('Rice production'!$E$5:$E$12*('Rice production'!$C$5:$C$12="non photo-sensitive")) -> 1500 | N16: =(Tableau1[[#This Row],[7.Nb of tons photo sensitive]]/Parameters!$E$3) -> 50 | O16: =Tableau1[[#This Row],[8.Nb of tons non-photo-sensitive]]/Parameters!$E$3 -> 50 | P16: =Tableau1[[#This Row],[9. Nb of loading photosensitive]]*(Parameters!$E$28/Parameters!$E$29)+Tableau1[[#This Row],[9. Nb of loading photosensitive]]*(Parameters!$E$31+Parameters!$E$32)/60 -> 503.3333333 | Q16: =Tableau1[[#This Row],[10. Nb of loading non- photosensitive]]*(Parameters!$E$28/Parameters!$E$29) -> 400 | R16: =ROUNDUP(+Tableau1[[#This Row],[11. Hours needed for photosensitive]]/Parameters!$E$30,1) -> 25.2 | S16: =ROUNDUP(+Tableau1[[#This Row],[12. Hours needed for non-photosensitive]]/Parameters!$E$30,1) -> 20 | T16: =IFERROR(INT(MAX(Tableau1[[#This Row],[13.Days needed for photosensitive]],Tableau1[[#This Row],[14.Days needed (for non-photosensitive)]])/($D$1*'Rice production'!$H$13)),0)+1 -> 3 | U16: =Parameters!$E$7*Tableau1[[#This Row],[15. nb of dryer]] -> 22500 | V16: =Parameters!$E$12 -> 1200 | W16: =+Total_Intérêts/'Loan Dry'!$G$3*Tableau1[[#This Row],[15. nb of dryer]] -> 8525.142857 | X16: =SUMPRODUCT(Parameters!$E$40:$E$43,Parameters!$G$40:$G$43) -> 7200 | Y16: =SUM(Tableau1[[#This Row],[16. Dep dryer]:[19. Labour]]) -> 39425.14286 | Z16: =Y16/Tableau1[[#This Row],[2.Tons dried paddy]] -> 14.93376623 | AA16: =+(Tableau1[[#This Row],[11. Hours needed for photosensitive]]+Tableau1[[#This Row],[12. Hours needed for non-photosensitive]])*Parameters!$E$25*Parameters!$E$34 -> 2337.375 | AB16: =Parameters!$E$35*(Tableau1[[#This Row],[11. Hours needed for photosensitive]]+Tableau1[[#This Row],[12. Hours needed for non-photosensitive]])*Parameters!$E$36/4000 -> 27100 | AC16: =+Tableau1[[#This Row],[1.Tons wet paddy]]/Parameters!$E$46*Parameters!$E$45 -> 4285.714286 | AD16: =IF($A$1=1,0,(Tableau1[[#This Row],[3. price wet paddy]]*Tableau1[[#This Row],[1.Tons wet paddy]]*Parameters!$E$22/12*$D$9))*1000/4000 -> 22500 | AE16: =+SUM(Tableau1[[#This Row],[22. Electricity costs]:[25.Seasonal loan interests]]) -> 56223.08929 | AF16: =+Tableau1[[#This Row],[26. Total variable costs]]/Tableau1[[#This Row],[2.Tons dried paddy]] -> 21.29662473 | AG16: =+Tableau1[[#This Row],[27. Total variable cost/tons]]+Tableau1[[#This Row],[21. Fixed costs per ton (USD)]] -> 36.23039096 | AH16: =+Tableau1[[#This Row],[28. Total dry costs per ton]]+Storage!P20 -> 38.713797 | AI16: =+Tableau1[[#This Row],[28. Total dry costs per ton]]/1000*4000 -> 144.9215639 | AJ16: =+Tableau1[[#This Row],[30. total dry per kilo in riel]]+Storage!Q20 -> 154.855188
A17: Storage table | F17: =+F16+Drying!$D$4 -> 3200 | G17: =+Tableau1[[#This Row],[1.Tons wet paddy]]*(1-Parameters!$E$28) -> 2816 | H17: =SUMPRODUCT('Rice production'!$E$5:$E$12,'Rice production'!$I$5:$I$12) -> 900 | I17: =IF($A$1=1,SUMPRODUCT('Rice production'!$E$5:$E$12,'Rice production'!$K$5:$K$12),SUMPRODUCT('Rice production'!$E$19:$E$26,'Rice production'!$N$19:$N$26)) -> 1225 | J17: =+Tableau1[[#This Row],[4.Price dried paddy]]*SUMPRODUCT('Rice production'!$E$5:$E$12,'Rice production'!$L$5:$L$12)-Tableau1[[#This Row],[3. price wet paddy]] -> 178 | K17: =+Tableau1[[#This Row],[5.Riel Margin per kilo]]/4000*1000 -> 44.5 | L17: =Tableau1[[#This Row],[1.Tons wet paddy]]*SUMPRODUCT('Rice production'!$E$5:$E$12*('Rice production'!$C$5:$C$12="photo-sensitive")) -> 1600 | M17: =Tableau1[[#This Row],[1.Tons wet paddy]]*SUMPRODUCT('Rice production'!$E$5:$E$12*('Rice production'!$C$5:$C$12="non photo-sensitive")) -> 1600 | N17: =(Tableau1[[#This Row],[7.Nb of tons photo sensitive]]/Parameters!$E$3) -> 53.33333333 | O17: =Tableau1[[#This Row],[8.Nb of tons non-photo-sensitive]]/Parameters!$E$3 -> 53.33333333 | P17: =Tableau1[[#This Row],[9. Nb of loading photosensitive]]*(Parameters!$E$28/Parameters!$E$29)+Tableau1[[#This Row],[9. Nb of loading photosensitive]]*(Parameters!$E$31+Parameters!$E$32)/60 -> 536.8888889 | Q17: =Tableau1[[#This Row],[10. Nb of loading non- photosensitive]]*(Parameters!$E$28/Parameters!$E$29) -> 426.6666667 | R17: =ROUNDUP(+Tableau1[[#This Row],[11. Hours needed for photosensitive]]/Parameters!$E$30,1) -> 26.9 | S17: =ROUNDUP(+Tableau1[[#This Row],[12. Hours needed for non-photosensitive]]/Parameters!$E$30,1) -> 21.4 | T17: =IFERROR(INT(MAX(Tableau1[[#This Row],[13.Days needed for photosensitive]],Tableau1[[#This Row],[14.Days needed (for non-photosensitive)]])/($D$1*'Rice production'!$H$13)),0)+1 -> 3 | U17: =Parameters!$E$7*Tableau1[[#This Row],[15. nb of dryer]] -> 22500 | V17: =Parameters!$E$12 -> 1200 | W17: =+Total_Intérêts/'Loan Dry'!$G$3*Tableau1[[#This Row],[15. nb of dryer]] -> 8525.142857 | X17: =SUMPRODUCT(Parameters!$E$40:$E$43,Parameters!$G$40:$G$43) -> 7200 | Y17: =SUM(Tableau1[[#This Row],[16. Dep dryer]:[19. Labour]]) -> 39425.14286 | Z17: =Y17/Tableau1[[#This Row],[2.Tons dried paddy]] -> 14.00040584 | AA17: =+(Tableau1[[#This Row],[11. Hours needed for photosensitive]]+Tableau1[[#This Row],[12. Hours needed for non-photosensitive]])*Parameters!$E$25*Parameters!$E$34 -> 2493.2 | AB17: =Parameters!$E$35*(Tableau1[[#This Row],[11. Hours needed for photosensitive]]+Tableau1[[#This Row],[12. Hours needed for non-photosensitive]])*Parameters!$E$36/4000 -> 28906.66667 | AC17: =+Tableau1[[#This Row],[1.Tons wet paddy]]/Parameters!$E$46*Parameters!$E$45 -> 4571.428571 | AD17: =IF($A$1=1,0,(Tableau1[[#This Row],[3. price wet paddy]]*Tableau1[[#This Row],[1.Tons wet paddy]]*Parameters!$E$22/12*$D$9))*1000/4000 -> 24000 | AE17: =+SUM(Tableau1[[#This Row],[22. Electricity costs]:[25.Seasonal loan interests]]) -> 59971.29524 | AF17: =+Tableau1[[#This Row],[26. Total variable costs]]/Tableau1[[#This Row],[2.Tons dried paddy]] -> 21.29662473 | AG17: =+Tableau1[[#This Row],[27. Total variable cost/tons]]+Tableau1[[#This Row],[21. Fixed costs per ton (USD)]] -> 35.29703057 | AH17: =+Tableau1[[#This Row],[28. Total dry costs per ton]]+Storage!P21 -> 37.78043661 | AI17: =+Tableau1[[#This Row],[28. Total dry costs per ton]]/1000*4000 -> 141.1881223 | AJ17: =+Tableau1[[#This Row],[30. total dry per kilo in riel]]+Storage!Q21 -> 151.1217464 | AQ17: Lifespan: 4 to 8 years
F18: =+F17+Drying!$D$4 -> 3400 | G18: =+Tableau1[[#This Row],[1.Tons wet paddy]]*(1-Parameters!$E$28) -> 2992 | H18: =SUMPRODUCT('Rice production'!$E$5:$E$12,'Rice production'!$I$5:$I$12) -> 900 | I18: =IF($A$1=1,SUMPRODUCT('Rice production'!$E$5:$E$12,'Rice production'!$K$5:$K$12),SUMPRODUCT('Rice production'!$E$19:$E$26,'Rice production'!$N$19:$N$26)) -> 1225 | J18: =+Tableau1[[#This Row],[4.Price dried paddy]]*SUMPRODUCT('Rice production'!$E$5:$E$12,'Rice production'!$L$5:$L$12)-Tableau1[[#This Row],[3. price wet paddy]] -> 178 | K18: =+Tableau1[[#This Row],[5.Riel Margin per kilo]]/4000*1000 -> 44.5 | L18: =Tableau1[[#This Row],[1.Tons wet paddy]]*SUMPRODUCT('Rice production'!$E$5:$E$12*('Rice production'!$C$5:$C$12="photo-sensitive")) -> 1700 | M18: =Tableau1[[#This Row],[1.Tons wet paddy]]*SUMPRODUCT('Rice production'!$E$5:$E$12*('Rice production'!$C$5:$C$12="non photo-sensitive")) -> 1700 | N18: =(Tableau1[[#This Row],[7.Nb of tons photo sensitive]]/Parameters!$E$3) -> 56.66666667 | O18: =Tableau1[[#This Row],[8.Nb of tons non-photo-sensitive]]/Parameters!$E$3 -> 56.66666667 | P18: =Tableau1[[#This Row],[9. Nb of loading photosensitive]]*(Parameters!$E$28/Parameters!$E$29)+Tableau1[[#This Row],[9. Nb of loading photosensitive]]*(Parameters!$E$31+Parameters!$E$32)/60 -> 570.4444444 | Q18: =Tableau1[[#This Row],[10. Nb of loading non- photosensitive]]*(Parameters!$E$28/Parameters!$E$29) -> 453.3333333 | R18: =ROUNDUP(+Tableau1[[#This Row],[11. Hours needed for photosensitive]]/Parameters!$E$30,1) -> 28.6 | S18: =ROUNDUP(+Tableau1[[#This Row],[12. Hours needed for non-photosensitive]]/Parameters!$E$30,1) -> 22.7 | T18: =IFERROR(INT(MAX(Tableau1[[#This Row],[13.Days needed for photosensitive]],Tableau1[[#This Row],[14.Days needed (for non-photosensitive)]])/($D$1*'Rice production'!$H$13)),0)+1 -> 3 | U18: =Parameters!$E$7*Tableau1[[#This Row],[15. nb of dryer]] -> 22500 | V18: =Parameters!$E$12 -> 1200 | W18: =+Total_Intérêts/'Loan Dry'!$G$3*Tableau1[[#This Row],[15. nb of dryer]] -> 8525.142857 | X18: =SUMPRODUCT(Parameters!$E$40:$E$43,Parameters!$G$40:$G$43) -> 7200 | Y18: =SUM(Tableau1[[#This Row],[16. Dep dryer]:[19. Labour]]) -> 39425.14286 | Z18: =Y18/Tableau1[[#This Row],[2.Tons dried paddy]] -> 13.17685256 | AA18: =+(Tableau1[[#This Row],[11. Hours needed for photosensitive]]+Tableau1[[#This Row],[12. Hours needed for non-photosensitive]])*Parameters!$E$25*Parameters!$E$34 -> 2649.025 | AB18: =Parameters!$E$35*(Tableau1[[#This Row],[11. Hours needed for photosensitive]]+Tableau1[[#This Row],[12. Hours needed for non-photosensitive]])*Parameters!$E$36/4000 -> 30713.33333 | AC18: =+Tableau1[[#This Row],[1.Tons wet paddy]]/Parameters!$E$46*Parameters!$E$45 -> 4857.142857 | AD18: =IF($A$1=1,0,(Tableau1[[#This Row],[3. price wet paddy]]*Tableau1[[#This Row],[1.Tons wet paddy]]*Parameters!$E$22/12*$D$9))*1000/4000 -> 25500 | AE18: =+SUM(Tableau1[[#This Row],[22. Electricity costs]:[25.Seasonal loan interests]]) -> 63719.50119 | AF18: =+Tableau1[[#This Row],[26. Total variable costs]]/Tableau1[[#This Row],[2.Tons dried paddy]] -> 21.29662473 | AG18: =+Tableau1[[#This Row],[27. Total variable cost/tons]]+Tableau1[[#This Row],[21. Fixed costs per ton (USD)]] -> 34.47347729 | AH18: =+Tableau1[[#This Row],[28. Total dry costs per ton]]+Storage!P22 -> 36.95688332 | AI18: =+Tableau1[[#This Row],[28. Total dry costs per ton]]/1000*4000 -> 137.8939092 | AJ18: =+Tableau1[[#This Row],[30. total dry per kilo in riel]]+Storage!Q22 -> 147.8275333 | AQ18: Drying speed: 0.8% per hour
A19: Summary | F19: =+F18+Drying!$D$4 -> 3600 | G19: =+Tableau1[[#This Row],[1.Tons wet paddy]]*(1-Parameters!$E$28) -> 3168 | H19: =SUMPRODUCT('Rice production'!$E$5:$E$12,'Rice production'!$I$5:$I$12) -> 900 | I19: =IF($A$1=1,SUMPRODUCT('Rice production'!$E$5:$E$12,'Rice production'!$K$5:$K$12),SUMPRODUCT('Rice production'!$E$19:$E$26,'Rice production'!$N$19:$N$26)) -> 1225 | J19: =+Tableau1[[#This Row],[4.Price dried paddy]]*SUMPRODUCT('Rice production'!$E$5:$E$12,'Rice production'!$L$5:$L$12)-Tableau1[[#This Row],[3. price wet paddy]] -> 178 | K19: =+Tableau1[[#This Row],[5.Riel Margin per kilo]]/4000*1000 -> 44.5 | L19: =Tableau1[[#This Row],[1.Tons wet paddy]]*SUMPRODUCT('Rice production'!$E$5:$E$12*('Rice production'!$C$5:$C$12="photo-sensitive")) -> 1800 | M19: =Tableau1[[#This Row],[1.Tons wet paddy]]*SUMPRODUCT('Rice production'!$E$5:$E$12*('Rice production'!$C$5:$C$12="non photo-sensitive")) -> 1800 | N19: =(Tableau1[[#This Row],[7.Nb of tons photo sensitive]]/Parameters!$E$3) -> 60 | O19: =Tableau1[[#This Row],[8.Nb of tons non-photo-sensitive]]/Parameters!$E$3 -> 60 | P19: =Tableau1[[#This Row],[9. Nb of loading photosensitive]]*(Parameters!$E$28/Parameters!$E$29)+Tableau1[[#This Row],[9. Nb of loading photosensitive]]*(Parameters!$E$31+Parameters!$E$32)/60 -> 604 | Q19: =Tableau1[[#This Row],[10. Nb of loading non- photosensitive]]*(Parameters!$E$28/Parameters!$E$29) -> 480 | R19: =ROUNDUP(+Tableau1[[#This Row],[11. Hours needed for photosensitive]]/Parameters!$E$30,1) -> 30.2 | S19: =ROUNDUP(+Tableau1[[#This Row],[12. Hours needed for non-photosensitive]]/Parameters!$E$30,1) -> 24 | T19: =IFERROR(INT(MAX(Tableau1[[#This Row],[13.Days needed for photosensitive]],Tableau1[[#This Row],[14.Days needed (for non-photosensitive)]])/($D$1*'Rice production'!$H$13)),0)+1 -> 4 | U19: =Parameters!$E$7*Tableau1[[#This Row],[15. nb of dryer]] -> 30000 | V19: =Parameters!$E$12 -> 1200 | W19: =+Total_Intérêts/'Loan Dry'!$G$3*Tableau1[[#This Row],[15. nb of dryer]] -> 11366.85714 | X19: =SUMPRODUCT(Parameters!$E$40:$E$43,Parameters!$G$40:$G$43) -> 7200 | Y19: =SUM(Tableau1[[#This Row],[16. Dep dryer]:[19. Labour]]) -> 49766.85714 | Z19: =Y19/Tableau1[[#This Row],[2.Tons dried paddy]] -> 15.70923521 | AA19: =+(Tableau1[[#This Row],[11. Hours needed for photosensitive]]+Tableau1[[#This Row],[12. Hours needed for non-photosensitive]])*Parameters!$E$25*Parameters!$E$34 -> 2804.85 | AB19: =Parameters!$E$35*(Tableau1[[#This Row],[11. Hours needed for photosensitive]]+Tableau1[[#This Row],[12. Hours needed for non-photosensitive]])*Parameters!$E$36/4000 -> 32520 | AC19: =+Tableau1[[#This Row],[1.Tons wet paddy]]/Parameters!$E$46*Parameters!$E$45 -> 5142.857143 | AD19: =IF($A$1=1,0,(Tableau1[[#This Row],[3. price wet paddy]]*Tableau1[[#This Row],[1.Tons wet paddy]]*Parameters!$E$22/12*$D$9))*1000/4000 -> 27000 | AE19: =+SUM(Tableau1[[#This Row],[22. Electricity costs]:[25.Seasonal loan interests]]) -> 67467.70714 | AF19: =+Tableau1[[#This Row],[26. Total variable costs]]/Tableau1[[#This Row],[2.Tons dried paddy]] -> 21.29662473 | AG19: =+Tableau1[[#This Row],[27. Total variable cost/tons]]+Tableau1[[#This Row],[21. Fixed costs per ton (USD)]] -> 37.00585994 | AH19: =+Tableau1[[#This Row],[28. Total dry costs per ton]]+Storage!P23 -> 39.48926597 | AI19: =+Tableau1[[#This Row],[28. Total dry costs per ton]]/1000*4000 -> 148.0234398 | AJ19: =+Tableau1[[#This Row],[30. total dry per kilo in riel]]+Storage!Q23 -> 157.9570639
F20: =+F19+Drying!$D$4 -> 3800 | G20: =+Tableau1[[#This Row],[1.Tons wet paddy]]*(1-Parameters!$E$28) -> 3344 | H20: =SUMPRODUCT('Rice production'!$E$5:$E$12,'Rice production'!$I$5:$I$12) -> 900 | I20: =IF($A$1=1,SUMPRODUCT('Rice production'!$E$5:$E$12,'Rice production'!$K$5:$K$12),SUMPRODUCT('Rice production'!$E$19:$E$26,'Rice production'!$N$19:$N$26)) -> 1225 | J20: =+Tableau1[[#This Row],[4.Price dried paddy]]*SUMPRODUCT('Rice production'!$E$5:$E$12,'Rice production'!$L$5:$L$12)-Tableau1[[#This Row],[3. price wet paddy]] -> 178 | K20: =+Tableau1[[#This Row],[5.Riel Margin per kilo]]/4000*1000 -> 44.5 | L20: =Tableau1[[#This Row],[1.Tons wet paddy]]*SUMPRODUCT('Rice production'!$E$5:$E$12*('Rice production'!$C$5:$C$12="photo-sensitive")) -> 1900 | M20: =Tableau1[[#This Row],[1.Tons wet paddy]]*SUMPRODUCT('Rice production'!$E$5:$E$12*('Rice production'!$C$5:$C$12="non photo-sensitive")) -> 1900 | N20: =(Tableau1[[#This Row],[7.Nb of tons photo sensitive]]/Parameters!$E$3) -> 63.33333333 | O20: =Tableau1[[#This Row],[8.Nb of tons non-photo-sensitive]]/Parameters!$E$3 -> 63.33333333 | P20: =Tableau1[[#This Row],[9. Nb of loading photosensitive]]*(Parameters!$E$28/Parameters!$E$29)+Tableau1[[#This Row],[9. Nb of loading photosensitive]]*(Parameters!$E$31+Parameters!$E$32)/60 -> 637.5555556 | Q20: =Tableau1[[#This Row],[10. Nb of loading non- photosensitive]]*(Parameters!$E$28/Parameters!$E$29) -> 506.6666667 | R20: =ROUNDUP(+Tableau1[[#This Row],[11. Hours needed for photosensitive]]/Parameters!$E$30,1) -> 31.9 | S20: =ROUNDUP(+Tableau1[[#This Row],[12. Hours needed for non-photosensitive]]/Parameters!$E$30,1) -> 25.4 | T20: =IFERROR(INT(MAX(Tableau1[[#This Row],[13.Days needed for photosensitive]],Tableau1[[#This Row],[14.Days needed (for non-photosensitive)]])/($D$1*'Rice production'!$H$13)),0)+1 -> 4 | U20: =Parameters!$E$7*Tableau1[[#This Row],[15. nb of dryer]] -> 30000 | V20: =Parameters!$E$12 -> 1200 | W20: =+Total_Intérêts/'Loan Dry'!$G$3*Tableau1[[#This Row],[15. nb of dryer]] -> 11366.85714 | X20: =SUMPRODUCT(Parameters!$E$40:$E$43,Parameters!$G$40:$G$43) -> 7200 | Y20: =SUM(Tableau1[[#This Row],[16. Dep dryer]:[19. Labour]]) -> 49766.85714 | Z20: =Y20/Tableau1[[#This Row],[2.Tons dried paddy]] -> 14.88243336 | AA20: =+(Tableau1[[#This Row],[11. Hours needed for photosensitive]]+Tableau1[[#This Row],[12. Hours needed for non-photosensitive]])*Parameters!$E$25*Parameters!$E$34 -> 2960.675 | AB20: =Parameters!$E$35*(Tableau1[[#This Row],[11. Hours needed for photosensitive]]+Tableau1[[#This Row],[12. Hours needed for non-photosensitive]])*Parameters!$E$36/4000 -> 34326.66667 | AC20: =+Tableau1[[#This Row],[1.Tons wet paddy]]/Parameters!$E$46*Parameters!$E$45 -> 5428.571429 | AD20: =IF($A$1=1,0,(Tableau1[[#This Row],[3. price wet paddy]]*Tableau1[[#This Row],[1.Tons wet paddy]]*Parameters!$E$22/12*$D$9))*1000/4000 -> 28500 | AE20: =+SUM(Tableau1[[#This Row],[22. Electricity costs]:[25.Seasonal loan interests]]) -> 71215.9131 | AF20: =+Tableau1[[#This Row],[26. Total variable costs]]/Tableau1[[#This Row],[2.Tons dried paddy]] -> 21.29662473 | AG20: =+Tableau1[[#This Row],[27. Total variable cost/tons]]+Tableau1[[#This Row],[21. Fixed costs per ton (USD)]] -> 36.17905809 | AH20: =+Tableau1[[#This Row],[28. Total dry costs per ton]]+Storage!P24 -> 38.66246412 | AI20: =+Tableau1[[#This Row],[28. Total dry costs per ton]]/1000*4000 -> 144.7162323 | AJ20: =+Tableau1[[#This Row],[30. total dry per kilo in riel]]+Storage!Q24 -> 154.6498565 | AQ20: Yamamoto Coltd (4 years warranty)
A21: Sensitivity analysis | F21: =+F20+Drying!$D$4 -> 4000 | G21: =+Tableau1[[#This Row],[1.Tons wet paddy]]*(1-Parameters!$E$28) -> 3520 | H21: =SUMPRODUCT('Rice production'!$E$5:$E$12,'Rice production'!$I$5:$I$12) -> 900 | I21: =IF($A$1=1,SUMPRODUCT('Rice production'!$E$5:$E$12,'Rice production'!$K$5:$K$12),SUMPRODUCT('Rice production'!$E$19:$E$26,'Rice production'!$N$19:$N$26)) -> 1225 | J21: =+Tableau1[[#This Row],[4.Price dried paddy]]*SUMPRODUCT('Rice production'!$E$5:$E$12,'Rice production'!$L$5:$L$12)-Tableau1[[#This Row],[3. price wet paddy]] -> 178 | K21: =+Tableau1[[#This Row],[5.Riel Margin per kilo]]/4000*1000 -> 44.5 | L21: =Tableau1[[#This Row],[1.Tons wet paddy]]*SUMPRODUCT('Rice production'!$E$5:$E$12*('Rice production'!$C$5:$C$12="photo-sensitive")) -> 2000 | M21: =Tableau1[[#This Row],[1.Tons wet paddy]]*SUMPRODUCT('Rice production'!$E$5:$E$12*('Rice production'!$C$5:$C$12="non photo-sensitive")) -> 2000 | N21: =(Tableau1[[#This Row],[7.Nb of tons photo sensitive]]/Parameters!$E$3) -> 66.66666667 | O21: =Tableau1[[#This Row],[8.Nb of tons non-photo-sensitive]]/Parameters!$E$3 -> 66.66666667 | P21: =Tableau1[[#This Row],[9. Nb of loading photosensitive]]*(Parameters!$E$28/Parameters!$E$29)+Tableau1[[#This Row],[9. Nb of loading photosensitive]]*(Parameters!$E$31+Parameters!$E$32)/60 -> 671.1111111 | Q21: =Tableau1[[#This Row],[10. Nb of loading non- photosensitive]]*(Parameters!$E$28/Parameters!$E$29) -> 533.3333333 | R21: =ROUNDUP(+Tableau1[[#This Row],[11. Hours needed for photosensitive]]/Parameters!$E$30,1) -> 33.6 | S21: =ROUNDUP(+Tableau1[[#This Row],[12. Hours needed for non-photosensitive]]/Parameters!$E$30,1) -> 26.7 | T21: =IFERROR(INT(MAX(Tableau1[[#This Row],[13.Days needed for photosensitive]],Tableau1[[#This Row],[14.Days needed (for non-photosensitive)]])/($D$1*'Rice production'!$H$13)),0)+1 -> 4 | U21: =Parameters!$E$7*Tableau1[[#This Row],[15. nb of dryer]] -> 30000 | V21: =Parameters!$E$12 -> 1200 | W21: =+Total_Intérêts/'Loan Dry'!$G$3*Tableau1[[#This Row],[15. nb of dryer]] -> 11366.85714 | X21: =SUMPRODUCT(Parameters!$E$40:$E$43,Parameters!$G$40:$G$43) -> 7200 | Y21: =SUM(Tableau1[[#This Row],[16. Dep dryer]:[19. Labour]]) -> 49766.85714 | Z21: =Y21/Tableau1[[#This Row],[2.Tons dried paddy]] -> 14.13831169 | AA21: =+(Tableau1[[#This Row],[11. Hours needed for photosensitive]]+Tableau1[[#This Row],[12. Hours needed for non-photosensitive]])*Parameters!$E$25*Parameters!$E$34 -> 3116.5 | AB21: =Parameters!$E$35*(Tableau1[[#This Row],[11. Hours needed for photosensitive]]+Tableau1[[#This Row],[12. Hours needed for non-photosensitive]])*Parameters!$E$36/4000 -> 36133.33333 | AC21: =+Tableau1[[#This Row],[1.Tons wet paddy]]/Parameters!$E$46*Parameters!$E$45 -> 5714.285714 | AD21: =IF($A$1=1,0,(Tableau1[[#This Row],[3. price wet paddy]]*Tableau1[[#This Row],[1.Tons wet paddy]]*Parameters!$E$22/12*$D$9))*1000/4000 -> 30000 | AE21: =+SUM(Tableau1[[#This Row],[22. Electricity costs]:[25.Seasonal loan interests]]) -> 74964.11905 | AF21: =+Tableau1[[#This Row],[26. Total variable costs]]/Tableau1[[#This Row],[2.Tons dried paddy]] -> 21.29662473 | AG21: =+Tableau1[[#This Row],[27. Total variable cost/tons]]+Tableau1[[#This Row],[21. Fixed costs per ton (USD)]] -> 35.43493642 | AH21: =+Tableau1[[#This Row],[28. Total dry costs per ton]]+Storage!P25 -> 37.91834245 | AI21: =+Tableau1[[#This Row],[28. Total dry costs per ton]]/1000*4000 -> 141.7397457 | AJ21: =+Tableau1[[#This Row],[30. total dry per kilo in riel]]+Storage!Q25 -> 151.6733698
F22: =+F21+Drying!$D$4 -> 4200 | G22: =+Tableau1[[#This Row],[1.Tons wet paddy]]*(1-Parameters!$E$28) -> 3696 | H22: =SUMPRODUCT('Rice production'!$E$5:$E$12,'Rice production'!$I$5:$I$12) -> 900 | I22: =IF($A$1=1,SUMPRODUCT('Rice production'!$E$5:$E$12,'Rice production'!$K$5:$K$12),SUMPRODUCT('Rice production'!$E$19:$E$26,'Rice production'!$N$19:$N$26)) -> 1225 | J22: =+Tableau1[[#This Row],[4.Price dried paddy]]*SUMPRODUCT('Rice production'!$E$5:$E$12,'Rice production'!$L$5:$L$12)-Tableau1[[#This Row],[3. price wet paddy]] -> 178 | K22: =+Tableau1[[#This Row],[5.Riel Margin per kilo]]/4000*1000 -> 44.5 | L22: =Tableau1[[#This Row],[1.Tons wet paddy]]*SUMPRODUCT('Rice production'!$E$5:$E$12*('Rice production'!$C$5:$C$12="photo-sensitive")) -> 2100 | M22: =Tableau1[[#This Row],[1.Tons wet paddy]]*SUMPRODUCT('Rice production'!$E$5:$E$12*('Rice production'!$C$5:$C$12="non photo-sensitive")) -> 2100 | N22: =(Tableau1[[#This Row],[7.Nb of tons photo sensitive]]/Parameters!$E$3) -> 70 | O22: =Tableau1[[#This Row],[8.Nb of tons non-photo-sensitive]]/Parameters!$E$3 -> 70 | P22: =Tableau1[[#This Row],[9. Nb of loading photosensitive]]*(Parameters!$E$28/Parameters!$E$29)+Tableau1[[#This Row],[9. Nb of loading photosensitive]]*(Parameters!$E$31+Parameters!$E$32)/60 -> 704.6666667 | Q22: =Tableau1[[#This Row],[10. Nb of loading non- photosensitive]]*(Parameters!$E$28/Parameters!$E$29) -> 560 | R22: =ROUNDUP(+Tableau1[[#This Row],[11. Hours needed for photosensitive]]/Parameters!$E$30,1) -> 35.3 | S22: =ROUNDUP(+Tableau1[[#This Row],[12. Hours needed for non-photosensitive]]/Parameters!$E$30,1) -> 28 | T22: =IFERROR(INT(MAX(Tableau1[[#This Row],[13.Days needed for photosensitive]],Tableau1[[#This Row],[14.Days needed (for non-photosensitive)]])/($D$1*'Rice production'!$H$13)),0)+1 -> 4 | U22: =Parameters!$E$7*Tableau1[[#This Row],[15. nb of dryer]] -> 30000 | V22: =Parameters!$E$12 -> 1200 | W22: =+Total_Intérêts/'Loan Dry'!$G$3*Tableau1[[#This Row],[15. nb of dryer]] -> 11366.85714 | X22: =SUMPRODUCT(Parameters!$E$40:$E$43,Parameters!$G$40:$G$43) -> 7200 | Y22: =SUM(Tableau1[[#This Row],[16. Dep dryer]:[19. Labour]]) -> 49766.85714 | Z22: =Y22/Tableau1[[#This Row],[2.Tons dried paddy]] -> 13.46505875 | AA22: =+(Tableau1[[#This Row],[11. Hours needed for photosensitive]]+Tableau1[[#This Row],[12. Hours needed for non-photosensitive]])*Parameters!$E$25*Parameters!$E$34 -> 3272.325 | AB22: =Parameters!$E$35*(Tableau1[[#This Row],[11. Hours needed for photosensitive]]+Tableau1[[#This Row],[12. Hours needed for non-photosensitive]])*Parameters!$E$36/4000 -> 37940 | AC22: =+Tableau1[[#This Row],[1.Tons wet paddy]]/Parameters!$E$46*Parameters!$E$45 -> 6000 | AD22: =IF($A$1=1,0,(Tableau1[[#This Row],[3. price wet paddy]]*Tableau1[[#This Row],[1.Tons wet paddy]]*Parameters!$E$22/12*$D$9))*1000/4000 -> 31500 | AE22: =+SUM(Tableau1[[#This Row],[22. Electricity costs]:[25.Seasonal loan interests]]) -> 78712.325 | AF22: =+Tableau1[[#This Row],[26. Total variable costs]]/Tableau1[[#This Row],[2.Tons dried paddy]] -> 21.29662473 | AG22: =+Tableau1[[#This Row],[27. Total variable cost/tons]]+Tableau1[[#This Row],[21. Fixed costs per ton (USD)]] -> 34.76168348 | AH22: =+Tableau1[[#This Row],[28. Total dry costs per ton]]+Storage!P26 -> 37.24508951 | AI22: =+Tableau1[[#This Row],[28. Total dry costs per ton]]/1000*4000 -> 139.0467339 | AJ22: =+Tableau1[[#This Row],[30. total dry per kilo in riel]]+Storage!Q26 -> 148.9803581 | AQ22: Capacity (T) | AR22: Price (US$)
F23: =+F22+Drying!$D$4 -> 4400 | G23: =+Tableau1[[#This Row],[1.Tons wet paddy]]*(1-Parameters!$E$28) -> 3872 | H23: =SUMPRODUCT('Rice production'!$E$5:$E$12,'Rice production'!$I$5:$I$12) -> 900 | I23: =IF($A$1=1,SUMPRODUCT('Rice production'!$E$5:$E$12,'Rice production'!$K$5:$K$12),SUMPRODUCT('Rice production'!$E$19:$E$26,'Rice production'!$N$19:$N$26)) -> 1225 | J23: =+Tableau1[[#This Row],[4.Price dried paddy]]*SUMPRODUCT('Rice production'!$E$5:$E$12,'Rice production'!$L$5:$L$12)-Tableau1[[#This Row],[3. price wet paddy]] -> 178 | K23: =+Tableau1[[#This Row],[5.Riel Margin per kilo]]/4000*1000 -> 44.5 | L23: =Tableau1[[#This Row],[1.Tons wet paddy]]*SUMPRODUCT('Rice production'!$E$5:$E$12*('Rice production'!$C$5:$C$12="photo-sensitive")) -> 2200 | M23: =Tableau1[[#This Row],[1.Tons wet paddy]]*SUMPRODUCT('Rice production'!$E$5:$E$12*('Rice production'!$C$5:$C$12="non photo-sensitive")) -> 2200 | N23: =(Tableau1[[#This Row],[7.Nb of tons photo sensitive]]/Parameters!$E$3) -> 73.33333333 | O23: =Tableau1[[#This Row],[8.Nb of tons non-photo-sensitive]]/Parameters!$E$3 -> 73.33333333 | P23: =Tableau1[[#This Row],[9. Nb of loading photosensitive]]*(Parameters!$E$28/Parameters!$E$29)+Tableau1[[#This Row],[9. Nb of loading photosensitive]]*(Parameters!$E$31+Parameters!$E$32)/60 -> 738.2222222 | Q23: =Tableau1[[#This Row],[10. Nb of loading non- photosensitive]]*(Parameters!$E$28/Parameters!$E$29) -> 586.6666667 | R23: =ROUNDUP(+Tableau1[[#This Row],[11. Hours needed for photosensitive]]/Parameters!$E$30,1) -> 37 | S23: =ROUNDUP(+Tableau1[[#This Row],[12. Hours needed for non-photosensitive]]/Parameters!$E$30,1) -> 29.4 | T23: =IFERROR(INT(MAX(Tableau1[[#This Row],[13.Days needed for photosensitive]],Tableau1[[#This Row],[14.Days needed (for non-photosensitive)]])/($D$1*'Rice production'!$H$13)),0)+1 -> 4 | U23: =Parameters!$E$7*Tableau1[[#This Row],[15. nb of dryer]] -> 30000 | V23: =Parameters!$E$12 -> 1200 | W23: =+Total_Intérêts/'Loan Dry'!$G$3*Tableau1[[#This Row],[15. nb of dryer]] -> 11366.85714 | X23: =SUMPRODUCT(Parameters!$E$40:$E$43,Parameters!$G$40:$G$43) -> 7200 | Y23: =SUM(Tableau1[[#This Row],[16. Dep dryer]:[19. Labour]]) -> 49766.85714 | Z23: =Y23/Tableau1[[#This Row],[2.Tons dried paddy]] -> 12.85301063 | AA23: =+(Tableau1[[#This Row],[11. Hours needed for photosensitive]]+Tableau1[[#This Row],[12. Hours needed for non-photosensitive]])*Parameters!$E$25*Parameters!$E$34 -> 3428.15 | AB23: =Parameters!$E$35*(Tableau1[[#This Row],[11. Hours needed for photosensitive]]+Tableau1[[#This Row],[12. Hours needed for non-photosensitive]])*Parameters!$E$36/4000 -> 39746.66667 | AC23: =+Tableau1[[#This Row],[1.Tons wet paddy]]/Parameters!$E$46*Parameters!$E$45 -> 6285.714286 | AD23: =IF($A$1=1,0,(Tableau1[[#This Row],[3. price wet paddy]]*Tableau1[[#This Row],[1.Tons wet paddy]]*Parameters!$E$22/12*$D$9))*1000/4000 -> 33000 | AE23: =+SUM(Tableau1[[#This Row],[22. Electricity costs]:[25.Seasonal loan interests]]) -> 82460.53095 | AF23: =+Tableau1[[#This Row],[26. Total variable costs]]/Tableau1[[#This Row],[2.Tons dried paddy]] -> 21.29662473 | AG23: =+Tableau1[[#This Row],[27. Total variable cost/tons]]+Tableau1[[#This Row],[21. Fixed costs per ton (USD)]] -> 34.14963536 | AH23: =+Tableau1[[#This Row],[28. Total dry costs per ton]]+Storage!P27 -> 36.63304139 | AI23: =+Tableau1[[#This Row],[28. Total dry costs per ton]]/1000*4000 -> 136.5985414 | AJ23: =+Tableau1[[#This Row],[30. total dry per kilo in riel]]+Storage!Q27 -> 146.5321656 | AQ23: 8 T | AR23: 25000
F24: =+F23+Drying!$D$4 -> 4600 | G24: =+Tableau1[[#This Row],[1.Tons wet paddy]]*(1-Parameters!$E$28) -> 4048 | H24: =SUMPRODUCT('Rice production'!$E$5:$E$12,'Rice production'!$I$5:$I$12) -> 900 | I24: =IF($A$1=1,SUMPRODUCT('Rice production'!$E$5:$E$12,'Rice production'!$K$5:$K$12),SUMPRODUCT('Rice production'!$E$19:$E$26,'Rice production'!$N$19:$N$26)) -> 1225 | J24: =+Tableau1[[#This Row],[4.Price dried paddy]]*SUMPRODUCT('Rice production'!$E$5:$E$12,'Rice production'!$L$5:$L$12)-Tableau1[[#This Row],[3. price wet paddy]] -> 178 | K24: =+Tableau1[[#This Row],[5.Riel Margin per kilo]]/4000*1000 -> 44.5 | L24: =Tableau1[[#This Row],[1.Tons wet paddy]]*SUMPRODUCT('Rice production'!$E$5:$E$12*('Rice production'!$C$5:$C$12="photo-sensitive")) -> 2300 | M24: =Tableau1[[#This Row],[1.Tons wet paddy]]*SUMPRODUCT('Rice production'!$E$5:$E$12*('Rice production'!$C$5:$C$12="non photo-sensitive")) -> 2300 | N24: =(Tableau1[[#This Row],[7.Nb of tons photo sensitive]]/Parameters!$E$3) -> 76.66666667 | O24: =Tableau1[[#This Row],[8.Nb of tons non-photo-sensitive]]/Parameters!$E$3 -> 76.66666667 | P24: =Tableau1[[#This Row],[9. Nb of loading photosensitive]]*(Parameters!$E$28/Parameters!$E$29)+Tableau1[[#This Row],[9. Nb of loading photosensitive]]*(Parameters!$E$31+Parameters!$E$32)/60 -> 771.7777778 | Q24: =Tableau1[[#This Row],[10. Nb of loading non- photosensitive]]*(Parameters!$E$28/Parameters!$E$29) -> 613.3333333 | R24: =ROUNDUP(+Tableau1[[#This Row],[11. Hours needed for photosensitive]]/Parameters!$E$30,1) -> 38.6 | S24: =ROUNDUP(+Tableau1[[#This Row],[12. Hours needed for non-photosensitive]]/Parameters!$E$30,1) -> 30.7 | T24: =IFERROR(INT(MAX(Tableau1[[#This Row],[13.Days needed for photosensitive]],Tableau1[[#This Row],[14.Days needed (for non-photosensitive)]])/($D$1*'Rice production'!$H$13)),0)+1 -> 4 | U24: =Parameters!$E$7*Tableau1[[#This Row],[15. nb of dryer]] -> 30000 | V24: =Parameters!$E$12 -> 1200 | W24: =+Total_Intérêts/'Loan Dry'!$G$3*Tableau1[[#This Row],[15. nb of dryer]] -> 11366.85714 | X24: =SUMPRODUCT(Parameters!$E$40:$E$43,Parameters!$G$40:$G$43) -> 7200 | Y24: =SUM(Tableau1[[#This Row],[16. Dep dryer]:[19. Labour]]) -> 49766.85714 | Z24: =Y24/Tableau1[[#This Row],[2.Tons dried paddy]] -> 12.29418408 | AA24: =+(Tableau1[[#This Row],[11. Hours needed for photosensitive]]+Tableau1[[#This Row],[12. Hours needed for non-photosensitive]])*Parameters!$E$25*Parameters!$E$34 -> 3583.975 | AB24: =Parameters!$E$35*(Tableau1[[#This Row],[11. Hours needed for photosensitive]]+Tableau1[[#This Row],[12. Hours needed for non-photosensitive]])*Parameters!$E$36/4000 -> 41553.33333 | AC24: =+Tableau1[[#This Row],[1.Tons wet paddy]]/Parameters!$E$46*Parameters!$E$45 -> 6571.428571 | AD24: =IF($A$1=1,0,(Tableau1[[#This Row],[3. price wet paddy]]*Tableau1[[#This Row],[1.Tons wet paddy]]*Parameters!$E$22/12*$D$9))*1000/4000 -> 34500 | AE24: =+SUM(Tableau1[[#This Row],[22. Electricity costs]:[25.Seasonal loan interests]]) -> 86208.7369 | AF24: =+Tableau1[[#This Row],[26. Total variable costs]]/Tableau1[[#This Row],[2.Tons dried paddy]] -> 21.29662473 | AG24: =+Tableau1[[#This Row],[27. Total variable cost/tons]]+Tableau1[[#This Row],[21. Fixed costs per ton (USD)]] -> 33.59080881 | AH24: =+Tableau1[[#This Row],[28. Total dry costs per ton]]+Storage!P28 -> 36.07421484 | AI24: =+Tableau1[[#This Row],[28. Total dry costs per ton]]/1000*4000 -> 134.3632352 | AJ24: =+Tableau1[[#This Row],[30. total dry per kilo in riel]]+Storage!Q28 -> 144.2968594 | AQ24: 10 T
F25: =+F24+Drying!$D$4 -> 4800 | G25: =+Tableau1[[#This Row],[1.Tons wet paddy]]*(1-Parameters!$E$28) -> 4224 | H25: =SUMPRODUCT('Rice production'!$E$5:$E$12,'Rice production'!$I$5:$I$12) -> 900 | I25: =IF($A$1=1,SUMPRODUCT('Rice production'!$E$5:$E$12,'Rice production'!$K$5:$K$12),SUMPRODUCT('Rice production'!$E$19:$E$26,'Rice production'!$N$19:$N$26)) -> 1225 | J25: =+Tableau1[[#This Row],[4.Price dried paddy]]*SUMPRODUCT('Rice production'!$E$5:$E$12,'Rice production'!$L$5:$L$12)-Tableau1[[#This Row],[3. price wet paddy]] -> 178 | K25: =+Tableau1[[#This Row],[5.Riel Margin per kilo]]/4000*1000 -> 44.5 | L25: =Tableau1[[#This Row],[1.Tons wet paddy]]*SUMPRODUCT('Rice production'!$E$5:$E$12*('Rice production'!$C$5:$C$12="photo-sensitive")) -> 2400 | M25: =Tableau1[[#This Row],[1.Tons wet paddy]]*SUMPRODUCT('Rice production'!$E$5:$E$12*('Rice production'!$C$5:$C$12="non photo-sensitive")) -> 2400 | N25: =(Tableau1[[#This Row],[7.Nb of tons photo sensitive]]/Parameters!$E$3) -> 80 | O25: =Tableau1[[#This Row],[8.Nb of tons non-photo-sensitive]]/Parameters!$E$3 -> 80 | P25: =Tableau1[[#This Row],[9. Nb of loading photosensitive]]*(Parameters!$E$28/Parameters!$E$29)+Tableau1[[#This Row],[9. Nb of loading photosensitive]]*(Parameters!$E$31+Parameters!$E$32)/60 -> 805.3333333 | Q25: =Tableau1[[#This Row],[10. Nb of loading non- photosensitive]]*(Parameters!$E$28/Parameters!$E$29) -> 640 | R25: =ROUNDUP(+Tableau1[[#This Row],[11. Hours needed for photosensitive]]/Parameters!$E$30,1) -> 40.3 | S25: =ROUNDUP(+Tableau1[[#This Row],[12. Hours needed for non-photosensitive]]/Parameters!$E$30,1) -> 32 | T25: =IFERROR(INT(MAX(Tableau1[[#This Row],[13.Days needed for photosensitive]],Tableau1[[#This Row],[14.Days needed (for non-photosensitive)]])/($D$1*'Rice production'!$H$13)),0)+1 -> 5 | U25: =Parameters!$E$7*Tableau1[[#This Row],[15. nb of dryer]] -> 37500 | V25: =Parameters!$E$12 -> 1200 | W25: =+Total_Intérêts/'Loan Dry'!$G$3*Tableau1[[#This Row],[15. nb of dryer]] -> 14208.57143 | X25: =SUMPRODUCT(Parameters!$E$40:$E$43,Parameters!$G$40:$G$43) -> 7200 | Y25: =SUM(Tableau1[[#This Row],[16. Dep dryer]:[19. Labour]]) -> 60108.57143 | Z25: =Y25/Tableau1[[#This Row],[2.Tons dried paddy]] -> 14.23024892 | AA25: =+(Tableau1[[#This Row],[11. Hours needed for photosensitive]]+Tableau1[[#This Row],[12. Hours needed for non-photosensitive]])*Parameters!$E$25*Parameters!$E$34 -> 3739.8 | AB25: =Parameters!$E$35*(Tableau1[[#This Row],[11. Hours needed for photosensitive]]+Tableau1[[#This Row],[12. Hours needed for non-photosensitive]])*Parameters!$E$36/4000 -> 43360 | AC25: =+Tableau1[[#This Row],[1.Tons wet paddy]]/Parameters!$E$46*Parameters!$E$45 -> 6857.142857 | AD25: =IF($A$1=1,0,(Tableau1[[#This Row],[3. price wet paddy]]*Tableau1[[#This Row],[1.Tons wet paddy]]*Parameters!$E$22/12*$D$9))*1000/4000 -> 36000 | AE25: =+SUM(Tableau1[[#This Row],[22. Electricity costs]:[25.Seasonal loan interests]]) -> 89956.94286 | AF25: =+Tableau1[[#This Row],[26. Total variable costs]]/Tableau1[[#This Row],[2.Tons dried paddy]] -> 21.29662473 | AG25: =+Tableau1[[#This Row],[27. Total variable cost/tons]]+Tableau1[[#This Row],[21. Fixed costs per ton (USD)]] -> 35.52687365 | AH25: =+Tableau1[[#This Row],[28. Total dry costs per ton]]+Storage!P29 -> 38.01027968 | AI25: =+Tableau1[[#This Row],[28. Total dry costs per ton]]/1000*4000 -> 142.1074946 | AJ25: =+Tableau1[[#This Row],[30. total dry per kilo in riel]]+Storage!Q29 -> 152.0411187 | AQ25: 12 T
F26: =+F25+Drying!$D$4 -> 5000 | G26: =+Tableau1[[#This Row],[1.Tons wet paddy]]*(1-Parameters!$E$28) -> 4400 | H26: =SUMPRODUCT('Rice production'!$E$5:$E$12,'Rice production'!$I$5:$I$12) -> 900 | I26: =IF($A$1=1,SUMPRODUCT('Rice production'!$E$5:$E$12,'Rice production'!$K$5:$K$12),SUMPRODUCT('Rice production'!$E$19:$E$26,'Rice production'!$N$19:$N$26)) -> 1225 | J26: =+Tableau1[[#This Row],[4.Price dried paddy]]*SUMPRODUCT('Rice production'!$E$5:$E$12,'Rice production'!$L$5:$L$12)-Tableau1[[#This Row],[3. price wet paddy]] -> 178 | K26: =+Tableau1[[#This Row],[5.Riel Margin per kilo]]/4000*1000 -> 44.5 | L26: =Tableau1[[#This Row],[1.Tons wet paddy]]*SUMPRODUCT('Rice production'!$E$5:$E$12*('Rice production'!$C$5:$C$12="photo-sensitive")) -> 2500 | M26: =Tableau1[[#This Row],[1.Tons wet paddy]]*SUMPRODUCT('Rice production'!$E$5:$E$12*('Rice production'!$C$5:$C$12="non photo-sensitive")) -> 2500 | N26: =(Tableau1[[#This Row],[7.Nb of tons photo sensitive]]/Parameters!$E$3) -> 83.33333333 | O26: =Tableau1[[#This Row],[8.Nb of tons non-photo-sensitive]]/Parameters!$E$3 -> 83.33333333 | P26: =Tableau1[[#This Row],[9. Nb of loading photosensitive]]*(Parameters!$E$28/Parameters!$E$29)+Tableau1[[#This Row],[9. Nb of loading photosensitive]]*(Parameters!$E$31+Parameters!$E$32)/60 -> 838.8888889 | Q26: =Tableau1[[#This Row],[10. Nb of loading non- photosensitive]]*(Parameters!$E$28/Parameters!$E$29) -> 666.6666667 | R26: =ROUNDUP(+Tableau1[[#This Row],[11. Hours needed for photosensitive]]/Parameters!$E$30,1) -> 42 | S26: =ROUNDUP(+Tableau1[[#This Row],[12. Hours needed for non-photosensitive]]/Parameters!$E$30,1) -> 33.4 | T26: =IFERROR(INT(MAX(Tableau1[[#This Row],[13.Days needed for photosensitive]],Tableau1[[#This Row],[14.Days needed (for non-photosensitive)]])/($D$1*'Rice production'!$H$13)),0)+1 -> 5 | U26: =Parameters!$E$7*Tableau1[[#This Row],[15. nb of dryer]] -> 37500 | V26: =Parameters!$E$12 -> 1200 | W26: =+Total_Intérêts/'Loan Dry'!$G$3*Tableau1[[#This Row],[15. nb of dryer]] -> 14208.57143 | X26: =SUMPRODUCT(Parameters!$E$40:$E$43,Parameters!$G$40:$G$43) -> 7200 | Y26: =SUM(Tableau1[[#This Row],[16. Dep dryer]:[19. Labour]]) -> 60108.57143 | Z26: =Y26/Tableau1[[#This Row],[2.Tons dried paddy]] -> 13.66103896 | AA26: =+(Tableau1[[#This Row],[11. Hours needed for photosensitive]]+Tableau1[[#This Row],[12. Hours needed for non-photosensitive]])*Parameters!$E$25*Parameters!$E$34 -> 3895.625 | AB26: =Parameters!$E$35*(Tableau1[[#This Row],[11. Hours needed for photosensitive]]+Tableau1[[#This Row],[12. Hours needed for non-photosensitive]])*Parameters!$E$36/4000 -> 45166.66667 | AC26: =+Tableau1[[#This Row],[1.Tons wet paddy]]/Parameters!$E$46*Parameters!$E$45 -> 7142.857143 | AD26: =IF($A$1=1,0,(Tableau1[[#This Row],[3. price wet paddy]]*Tableau1[[#This Row],[1.Tons wet paddy]]*Parameters!$E$22/12*$D$9))*1000/4000 -> 37500 | AE26: =+SUM(Tableau1[[#This Row],[22. Electricity costs]:[25.Seasonal loan interests]]) -> 93705.14881 | AF26: =+Tableau1[[#This Row],[26. Total variable costs]]/Tableau1[[#This Row],[2.Tons dried paddy]] -> 21.29662473 | AG26: =+Tableau1[[#This Row],[27. Total variable cost/tons]]+Tableau1[[#This Row],[21. Fixed costs per ton (USD)]] -> 34.95766369 | AH26: =+Tableau1[[#This Row],[28. Total dry costs per ton]]+Storage!P30 -> 37.44106972 | AI26: =+Tableau1[[#This Row],[28. Total dry costs per ton]]/1000*4000 -> 139.8306548 | AJ26: =+Tableau1[[#This Row],[30. total dry per kilo in riel]]+Storage!Q30 -> 149.7642789 | AQ26: 22 T
F27: =+F26+Drying!$D$4 -> 5200 | G27: =+Tableau1[[#This Row],[1.Tons wet paddy]]*(1-Parameters!$E$28) -> 4576 | H27: =SUMPRODUCT('Rice production'!$E$5:$E$12,'Rice production'!$I$5:$I$12) -> 900 | I27: =IF($A$1=1,SUMPRODUCT('Rice production'!$E$5:$E$12,'Rice production'!$K$5:$K$12),SUMPRODUCT('Rice production'!$E$19:$E$26,'Rice production'!$N$19:$N$26)) -> 1225 | J27: =+Tableau1[[#This Row],[4.Price dried paddy]]*SUMPRODUCT('Rice production'!$E$5:$E$12,'Rice production'!$L$5:$L$12)-Tableau1[[#This Row],[3. price wet paddy]] -> 178 | K27: =+Tableau1[[#This Row],[5.Riel Margin per kilo]]/4000*1000 -> 44.5 | L27: =Tableau1[[#This Row],[1.Tons wet paddy]]*SUMPRODUCT('Rice production'!$E$5:$E$12*('Rice production'!$C$5:$C$12="photo-sensitive")) -> 2600 | M27: =Tableau1[[#This Row],[1.Tons wet paddy]]*SUMPRODUCT('Rice production'!$E$5:$E$12*('Rice production'!$C$5:$C$12="non photo-sensitive")) -> 2600 | N27: =(Tableau1[[#This Row],[7.Nb of tons photo sensitive]]/Parameters!$E$3) -> 86.66666667 | O27: =Tableau1[[#This Row],[8.Nb of tons non-photo-sensitive]]/Parameters!$E$3 -> 86.66666667 | P27: =Tableau1[[#This Row],[9. Nb of loading photosensitive]]*(Parameters!$E$28/Parameters!$E$29)+Tableau1[[#This Row],[9. Nb of loading photosensitive]]*(Parameters!$E$31+Parameters!$E$32)/60 -> 872.4444444 | Q27: =Tableau1[[#This Row],[10. Nb of loading non- photosensitive]]*(Parameters!$E$28/Parameters!$E$29) -> 693.3333333 | R27: =ROUNDUP(+Tableau1[[#This Row],[11. Hours needed for photosensitive]]/Parameters!$E$30,1) -> 43.7 | S27: =ROUNDUP(+Tableau1[[#This Row],[12. Hours needed for non-photosensitive]]/Parameters!$E$30,1) -> 34.7 | T27: =IFERROR(INT(MAX(Tableau1[[#This Row],[13.Days needed for photosensitive]],Tableau1[[#This Row],[14.Days needed (for non-photosensitive)]])/($D$1*'Rice production'!$H$13)),0)+1 -> 5 | U27: =Parameters!$E$7*Tableau1[[#This Row],[15. nb of dryer]] -> 37500 | V27: =Parameters!$E$12 -> 1200 | W27: =+Total_Intérêts/'Loan Dry'!$G$3*Tableau1[[#This Row],[15. nb of dryer]] -> 14208.57143 | X27: =SUMPRODUCT(Parameters!$E$40:$E$43,Parameters!$G$40:$G$43) -> 7200 | Y27: =SUM(Tableau1[[#This Row],[16. Dep dryer]:[19. Labour]]) -> 60108.57143 | Z27: =Y27/Tableau1[[#This Row],[2.Tons dried paddy]] -> 13.13561439 | AA27: =+(Tableau1[[#This Row],[11. Hours needed for photosensitive]]+Tableau1[[#This Row],[12. Hours needed for non-photosensitive]])*Parameters!$E$25*Parameters!$E$34 -> 4051.45 | AB27: =Parameters!$E$35*(Tableau1[[#This Row],[11. Hours needed for photosensitive]]+Tableau1[[#This Row],[12. Hours needed for non-photosensitive]])*Parameters!$E$36/4000 -> 46973.33333 | AC27: =+Tableau1[[#This Row],[1.Tons wet paddy]]/Parameters!$E$46*Parameters!$E$45 -> 7428.571429 | AD27: =IF($A$1=1,0,(Tableau1[[#This Row],[3. price wet paddy]]*Tableau1[[#This Row],[1.Tons wet paddy]]*Parameters!$E$22/12*$D$9))*1000/4000 -> 39000 | AE27: =+SUM(Tableau1[[#This Row],[22. Electricity costs]:[25.Seasonal loan interests]]) -> 97453.35476 | AF27: =+Tableau1[[#This Row],[26. Total variable costs]]/Tableau1[[#This Row],[2.Tons dried paddy]] -> 21.29662473 | AG27: =+Tableau1[[#This Row],[27. Total variable cost/tons]]+Tableau1[[#This Row],[21. Fixed costs per ton (USD)]] -> 34.43223912 | AH27: =+Tableau1[[#This Row],[28. Total dry costs per ton]]+Storage!P31 -> 36.91564515 | AI27: =+Tableau1[[#This Row],[28. Total dry costs per ton]]/1000*4000 -> 137.7289565 | AJ27: =+Tableau1[[#This Row],[30. total dry per kilo in riel]]+Storage!Q31 -> 147.6625806 | AQ27: 30 T | AR27: 60000
F28: =+F27+Drying!$D$4 -> 5400 | G28: =+Tableau1[[#This Row],[1.Tons wet paddy]]*(1-Parameters!$E$28) -> 4752 | H28: =SUMPRODUCT('Rice production'!$E$5:$E$12,'Rice production'!$I$5:$I$12) -> 900 | I28: =IF($A$1=1,SUMPRODUCT('Rice production'!$E$5:$E$12,'Rice production'!$K$5:$K$12),SUMPRODUCT('Rice production'!$E$19:$E$26,'Rice production'!$N$19:$N$26)) -> 1225 | J28: =+Tableau1[[#This Row],[4.Price dried paddy]]*SUMPRODUCT('Rice production'!$E$5:$E$12,'Rice production'!$L$5:$L$12)-Tableau1[[#This Row],[3. price wet paddy]] -> 178 | K28: =+Tableau1[[#This Row],[5.Riel Margin per kilo]]/4000*1000 -> 44.5 | L28: =Tableau1[[#This Row],[1.Tons wet paddy]]*SUMPRODUCT('Rice production'!$E$5:$E$12*('Rice production'!$C$5:$C$12="photo-sensitive")) -> 2700 | M28: =Tableau1[[#This Row],[1.Tons wet paddy]]*SUMPRODUCT('Rice production'!$E$5:$E$12*('Rice production'!$C$5:$C$12="non photo-sensitive")) -> 2700 | N28: =(Tableau1[[#This Row],[7.Nb of tons photo sensitive]]/Parameters!$E$3) -> 90 | O28: =Tableau1[[#This Row],[8.Nb of tons non-photo-sensitive]]/Parameters!$E$3 -> 90 | P28: =Tableau1[[#This Row],[9. Nb of loading photosensitive]]*(Parameters!$E$28/Parameters!$E$29)+Tableau1[[#This Row],[9. Nb of loading photosensitive]]*(Parameters!$E$31+Parameters!$E$32)/60 -> 906 | Q28: =Tableau1[[#This Row],[10. Nb of loading non- photosensitive]]*(Parameters!$E$28/Parameters!$E$29) -> 720 | R28: =ROUNDUP(+Tableau1[[#This Row],[11. Hours needed for photosensitive]]/Parameters!$E$30,1) -> 45.3 | S28: =ROUNDUP(+Tableau1[[#This Row],[12. Hours needed for non-photosensitive]]/Parameters!$E$30,1) -> 36 | T28: =IFERROR(INT(MAX(Tableau1[[#This Row],[13.Days needed for photosensitive]],Tableau1[[#This Row],[14.Days needed (for non-photosensitive)]])/($D$1*'Rice production'!$H$13)),0)+1 -> 5 | U28: =Parameters!$E$7*Tableau1[[#This Row],[15. nb of dryer]] -> 37500 | V28: =Parameters!$E$12 -> 1200 | W28: =+Total_Intérêts/'Loan Dry'!$G$3*Tableau1[[#This Row],[15. nb of dryer]] -> 14208.57143 | X28: =SUMPRODUCT(Parameters!$E$40:$E$43,Parameters!$G$40:$G$43) -> 7200 | Y28: =SUM(Tableau1[[#This Row],[16. Dep dryer]:[19. Labour]]) -> 60108.57143 | Z28: =Y28/Tableau1[[#This Row],[2.Tons dried paddy]] -> 12.64911015 | AA28: =+(Tableau1[[#This Row],[11. Hours needed for photosensitive]]+Tableau1[[#This Row],[12. Hours needed for non-photosensitive]])*Parameters!$E$25*Parameters!$E$34 -> 4207.275 | AB28: =Parameters!$E$35*(Tableau1[[#This Row],[11. Hours needed for photosensitive]]+Tableau1[[#This Row],[12. Hours needed for non-photosensitive]])*Parameters!$E$36/4000 -> 48780 | AC28: =+Tableau1[[#This Row],[1.Tons wet paddy]]/Parameters!$E$46*Parameters!$E$45 -> 7714.285714 | AD28: =IF($A$1=1,0,(Tableau1[[#This Row],[3. price wet paddy]]*Tableau1[[#This Row],[1.Tons wet paddy]]*Parameters!$E$22/12*$D$9))*1000/4000 -> 40500 | AE28: =+SUM(Tableau1[[#This Row],[22. Electricity costs]:[25.Seasonal loan interests]]) -> 101201.5607 | AF28: =+Tableau1[[#This Row],[26. Total variable costs]]/Tableau1[[#This Row],[2.Tons dried paddy]] -> 21.29662473 | AG28: =+Tableau1[[#This Row],[27. Total variable cost/tons]]+Tableau1[[#This Row],[21. Fixed costs per ton (USD)]] -> 33.94573488 | AH28: =+Tableau1[[#This Row],[28. Total dry costs per ton]]+Storage!P32 -> 36.42914091 | AI28: =+Tableau1[[#This Row],[28. Total dry costs per ton]]/1000*4000 -> 135.7829395 | AJ28: =+Tableau1[[#This Row],[30. total dry per kilo in riel]]+Storage!Q32 -> 145.7165637 | AQ28: Lifespan: 6 years or more
F29: =+F28+Drying!$D$4 -> 5600 | G29: =+Tableau1[[#This Row],[1.Tons wet paddy]]*(1-Parameters!$E$28) -> 4928 | H29: =SUMPRODUCT('Rice production'!$E$5:$E$12,'Rice production'!$I$5:$I$12) -> 900 | I29: =IF($A$1=1,SUMPRODUCT('Rice production'!$E$5:$E$12,'Rice production'!$K$5:$K$12),SUMPRODUCT('Rice production'!$E$19:$E$26,'Rice production'!$N$19:$N$26)) -> 1225 | J29: =+Tableau1[[#This Row],[4.Price dried paddy]]*SUMPRODUCT('Rice production'!$E$5:$E$12,'Rice production'!$L$5:$L$12)-Tableau1[[#This Row],[3. price wet paddy]] -> 178 | K29: =+Tableau1[[#This Row],[5.Riel Margin per kilo]]/4000*1000 -> 44.5 | L29: =Tableau1[[#This Row],[1.Tons wet paddy]]*SUMPRODUCT('Rice production'!$E$5:$E$12*('Rice production'!$C$5:$C$12="photo-sensitive")) -> 2800 | M29: =Tableau1[[#This Row],[1.Tons wet paddy]]*SUMPRODUCT('Rice production'!$E$5:$E$12*('Rice production'!$C$5:$C$12="non photo-sensitive")) -> 2800 | N29: =(Tableau1[[#This Row],[7.Nb of tons photo sensitive]]/Parameters!$E$3) -> 93.33333333 | O29: =Tableau1[[#This Row],[8.Nb of tons non-photo-sensitive]]/Parameters!$E$3 -> 93.33333333 | P29: =Tableau1[[#This Row],[9. Nb of loading photosensitive]]*(Parameters!$E$28/Parameters!$E$29)+Tableau1[[#This Row],[9. Nb of loading photosensitive]]*(Parameters!$E$31+Parameters!$E$32)/60 -> 939.5555556 | Q29: =Tableau1[[#This Row],[10. Nb of loading non- photosensitive]]*(Parameters!$E$28/Parameters!$E$29) -> 746.6666667 | R29: =ROUNDUP(+Tableau1[[#This Row],[11. Hours needed for photosensitive]]/Parameters!$E$30,1) -> 47 | S29: =ROUNDUP(+Tableau1[[#This Row],[12. Hours needed for non-photosensitive]]/Parameters!$E$30,1) -> 37.4 | T29: =IFERROR(INT(MAX(Tableau1[[#This Row],[13.Days needed for photosensitive]],Tableau1[[#This Row],[14.Days needed (for non-photosensitive)]])/($D$1*'Rice production'!$H$13)),0)+1 -> 5 | U29: =Parameters!$E$7*Tableau1[[#This Row],[15. nb of dryer]] -> 37500 | V29: =Parameters!$E$12 -> 1200 | W29: =+Total_Intérêts/'Loan Dry'!$G$3*Tableau1[[#This Row],[15. nb of dryer]] -> 14208.57143 | X29: =SUMPRODUCT(Parameters!$E$40:$E$43,Parameters!$G$40:$G$43) -> 7200 | Y29: =SUM(Tableau1[[#This Row],[16. Dep dryer]:[19. Labour]]) -> 60108.57143 | Z29: =Y29/Tableau1[[#This Row],[2.Tons dried paddy]] -> 12.19735622 | AA29: =+(Tableau1[[#This Row],[11. Hours needed for photosensitive]]+Tableau1[[#This Row],[12. Hours needed for non-photosensitive]])*Parameters!$E$25*Parameters!$E$34 -> 4363.1 | AB29: =Parameters!$E$35*(Tableau1[[#This Row],[11. Hours needed for photosensitive]]+Tableau1[[#This Row],[12. Hours needed for non-photosensitive]])*Parameters!$E$36/4000 -> 50586.66667 | AC29: =+Tableau1[[#This Row],[1.Tons wet paddy]]/Parameters!$E$46*Parameters!$E$45 -> 8000 | AD29: =IF($A$1=1,0,(Tableau1[[#This Row],[3. price wet paddy]]*Tableau1[[#This Row],[1.Tons wet paddy]]*Parameters!$E$22/12*$D$9))*1000/4000 -> 42000 | AE29: =+SUM(Tableau1[[#This Row],[22. Electricity costs]:[25.Seasonal loan interests]]) -> 104949.7667 | AF29: =+Tableau1[[#This Row],[26. Total variable costs]]/Tableau1[[#This Row],[2.Tons dried paddy]] -> 21.29662473 | AG29: =+Tableau1[[#This Row],[27. Total variable cost/tons]]+Tableau1[[#This Row],[21. Fixed costs per ton (USD)]] -> 33.49398094 | AH29: =+Tableau1[[#This Row],[28. Total dry costs per ton]]+Storage!P33 -> 35.97738698 | AI29: =+Tableau1[[#This Row],[28. Total dry costs per ton]]/1000*4000 -> 133.9759238 | AJ29: =+Tableau1[[#This Row],[30. total dry per kilo in riel]]+Storage!Q33 -> 143.9095479 | AQ29: Drying speed: 1.2% per hour (it takes 16 hour to dry)
F30: =+F29+Drying!$D$4 -> 5800 | G30: =+Tableau1[[#This Row],[1.Tons wet paddy]]*(1-Parameters!$E$28) -> 5104 | H30: =SUMPRODUCT('Rice production'!$E$5:$E$12,'Rice production'!$I$5:$I$12) -> 900 | I30: =IF($A$1=1,SUMPRODUCT('Rice production'!$E$5:$E$12,'Rice production'!$K$5:$K$12),SUMPRODUCT('Rice production'!$E$19:$E$26,'Rice production'!$N$19:$N$26)) -> 1225 | J30: =+Tableau1[[#This Row],[4.Price dried paddy]]*SUMPRODUCT('Rice production'!$E$5:$E$12,'Rice production'!$L$5:$L$12)-Tableau1[[#This Row],[3. price wet paddy]] -> 178 | K30: =+Tableau1[[#This Row],[5.Riel Margin per kilo]]/4000*1000 -> 44.5 | L30: =Tableau1[[#This Row],[1.Tons wet paddy]]*SUMPRODUCT('Rice production'!$E$5:$E$12*('Rice production'!$C$5:$C$12="photo-sensitive")) -> 2900 | M30: =Tableau1[[#This Row],[1.Tons wet paddy]]*SUMPRODUCT('Rice production'!$E$5:$E$12*('Rice production'!$C$5:$C$12="non photo-sensitive")) -> 2900 | N30: =(Tableau1[[#This Row],[7.Nb of tons photo sensitive]]/Parameters!$E$3) -> 96.66666667 | O30: =Tableau1[[#This Row],[8.Nb of tons non-photo-sensitive]]/Parameters!$E$3 -> 96.66666667 | P30: =Tableau1[[#This Row],[9. Nb of loading photosensitive]]*(Parameters!$E$28/Parameters!$E$29)+Tableau1[[#This Row],[9. Nb of loading photosensitive]]*(Parameters!$E$31+Parameters!$E$32)/60 -> 973.1111111 | Q30: =Tableau1[[#This Row],[10. Nb of loading non- photosensitive]]*(Parameters!$E$28/Parameters!$E$29) -> 773.3333333 | R30: =ROUNDUP(+Tableau1[[#This Row],[11. Hours needed for photosensitive]]/Parameters!$E$30,1) -> 48.7 | S30: =ROUNDUP(+Tableau1[[#This Row],[12. Hours needed for non-photosensitive]]/Parameters!$E$30,1) -> 38.7 | T30: =IFERROR(INT(MAX(Tableau1[[#This Row],[13.Days needed for photosensitive]],Tableau1[[#This Row],[14.Days needed (for non-photosensitive)]])/($D$1*'Rice production'!$H$13)),0)+1 -> 5 | U30: =Parameters!$E$7*Tableau1[[#This Row],[15. nb of dryer]] -> 37500 | V30: =Parameters!$E$12 -> 1200 | W30: =+Total_Intérêts/'Loan Dry'!$G$3*Tableau1[[#This Row],[15. nb of dryer]] -> 14208.57143 | X30: =SUMPRODUCT(Parameters!$E$40:$E$43,Parameters!$G$40:$G$43) -> 7200 | Y30: =SUM(Tableau1[[#This Row],[16. Dep dryer]:[19. Labour]]) -> 60108.57143 | Z30: =Y30/Tableau1[[#This Row],[2.Tons dried paddy]] -> 11.77675773 | AA30: =+(Tableau1[[#This Row],[11. Hours needed for photosensitive]]+Tableau1[[#This Row],[12. Hours needed for non-photosensitive]])*Parameters!$E$25*Parameters!$E$34 -> 4518.925 | AB30: =Parameters!$E$35*(Tableau1[[#This Row],[11. Hours needed for photosensitive]]+Tableau1[[#This Row],[12. Hours needed for non-photosensitive]])*Parameters!$E$36/4000 -> 52393.33333 | AC30: =+Tableau1[[#This Row],[1.Tons wet paddy]]/Parameters!$E$46*Parameters!$E$45 -> 8285.714286 | AD30: =IF($A$1=1,0,(Tableau1[[#This Row],[3. price wet paddy]]*Tableau1[[#This Row],[1.Tons wet paddy]]*Parameters!$E$22/12*$D$9))*1000/4000 -> 43500 | AE30: =+SUM(Tableau1[[#This Row],[22. Electricity costs]:[25.Seasonal loan interests]]) -> 108697.9726 | AF30: =+Tableau1[[#This Row],[26. Total variable costs]]/Tableau1[[#This Row],[2.Tons dried paddy]] -> 21.29662473 | AG30: =+Tableau1[[#This Row],[27. Total variable cost/tons]]+Tableau1[[#This Row],[21. Fixed costs per ton (USD)]] -> 33.07338245 | AH30: =+Tableau1[[#This Row],[28. Total dry costs per ton]]+Storage!P34 -> 35.55678849 | AI30: =+Tableau1[[#This Row],[28. Total dry costs per ton]]/1000*4000 -> 132.2935298 | AJ30: =+Tableau1[[#This Row],[30. total dry per kilo in riel]]+Storage!Q34 -> 142.227154
F31: =+F30+Drying!$D$4 -> 6000 | G31: =+Tableau1[[#This Row],[1.Tons wet paddy]]*(1-Parameters!$E$28) -> 5280 | H31: =SUMPRODUCT('Rice production'!$E$5:$E$12,'Rice production'!$I$5:$I$12) -> 900 | I31: =IF($A$1=1,SUMPRODUCT('Rice production'!$E$5:$E$12,'Rice production'!$K$5:$K$12),SUMPRODUCT('Rice production'!$E$19:$E$26,'Rice production'!$N$19:$N$26)) -> 1225 | J31: =+Tableau1[[#This Row],[4.Price dried paddy]]*SUMPRODUCT('Rice production'!$E$5:$E$12,'Rice production'!$L$5:$L$12)-Tableau1[[#This Row],[3. price wet paddy]] -> 178 | K31: =+Tableau1[[#This Row],[5.Riel Margin per kilo]]/4000*1000 -> 44.5 | L31: =Tableau1[[#This Row],[1.Tons wet paddy]]*SUMPRODUCT('Rice production'!$E$5:$E$12*('Rice production'!$C$5:$C$12="photo-sensitive")) -> 3000 | M31: =Tableau1[[#This Row],[1.Tons wet paddy]]*SUMPRODUCT('Rice production'!$E$5:$E$12*('Rice production'!$C$5:$C$12="non photo-sensitive")) -> 3000 | N31: =(Tableau1[[#This Row],[7.Nb of tons photo sensitive]]/Parameters!$E$3) -> 100 | O31: =Tableau1[[#This Row],[8.Nb of tons non-photo-sensitive]]/Parameters!$E$3 -> 100 | P31: =Tableau1[[#This Row],[9. Nb of loading photosensitive]]*(Parameters!$E$28/Parameters!$E$29)+Tableau1[[#This Row],[9. Nb of loading photosensitive]]*(Parameters!$E$31+Parameters!$E$32)/60 -> 1006.666667 | Q31: =Tableau1[[#This Row],[10. Nb of loading non- photosensitive]]*(Parameters!$E$28/Parameters!$E$29) -> 800 | R31: =ROUNDUP(+Tableau1[[#This Row],[11. Hours needed for photosensitive]]/Parameters!$E$30,1) -> 50.4 | S31: =ROUNDUP(+Tableau1[[#This Row],[12. Hours needed for non-photosensitive]]/Parameters!$E$30,1) -> 40 | T31: =IFERROR(INT(MAX(Tableau1[[#This Row],[13.Days needed for photosensitive]],Tableau1[[#This Row],[14.Days needed (for non-photosensitive)]])/($D$1*'Rice production'!$H$13)),0)+1 -> 6 | U31: =Parameters!$E$7*Tableau1[[#This Row],[15. nb of dryer]] -> 45000 | V31: =Parameters!$E$12 -> 1200 | W31: =+Total_Intérêts/'Loan Dry'!$G$3*Tableau1[[#This Row],[15. nb of dryer]] -> 17050.28571 | X31: =SUMPRODUCT(Parameters!$E$40:$E$43,Parameters!$G$40:$G$43) -> 7200 | Y31: =SUM(Tableau1[[#This Row],[16. Dep dryer]:[19. Labour]]) -> 70450.28571 | Z31: =Y31/Tableau1[[#This Row],[2.Tons dried paddy]] -> 13.34285714 | AA31: =+(Tableau1[[#This Row],[11. Hours needed for photosensitive]]+Tableau1[[#This Row],[12. Hours needed for non-photosensitive]])*Parameters!$E$25*Parameters!$E$34 -> 4674.75 | AB31: =Parameters!$E$35*(Tableau1[[#This Row],[11. Hours needed for photosensitive]]+Tableau1[[#This Row],[12. Hours needed for non-photosensitive]])*Parameters!$E$36/4000 -> 54200 | AC31: =+Tableau1[[#This Row],[1.Tons wet paddy]]/Parameters!$E$46*Parameters!$E$45 -> 8571.428571 | AD31: =IF($A$1=1,0,(Tableau1[[#This Row],[3. price wet paddy]]*Tableau1[[#This Row],[1.Tons wet paddy]]*Parameters!$E$22/12*$D$9))*1000/4000 -> 45000 | AE31: =+SUM(Tableau1[[#This Row],[22. Electricity costs]:[25.Seasonal loan interests]]) -> 112446.1786 | AF31: =+Tableau1[[#This Row],[26. Total variable costs]]/Tableau1[[#This Row],[2.Tons dried paddy]] -> 21.29662473 | AG31: =+Tableau1[[#This Row],[27. Total variable cost/tons]]+Tableau1[[#This Row],[21. Fixed costs per ton (USD)]] -> 34.63948187 | AH31: =+Tableau1[[#This Row],[28. Total dry costs per ton]]+Storage!P35 -> 37.12288791 | AI31: =+Tableau1[[#This Row],[28. Total dry costs per ton]]/1000*4000 -> 138.5579275 | AJ31: =+Tableau1[[#This Row],[30. total dry per kilo in riel]]+Storage!Q35 -> 148.4915516
F32: =+F31+Drying!$D$4 -> 6200 | G32: =+Tableau1[[#This Row],[1.Tons wet paddy]]*(1-Parameters!$E$28) -> 5456 | H32: =SUMPRODUCT('Rice production'!$E$5:$E$12,'Rice production'!$I$5:$I$12) -> 900 | I32: =IF($A$1=1,SUMPRODUCT('Rice production'!$E$5:$E$12,'Rice production'!$K$5:$K$12),SUMPRODUCT('Rice production'!$E$19:$E$26,'Rice production'!$N$19:$N$26)) -> 1225 | J32: =+Tableau1[[#This Row],[4.Price dried paddy]]*SUMPRODUCT('Rice production'!$E$5:$E$12,'Rice production'!$L$5:$L$12)-Tableau1[[#This Row],[3. price wet paddy]] -> 178 | K32: =+Tableau1[[#This Row],[5.Riel Margin per kilo]]/4000*1000 -> 44.5 | L32: =Tableau1[[#This Row],[1.Tons wet paddy]]*SUMPRODUCT('Rice production'!$E$5:$E$12*('Rice production'!$C$5:$C$12="photo-sensitive")) -> 3100 | M32: =Tableau1[[#This Row],[1.Tons wet paddy]]*SUMPRODUCT('Rice production'!$E$5:$E$12*('Rice production'!$C$5:$C$12="non photo-sensitive")) -> 3100 | N32: =(Tableau1[[#This Row],[7.Nb of tons photo sensitive]]/Parameters!$E$3) -> 103.3333333 | O32: =Tableau1[[#This Row],[8.Nb of tons non-photo-sensitive]]/Parameters!$E$3 -> 103.3333333 | P32: =Tableau1[[#This Row],[9. Nb of loading photosensitive]]*(Parameters!$E$28/Parameters!$E$29)+Tableau1[[#This Row],[9. Nb of loading photosensitive]]*(Parameters!$E$31+Parameters!$E$32)/60 -> 1040.222222 | Q32: =Tableau1[[#This Row],[10. Nb of loading non- photosensitive]]*(Parameters!$E$28/Parameters!$E$29) -> 826.6666667 | R32: =ROUNDUP(+Tableau1[[#This Row],[11. Hours needed for photosensitive]]/Parameters!$E$30,1) -> 52.1 | S32: =ROUNDUP(+Tableau1[[#This Row],[12. Hours needed for non-photosensitive]]/Parameters!$E$30,1) -> 41.4 | T32: =IFERROR(INT(MAX(Tableau1[[#This Row],[13.Days needed for photosensitive]],Tableau1[[#This Row],[14.Days needed (for non-photosensitive)]])/($D$1*'Rice production'!$H$13)),0)+1 -> 6 | U32: =Parameters!$E$7*Tableau1[[#This Row],[15. nb of dryer]] -> 45000 | V32: =Parameters!$E$12 -> 1200 | W32: =+Total_Intérêts/'Loan Dry'!$G$3*Tableau1[[#This Row],[15. nb of dryer]] -> 17050.28571 | X32: =SUMPRODUCT(Parameters!$E$40:$E$43,Parameters!$G$40:$G$43) -> 7200 | Y32: =SUM(Tableau1[[#This Row],[16. Dep dryer]:[19. Labour]]) -> 70450.28571 | Z32: =Y32/Tableau1[[#This Row],[2.Tons dried paddy]] -> 12.9124424 | AA32: =+(Tableau1[[#This Row],[11. Hours needed for photosensitive]]+Tableau1[[#This Row],[12. Hours needed for non-photosensitive]])*Parameters!$E$25*Parameters!$E$34 -> 4830.575 | AB32: =Parameters!$E$35*(Tableau1[[#This Row],[11. Hours needed for photosensitive]]+Tableau1[[#This Row],[12. Hours needed for non-photosensitive]])*Parameters!$E$36/4000 -> 56006.66667 | AC32: =+Tableau1[[#This Row],[1.Tons wet paddy]]/Parameters!$E$46*Parameters!$E$45 -> 8857.142857 | AD32: =IF($A$1=1,0,(Tableau1[[#This Row],[3. price wet paddy]]*Tableau1[[#This Row],[1.Tons wet paddy]]*Parameters!$E$22/12*$D$9))*1000/4000 -> 46500 | AE32: =+SUM(Tableau1[[#This Row],[22. Electricity costs]:[25.Seasonal loan interests]]) -> 116194.3845 | AF32: =+Tableau1[[#This Row],[26. Total variable costs]]/Tableau1[[#This Row],[2.Tons dried paddy]] -> 21.29662473 | AG32: =+Tableau1[[#This Row],[27. Total variable cost/tons]]+Tableau1[[#This Row],[21. Fixed costs per ton (USD)]] -> 34.20906713 | AH32: =+Tableau1[[#This Row],[28. Total dry costs per ton]]+Storage!P36 -> 36.69247316 | AI32: =+Tableau1[[#This Row],[28. Total dry costs per ton]]/1000*4000 -> 136.8362685 | AJ32: =+Tableau1[[#This Row],[30. total dry per kilo in riel]]+Storage!Q36 -> 146.7698926
F33: =+F32+Drying!$D$4 -> 6400 | G33: =+Tableau1[[#This Row],[1.Tons wet paddy]]*(1-Parameters!$E$28) -> 5632 | H33: =SUMPRODUCT('Rice production'!$E$5:$E$12,'Rice production'!$I$5:$I$12) -> 900 | I33: =IF($A$1=1,SUMPRODUCT('Rice production'!$E$5:$E$12,'Rice production'!$K$5:$K$12),SUMPRODUCT('Rice production'!$E$19:$E$26,'Rice production'!$N$19:$N$26)) -> 1225 | J33: =+Tableau1[[#This Row],[4.Price dried paddy]]*SUMPRODUCT('Rice production'!$E$5:$E$12,'Rice production'!$L$5:$L$12)-Tableau1[[#This Row],[3. price wet paddy]] -> 178 | K33: =+Tableau1[[#This Row],[5.Riel Margin per kilo]]/4000*1000 -> 44.5 | L33: =Tableau1[[#This Row],[1.Tons wet paddy]]*SUMPRODUCT('Rice production'!$E$5:$E$12*('Rice production'!$C$5:$C$12="photo-sensitive")) -> 3200 | M33: =Tableau1[[#This Row],[1.Tons wet paddy]]*SUMPRODUCT('Rice production'!$E$5:$E$12*('Rice production'!$C$5:$C$12="non photo-sensitive")) -> 3200 | N33: =(Tableau1[[#This Row],[7.Nb of tons photo sensitive]]/Parameters!$E$3) -> 106.6666667 | O33: =Tableau1[[#This Row],[8.Nb of tons non-photo-sensitive]]/Parameters!$E$3 -> 106.6666667 | P33: =Tableau1[[#This Row],[9. Nb of loading photosensitive]]*(Parameters!$E$28/Parameters!$E$29)+Tableau1[[#This Row],[9. Nb of loading photosensitive]]*(Parameters!$E$31+Parameters!$E$32)/60 -> 1073.777778 | Q33: =Tableau1[[#This Row],[10. Nb of loading non- photosensitive]]*(Parameters!$E$28/Parameters!$E$29) -> 853.3333333 | R33: =ROUNDUP(+Tableau1[[#This Row],[11. Hours needed for photosensitive]]/Parameters!$E$30,1) -> 53.7 | S33: =ROUNDUP(+Tableau1[[#This Row],[12. Hours needed for non-photosensitive]]/Parameters!$E$30,1) -> 42.7 | T33: =IFERROR(INT(MAX(Tableau1[[#This Row],[13.Days needed for photosensitive]],Tableau1[[#This Row],[14.Days needed (for non-photosensitive)]])/($D$1*'Rice production'!$H$13)),0)+1 -> 6 | U33: =Parameters!$E$7*Tableau1[[#This Row],[15. nb of dryer]] -> 45000 | V33: =Parameters!$E$12 -> 1200 | W33: =+Total_Intérêts/'Loan Dry'!$G$3*Tableau1[[#This Row],[15. nb of dryer]] -> 17050.28571 | X33: =SUMPRODUCT(Parameters!$E$40:$E$43,Parameters!$G$40:$G$43) -> 7200 | Y33: =SUM(Tableau1[[#This Row],[16. Dep dryer]:[19. Labour]]) -> 70450.28571 | Z33: =Y33/Tableau1[[#This Row],[2.Tons dried paddy]] -> 12.50892857 | AA33: =+(Tableau1[[#This Row],[11. Hours needed for photosensitive]]+Tableau1[[#This Row],[12. Hours needed for non-photosensitive]])*Parameters!$E$25*Parameters!$E$34 -> 4986.4 | AB33: =Parameters!$E$35*(Tableau1[[#This Row],[11. Hours needed for photosensitive]]+Tableau1[[#This Row],[12. Hours needed for non-photosensitive]])*Parameters!$E$36/4000 -> 57813.33333 | AC33: =+Tableau1[[#This Row],[1.Tons wet paddy]]/Parameters!$E$46*Parameters!$E$45 -> 9142.857143 | AD33: =IF($A$1=1,0,(Tableau1[[#This Row],[3. price wet paddy]]*Tableau1[[#This Row],[1.Tons wet paddy]]*Parameters!$E$22/12*$D$9))*1000/4000 -> 48000 | AE33: =+SUM(Tableau1[[#This Row],[22. Electricity costs]:[25.Seasonal loan interests]]) -> 119942.5905 | AF33: =+Tableau1[[#This Row],[26. Total variable costs]]/Tableau1[[#This Row],[2.Tons dried paddy]] -> 21.29662473 | AG33: =+Tableau1[[#This Row],[27. Total variable cost/tons]]+Tableau1[[#This Row],[21. Fixed costs per ton (USD)]] -> 33.8055533 | AH33: =+Tableau1[[#This Row],[28. Total dry costs per ton]]+Storage!P37 -> 36.28895934 | AI33: =+Tableau1[[#This Row],[28. Total dry costs per ton]]/1000*4000 -> 135.2222132 | AJ33: =+Tableau1[[#This Row],[30. total dry per kilo in riel]]+Storage!Q37 -> 145.1558373
F34: =+F33+Drying!$D$4 -> 6600 | G34: =+Tableau1[[#This Row],[1.Tons wet paddy]]*(1-Parameters!$E$28) -> 5808 | H34: =SUMPRODUCT('Rice production'!$E$5:$E$12,'Rice production'!$I$5:$I$12) -> 900 | I34: =IF($A$1=1,SUMPRODUCT('Rice production'!$E$5:$E$12,'Rice production'!$K$5:$K$12),SUMPRODUCT('Rice production'!$E$19:$E$26,'Rice production'!$N$19:$N$26)) -> 1225 | J34: =+Tableau1[[#This Row],[4.Price dried paddy]]*SUMPRODUCT('Rice production'!$E$5:$E$12,'Rice production'!$L$5:$L$12)-Tableau1[[#This Row],[3. price wet paddy]] -> 178 | K34: =+Tableau1[[#This Row],[5.Riel Margin per kilo]]/4000*1000 -> 44.5 | L34: =Tableau1[[#This Row],[1.Tons wet paddy]]*SUMPRODUCT('Rice production'!$E$5:$E$12*('Rice production'!$C$5:$C$12="photo-sensitive")) -> 3300 | M34: =Tableau1[[#This Row],[1.Tons wet paddy]]*SUMPRODUCT('Rice production'!$E$5:$E$12*('Rice production'!$C$5:$C$12="non photo-sensitive")) -> 3300 | N34: =(Tableau1[[#This Row],[7.Nb of tons photo sensitive]]/Parameters!$E$3) -> 110 | O34: =Tableau1[[#This Row],[8.Nb of tons non-photo-sensitive]]/Parameters!$E$3 -> 110 | P34: =Tableau1[[#This Row],[9. Nb of loading photosensitive]]*(Parameters!$E$28/Parameters!$E$29)+Tableau1[[#This Row],[9. Nb of loading photosensitive]]*(Parameters!$E$31+Parameters!$E$32)/60 -> 1107.333333 | Q34: =Tableau1[[#This Row],[10. Nb of loading non- photosensitive]]*(Parameters!$E$28/Parameters!$E$29) -> 880 | R34: =ROUNDUP(+Tableau1[[#This Row],[11. Hours needed for photosensitive]]/Parameters!$E$30,1) -> 55.4 | S34: =ROUNDUP(+Tableau1[[#This Row],[12. Hours needed for non-photosensitive]]/Parameters!$E$30,1) -> 44 | T34: =IFERROR(INT(MAX(Tableau1[[#This Row],[13.Days needed for photosensitive]],Tableau1[[#This Row],[14.Days needed (for non-photosensitive)]])/($D$1*'Rice production'!$H$13)),0)+1 -> 6 | U34: =Parameters!$E$7*Tableau1[[#This Row],[15. nb of dryer]] -> 45000 | V34: =Parameters!$E$12 -> 1200 | W34: =+Total_Intérêts/'Loan Dry'!$G$3*Tableau1[[#This Row],[15. nb of dryer]] -> 17050.28571 | X34: =SUMPRODUCT(Parameters!$E$40:$E$43,Parameters!$G$40:$G$43) -> 7200 | Y34: =SUM(Tableau1[[#This Row],[16. Dep dryer]:[19. Labour]]) -> 70450.28571 | Z34: =Y34/Tableau1[[#This Row],[2.Tons dried paddy]] -> 12.12987013 | AA34: =+(Tableau1[[#This Row],[11. Hours needed for photosensitive]]+Tableau1[[#This Row],[12. Hours needed for non-photosensitive]])*Parameters!$E$25*Parameters!$E$34 -> 5142.225 | AB34: =Parameters!$E$35*(Tableau1[[#This Row],[11. Hours needed for photosensitive]]+Tableau1[[#This Row],[12. Hours needed for non-photosensitive]])*Parameters!$E$36/4000 -> 59620 | AC34: =+Tableau1[[#This Row],[1.Tons wet paddy]]/Parameters!$E$46*Parameters!$E$45 -> 9428.571429 | AD34: =IF($A$1=1,0,(Tableau1[[#This Row],[3. price wet paddy]]*Tableau1[[#This Row],[1.Tons wet paddy]]*Parameters!$E$22/12*$D$9))*1000/4000 -> 49500 | AE34: =+SUM(Tableau1[[#This Row],[22. Electricity costs]:[25.Seasonal loan interests]]) -> 123690.7964 | AF34: =+Tableau1[[#This Row],[26. Total variable costs]]/Tableau1[[#This Row],[2.Tons dried paddy]] -> 21.29662473 | AG34: =+Tableau1[[#This Row],[27. Total variable cost/tons]]+Tableau1[[#This Row],[21. Fixed costs per ton (USD)]] -> 33.42649486 | AH34: =+Tableau1[[#This Row],[28. Total dry costs per ton]]+Storage!P38 -> 35.90990089 | AI34: =+Tableau1[[#This Row],[28. Total dry costs per ton]]/1000*4000 -> 133.7059794 | AJ34: =+Tableau1[[#This Row],[30. total dry per kilo in riel]]+Storage!Q38 -> 143.6396036
F35: =+F34+Drying!$D$4 -> 6800 | G35: =+Tableau1[[#This Row],[1.Tons wet paddy]]*(1-Parameters!$E$28) -> 5984 | H35: =SUMPRODUCT('Rice production'!$E$5:$E$12,'Rice production'!$I$5:$I$12) -> 900 | I35: =IF($A$1=1,SUMPRODUCT('Rice production'!$E$5:$E$12,'Rice production'!$K$5:$K$12),SUMPRODUCT('Rice production'!$E$19:$E$26,'Rice production'!$N$19:$N$26)) -> 1225 | J35: =+Tableau1[[#This Row],[4.Price dried paddy]]*SUMPRODUCT('Rice production'!$E$5:$E$12,'Rice production'!$L$5:$L$12)-Tableau1[[#This Row],[3. price wet paddy]] -> 178 | K35: =+Tableau1[[#This Row],[5.Riel Margin per kilo]]/4000*1000 -> 44.5 | L35: =Tableau1[[#This Row],[1.Tons wet paddy]]*SUMPRODUCT('Rice production'!$E$5:$E$12*('Rice production'!$C$5:$C$12="photo-sensitive")) -> 3400 | M35: =Tableau1[[#This Row],[1.Tons wet paddy]]*SUMPRODUCT('Rice production'!$E$5:$E$12*('Rice production'!$C$5:$C$12="non photo-sensitive")) -> 3400 | N35: =(Tableau1[[#This Row],[7.Nb of tons photo sensitive]]/Parameters!$E$3) -> 113.3333333 | O35: =Tableau1[[#This Row],[8.Nb of tons non-photo-sensitive]]/Parameters!$E$3 -> 113.3333333 | P35: =Tableau1[[#This Row],[9. Nb of loading photosensitive]]*(Parameters!$E$28/Parameters!$E$29)+Tableau1[[#This Row],[9. Nb of loading photosensitive]]*(Parameters!$E$31+Parameters!$E$32)/60 -> 1140.888889 | Q35: =Tableau1[[#This Row],[10. Nb of loading non- photosensitive]]*(Parameters!$E$28/Parameters!$E$29) -> 906.6666667 | R35: =ROUNDUP(+Tableau1[[#This Row],[11. Hours needed for photosensitive]]/Parameters!$E$30,1) -> 57.1 | S35: =ROUNDUP(+Tableau1[[#This Row],[12. Hours needed for non-photosensitive]]/Parameters!$E$30,1) -> 45.4 | T35: =IFERROR(INT(MAX(Tableau1[[#This Row],[13.Days needed for photosensitive]],Tableau1[[#This Row],[14.Days needed (for non-photosensitive)]])/($D$1*'Rice production'!$H$13)),0)+1 -> 6 | U35: =Parameters!$E$7*Tableau1[[#This Row],[15. nb of dryer]] -> 45000 | V35: =Parameters!$E$12 -> 1200 | W35: =+Total_Intérêts/'Loan Dry'!$G$3*Tableau1[[#This Row],[15. nb of dryer]] -> 17050.28571 | X35: =SUMPRODUCT(Parameters!$E$40:$E$43,Parameters!$G$40:$G$43) -> 7200 | Y35: =SUM(Tableau1[[#This Row],[16. Dep dryer]:[19. Labour]]) -> 70450.28571 | Z35: =Y35/Tableau1[[#This Row],[2.Tons dried paddy]] -> 11.77310924 | AA35: =+(Tableau1[[#This Row],[11. Hours needed for photosensitive]]+Tableau1[[#This Row],[12. Hours needed for non-photosensitive]])*Parameters!$E$25*Parameters!$E$34 -> 5298.05 | AB35: =Parameters!$E$35*(Tableau1[[#This Row],[11. Hours needed for photosensitive]]+Tableau1[[#This Row],[12. Hours needed for non-photosensitive]])*Parameters!$E$36/4000 -> 61426.66667 | AC35: =+Tableau1[[#This Row],[1.Tons wet paddy]]/Parameters!$E$46*Parameters!$E$45 -> 9714.285714 | AD35: =IF($A$1=1,0,(Tableau1[[#This Row],[3. price wet paddy]]*Tableau1[[#This Row],[1.Tons wet paddy]]*Parameters!$E$22/12*$D$9))*1000/4000 -> 51000 | AE35: =+SUM(Tableau1[[#This Row],[22. Electricity costs]:[25.Seasonal loan interests]]) -> 127439.0024 | AF35: =+Tableau1[[#This Row],[26. Total variable costs]]/Tableau1[[#This Row],[2.Tons dried paddy]] -> 21.29662473 | AG35: =+Tableau1[[#This Row],[27. Total variable cost/tons]]+Tableau1[[#This Row],[21. Fixed costs per ton (USD)]] -> 33.06973397 | AH35: =+Tableau1[[#This Row],[28. Total dry costs per ton]]+Storage!P39 -> 35.55314001 | AI35: =+Tableau1[[#This Row],[28. Total dry costs per ton]]/1000*4000 -> 132.2789359 | AJ35: =+Tableau1[[#This Row],[30. total dry per kilo in riel]]+Storage!Q39 -> 142.21256
F36: =+F35+Drying!$D$4 -> 7000 | G36: =+Tableau1[[#This Row],[1.Tons wet paddy]]*(1-Parameters!$E$28) -> 6160 | H36: =SUMPRODUCT('Rice production'!$E$5:$E$12,'Rice production'!$I$5:$I$12) -> 900 | I36: =IF($A$1=1,SUMPRODUCT('Rice production'!$E$5:$E$12,'Rice production'!$K$5:$K$12),SUMPRODUCT('Rice production'!$E$19:$E$26,'Rice production'!$N$19:$N$26)) -> 1225 | J36: =+Tableau1[[#This Row],[4.Price dried paddy]]*SUMPRODUCT('Rice production'!$E$5:$E$12,'Rice production'!$L$5:$L$12)-Tableau1[[#This Row],[3. price wet paddy]] -> 178 | K36: =+Tableau1[[#This Row],[5.Riel Margin per kilo]]/4000*1000 -> 44.5 | L36: =Tableau1[[#This Row],[1.Tons wet paddy]]*SUMPRODUCT('Rice production'!$E$5:$E$12*('Rice production'!$C$5:$C$12="photo-sensitive")) -> 3500 | M36: =Tableau1[[#This Row],[1.Tons wet paddy]]*SUMPRODUCT('Rice production'!$E$5:$E$12*('Rice production'!$C$5:$C$12="non photo-sensitive")) -> 3500 | N36: =(Tableau1[[#This Row],[7.Nb of tons photo sensitive]]/Parameters!$E$3) -> 116.6666667 | O36: =Tableau1[[#This Row],[8.Nb of tons non-photo-sensitive]]/Parameters!$E$3 -> 116.6666667 | P36: =Tableau1[[#This Row],[9. Nb of loading photosensitive]]*(Parameters!$E$28/Parameters!$E$29)+Tableau1[[#This Row],[9. Nb of loading photosensitive]]*(Parameters!$E$31+Parameters!$E$32)/60 -> 1174.444444 | Q36: =Tableau1[[#This Row],[10. Nb of loading non- photosensitive]]*(Parameters!$E$28/Parameters!$E$29) -> 933.3333333 | R36: =ROUNDUP(+Tableau1[[#This Row],[11. Hours needed for photosensitive]]/Parameters!$E$30,1) -> 58.8 | S36: =ROUNDUP(+Tableau1[[#This Row],[12. Hours needed for non-photosensitive]]/Parameters!$E$30,1) -> 46.7 | T36: =IFERROR(INT(MAX(Tableau1[[#This Row],[13.Days needed for photosensitive]],Tableau1[[#This Row],[14.Days needed (for non-photosensitive)]])/($D$1*'Rice production'!$H$13)),0)+1 -> 6 | U36: =Parameters!$E$7*Tableau1[[#This Row],[15. nb of dryer]] -> 45000 | V36: =Parameters!$E$12 -> 1200 | W36: =+Total_Intérêts/'Loan Dry'!$G$3*Tableau1[[#This Row],[15. nb of dryer]] -> 17050.28571 | X36: =SUMPRODUCT(Parameters!$E$40:$E$43,Parameters!$G$40:$G$43) -> 7200 | Y36: =SUM(Tableau1[[#This Row],[16. Dep dryer]:[19. Labour]]) -> 70450.28571 | Z36: =Y36/Tableau1[[#This Row],[2.Tons dried paddy]] -> 11.43673469 | AA36: =+(Tableau1[[#This Row],[11. Hours needed for photosensitive]]+Tableau1[[#This Row],[12. Hours needed for non-photosensitive]])*Parameters!$E$25*Parameters!$E$34 -> 5453.875 | AB36: =Parameters!$E$35*(Tableau1[[#This Row],[11. Hours needed for photosensitive]]+Tableau1[[#This Row],[12. Hours needed for non-photosensitive]])*Parameters!$E$36/4000 -> 63233.33333 | AC36: =+Tableau1[[#This Row],[1.Tons wet paddy]]/Parameters!$E$46*Parameters!$E$45 -> 10000 | AD36: =IF($A$1=1,0,(Tableau1[[#This Row],[3. price wet paddy]]*Tableau1[[#This Row],[1.Tons wet paddy]]*Parameters!$E$22/12*$D$9))*1000/4000 -> 52500 | AE36: =+SUM(Tableau1[[#This Row],[22. Electricity costs]:[25.Seasonal loan interests]]) -> 131187.2083 | AF36: =+Tableau1[[#This Row],[26. Total variable costs]]/Tableau1[[#This Row],[2.Tons dried paddy]] -> 21.29662473 | AG36: =+Tableau1[[#This Row],[27. Total variable cost/tons]]+Tableau1[[#This Row],[21. Fixed costs per ton (USD)]] -> 32.73335942 | AH36: =+Tableau1[[#This Row],[28. Total dry costs per ton]]+Storage!P40 -> 35.21676546 | AI36: =+Tableau1[[#This Row],[28. Total dry costs per ton]]/1000*4000 -> 130.9334377 | AJ36: =+Tableau1[[#This Row],[30. total dry per kilo in riel]]+Storage!Q40 -> 140.8670618
F37: =+F36+Drying!$D$4 -> 7200 | G37: =+Tableau1[[#This Row],[1.Tons wet paddy]]*(1-Parameters!$E$28) -> 6336 | H37: =SUMPRODUCT('Rice production'!$E$5:$E$12,'Rice production'!$I$5:$I$12) -> 900 | I37: =IF($A$1=1,SUMPRODUCT('Rice production'!$E$5:$E$12,'Rice production'!$K$5:$K$12),SUMPRODUCT('Rice production'!$E$19:$E$26,'Rice production'!$N$19:$N$26)) -> 1225 | J37: =+Tableau1[[#This Row],[4.Price dried paddy]]*SUMPRODUCT('Rice production'!$E$5:$E$12,'Rice production'!$L$5:$L$12)-Tableau1[[#This Row],[3. price wet paddy]] -> 178 | K37: =+Tableau1[[#This Row],[5.Riel Margin per kilo]]/4000*1000 -> 44.5 | L37: =Tableau1[[#This Row],[1.Tons wet paddy]]*SUMPRODUCT('Rice production'!$E$5:$E$12*('Rice production'!$C$5:$C$12="photo-sensitive")) -> 3600 | M37: =Tableau1[[#This Row],[1.Tons wet paddy]]*SUMPRODUCT('Rice production'!$E$5:$E$12*('Rice production'!$C$5:$C$12="non photo-sensitive")) -> 3600 | N37: =(Tableau1[[#This Row],[7.Nb of tons photo sensitive]]/Parameters!$E$3) -> 120 | O37: =Tableau1[[#This Row],[8.Nb of tons non-photo-sensitive]]/Parameters!$E$3 -> 120 | P37: =Tableau1[[#This Row],[9. Nb of loading photosensitive]]*(Parameters!$E$28/Parameters!$E$29)+Tableau1[[#This Row],[9. Nb of loading photosensitive]]*(Parameters!$E$31+Parameters!$E$32)/60 -> 1208 | Q37: =Tableau1[[#This Row],[10. Nb of loading non- photosensitive]]*(Parameters!$E$28/Parameters!$E$29) -> 960 | R37: =ROUNDUP(+Tableau1[[#This Row],[11. Hours needed for photosensitive]]/Parameters!$E$30,1) -> 60.4 | S37: =ROUNDUP(+Tableau1[[#This Row],[12. Hours needed for non-photosensitive]]/Parameters!$E$30,1) -> 48 | T37: =IFERROR(INT(MAX(Tableau1[[#This Row],[13.Days needed for photosensitive]],Tableau1[[#This Row],[14.Days needed (for non-photosensitive)]])/($D$1*'Rice production'!$H$13)),0)+1 -> 7 | U37: =Parameters!$E$7*Tableau1[[#This Row],[15. nb of dryer]] -> 52500 | V37: =Parameters!$E$12 -> 1200 | W37: =+Total_Intérêts/'Loan Dry'!$G$3*Tableau1[[#This Row],[15. nb of dryer]] -> 19892 | X37: =SUMPRODUCT(Parameters!$E$40:$E$43,Parameters!$G$40:$G$43) -> 7200 | Y37: =SUM(Tableau1[[#This Row],[16. Dep dryer]:[19. Labour]]) -> 80792 | Z37: =Y37/Tableau1[[#This Row],[2.Tons dried paddy]] -> 12.75126263 | AA37: =+(Tableau1[[#This Row],[11. Hours needed for photosensitive]]+Tableau1[[#This Row],[12. Hours needed for non-photosensitive]])*Parameters!$E$25*Parameters!$E$34 -> 5609.7 | AB37: =Parameters!$E$35*(Tableau1[[#This Row],[11. Hours needed for photosensitive]]+Tableau1[[#This Row],[12. Hours needed for non-photosensitive]])*Parameters!$E$36/4000 -> 65040 | AC37: =+Tableau1[[#This Row],[1.Tons wet paddy]]/Parameters!$E$46*Parameters!$E$45 -> 10285.71429 | AD37: =IF($A$1=1,0,(Tableau1[[#This Row],[3. price wet paddy]]*Tableau1[[#This Row],[1.Tons wet paddy]]*Parameters!$E$22/12*$D$9))*1000/4000 -> 54000 | AE37: =+SUM(Tableau1[[#This Row],[22. Electricity costs]:[25.Seasonal loan interests]]) -> 134935.4143 | AF37: =+Tableau1[[#This Row],[26. Total variable costs]]/Tableau1[[#This Row],[2.Tons dried paddy]] -> 21.29662473 | AG37: =+Tableau1[[#This Row],[27. Total variable cost/tons]]+Tableau1[[#This Row],[21. Fixed costs per ton (USD)]] -> 34.04788736 | AH37: =+Tableau1[[#This Row],[28. Total dry costs per ton]]+Storage!P41 -> 36.53129339 | AI37: =+Tableau1[[#This Row],[28. Total dry costs per ton]]/1000*4000 -> 136.1915494 | AJ37: =+Tableau1[[#This Row],[30. total dry per kilo in riel]]+Storage!Q41 -> 146.1251736
F38: =+F37+Drying!$D$4 -> 7400 | G38: =+Tableau1[[#This Row],[1.Tons wet paddy]]*(1-Parameters!$E$28) -> 6512 | H38: =SUMPRODUCT('Rice production'!$E$5:$E$12,'Rice production'!$I$5:$I$12) -> 900 | I38: =IF($A$1=1,SUMPRODUCT('Rice production'!$E$5:$E$12,'Rice production'!$K$5:$K$12),SUMPRODUCT('Rice production'!$E$19:$E$26,'Rice production'!$N$19:$N$26)) -> 1225 | J38: =+Tableau1[[#This Row],[4.Price dried paddy]]*SUMPRODUCT('Rice production'!$E$5:$E$12,'Rice production'!$L$5:$L$12)-Tableau1[[#This Row],[3. price wet paddy]] -> 178 | K38: =+Tableau1[[#This Row],[5.Riel Margin per kilo]]/4000*1000 -> 44.5 | L38: =Tableau1[[#This Row],[1.Tons wet paddy]]*SUMPRODUCT('Rice production'!$E$5:$E$12*('Rice production'!$C$5:$C$12="photo-sensitive")) -> 3700 | M38: =Tableau1[[#This Row],[1.Tons wet paddy]]*SUMPRODUCT('Rice production'!$E$5:$E$12*('Rice production'!$C$5:$C$12="non photo-sensitive")) -> 3700 | N38: =(Tableau1[[#This Row],[7.Nb of tons photo sensitive]]/Parameters!$E$3) -> 123.3333333 | O38: =Tableau1[[#This Row],[8.Nb of tons non-photo-sensitive]]/Parameters!$E$3 -> 123.3333333 | P38: =Tableau1[[#This Row],[9. Nb of loading photosensitive]]*(Parameters!$E$28/Parameters!$E$29)+Tableau1[[#This Row],[9. Nb of loading photosensitive]]*(Parameters!$E$31+Parameters!$E$32)/60 -> 1241.555556 | Q38: =Tableau1[[#This Row],[10. Nb of loading non- photosensitive]]*(Parameters!$E$28/Parameters!$E$29) -> 986.6666667 | R38: =ROUNDUP(+Tableau1[[#This Row],[11. Hours needed for photosensitive]]/Parameters!$E$30,1) -> 62.1 | S38: =ROUNDUP(+Tableau1[[#This Row],[12. Hours needed for non-photosensitive]]/Parameters!$E$30,1) -> 49.4 | T38: =IFERROR(INT(MAX(Tableau1[[#This Row],[13.Days needed for photosensitive]],Tableau1[[#This Row],[14.Days needed (for non-photosensitive)]])/($D$1*'Rice production'!$H$13)),0)+1 -> 7 | U38: =Parameters!$E$7*Tableau1[[#This Row],[15. nb of dryer]] -> 52500 | V38: =Parameters!$E$12 -> 1200 | W38: =+Total_Intérêts/'Loan Dry'!$G$3*Tableau1[[#This Row],[15. nb of dryer]] -> 19892 | X38: =SUMPRODUCT(Parameters!$E$40:$E$43,Parameters!$G$40:$G$43) -> 7200 | Y38: =SUM(Tableau1[[#This Row],[16. Dep dryer]:[19. Labour]]) -> 80792 | Z38: =Y38/Tableau1[[#This Row],[2.Tons dried paddy]] -> 12.40663391 | AA38: =+(Tableau1[[#This Row],[11. Hours needed for photosensitive]]+Tableau1[[#This Row],[12. Hours needed for non-photosensitive]])*Parameters!$E$25*Parameters!$E$34 -> 5765.525 | AB38: =Parameters!$E$35*(Tableau1[[#This Row],[11. Hours needed for photosensitive]]+Tableau1[[#This Row],[12. Hours needed for non-photosensitive]])*Parameters!$E$36/4000 -> 66846.66667 | AC38: =+Tableau1[[#This Row],[1.Tons wet paddy]]/Parameters!$E$46*Parameters!$E$45 -> 10571.42857 | AD38: =IF($A$1=1,0,(Tableau1[[#This Row],[3. price wet paddy]]*Tableau1[[#This Row],[1.Tons wet paddy]]*Parameters!$E$22/12*$D$9))*1000/4000 -> 55500 | AE38: =+SUM(Tableau1[[#This Row],[22. Electricity costs]:[25.Seasonal loan interests]]) -> 138683.6202 | AF38: =+Tableau1[[#This Row],[26. Total variable costs]]/Tableau1[[#This Row],[2.Tons dried paddy]] -> 21.29662473 | AG38: =+Tableau1[[#This Row],[27. Total variable cost/tons]]+Tableau1[[#This Row],[21. Fixed costs per ton (USD)]] -> 33.70325864 | AH38: =+Tableau1[[#This Row],[28. Total dry costs per ton]]+Storage!P42 -> 36.18666467 | AI38: =+Tableau1[[#This Row],[28. Total dry costs per ton]]/1000*4000 -> 134.8130345 | AJ38: =+Tableau1[[#This Row],[30. total dry per kilo in riel]]+Storage!Q42 -> 144.7466587
F39: =+F38+Drying!$D$4 -> 7600 | G39: =+Tableau1[[#This Row],[1.Tons wet paddy]]*(1-Parameters!$E$28) -> 6688 | H39: =SUMPRODUCT('Rice production'!$E$5:$E$12,'Rice production'!$I$5:$I$12) -> 900 | I39: =IF($A$1=1,SUMPRODUCT('Rice production'!$E$5:$E$12,'Rice production'!$K$5:$K$12),SUMPRODUCT('Rice production'!$E$19:$E$26,'Rice production'!$N$19:$N$26)) -> 1225 | J39: =+Tableau1[[#This Row],[4.Price dried paddy]]*SUMPRODUCT('Rice production'!$E$5:$E$12,'Rice production'!$L$5:$L$12)-Tableau1[[#This Row],[3. price wet paddy]] -> 178 | K39: =+Tableau1[[#This Row],[5.Riel Margin per kilo]]/4000*1000 -> 44.5 | L39: =Tableau1[[#This Row],[1.Tons wet paddy]]*SUMPRODUCT('Rice production'!$E$5:$E$12*('Rice production'!$C$5:$C$12="photo-sensitive")) -> 3800 | M39: =Tableau1[[#This Row],[1.Tons wet paddy]]*SUMPRODUCT('Rice production'!$E$5:$E$12*('Rice production'!$C$5:$C$12="non photo-sensitive")) -> 3800 | N39: =(Tableau1[[#This Row],[7.Nb of tons photo sensitive]]/Parameters!$E$3) -> 126.6666667 | O39: =Tableau1[[#This Row],[8.Nb of tons non-photo-sensitive]]/Parameters!$E$3 -> 126.6666667 | P39: =Tableau1[[#This Row],[9. Nb of loading photosensitive]]*(Parameters!$E$28/Parameters!$E$29)+Tableau1[[#This Row],[9. Nb of loading photosensitive]]*(Parameters!$E$31+Parameters!$E$32)/60 -> 1275.111111 | Q39: =Tableau1[[#This Row],[10. Nb of loading non- photosensitive]]*(Parameters!$E$28/Parameters!$E$29) -> 1013.333333 | R39: =ROUNDUP(+Tableau1[[#This Row],[11. Hours needed for photosensitive]]/Parameters!$E$30,1) -> 63.8 | S39: =ROUNDUP(+Tableau1[[#This Row],[12. Hours needed for non-photosensitive]]/Parameters!$E$30,1) -> 50.7 | T39: =IFERROR(INT(MAX(Tableau1[[#This Row],[13.Days needed for photosensitive]],Tableau1[[#This Row],[14.Days needed (for non-photosensitive)]])/($D$1*'Rice production'!$H$13)),0)+1 -> 7 | U39: =Parameters!$E$7*Tableau1[[#This Row],[15. nb of dryer]] -> 52500 | V39: =Parameters!$E$12 -> 1200 | W39: =+Total_Intérêts/'Loan Dry'!$G$3*Tableau1[[#This Row],[15. nb of dryer]] -> 19892 | X39: =SUMPRODUCT(Parameters!$E$40:$E$43,Parameters!$G$40:$G$43) -> 7200 | Y39: =SUM(Tableau1[[#This Row],[16. Dep dryer]:[19. Labour]]) -> 80792 | Z39: =Y39/Tableau1[[#This Row],[2.Tons dried paddy]] -> 12.08014354 | AA39: =+(Tableau1[[#This Row],[11. Hours needed for photosensitive]]+Tableau1[[#This Row],[12. Hours needed for non-photosensitive]])*Parameters!$E$25*Parameters!$E$34 -> 5921.35 | AB39: =Parameters!$E$35*(Tableau1[[#This Row],[11. Hours needed for photosensitive]]+Tableau1[[#This Row],[12. Hours needed for non-photosensitive]])*Parameters!$E$36/4000 -> 68653.33333 | AC39: =+Tableau1[[#This Row],[1.Tons wet paddy]]/Parameters!$E$46*Parameters!$E$45 -> 10857.14286 | AD39: =IF($A$1=1,0,(Tableau1[[#This Row],[3. price wet paddy]]*Tableau1[[#This Row],[1.Tons wet paddy]]*Parameters!$E$22/12*$D$9))*1000/4000 -> 57000 | AE39: =+SUM(Tableau1[[#This Row],[22. Electricity costs]:[25.Seasonal loan interests]]) -> 142431.8262 | AF39: =+Tableau1[[#This Row],[26. Total variable costs]]/Tableau1[[#This Row],[2.Tons dried paddy]] -> 21.29662473 | AG39: =+Tableau1[[#This Row],[27. Total variable cost/tons]]+Tableau1[[#This Row],[21. Fixed costs per ton (USD)]] -> 33.37676827 | AH39: =+Tableau1[[#This Row],[28. Total dry costs per ton]]+Storage!P43 -> 35.8601743 | AI39: =+Tableau1[[#This Row],[28. Total dry costs per ton]]/1000*4000 -> 133.5070731 | AJ39: =+Tableau1[[#This Row],[30. total dry per kilo in riel]]+Storage!Q43 -> 143.4406972
F40: =+F39+Drying!$D$4 -> 7800 | G40: =+Tableau1[[#This Row],[1.Tons wet paddy]]*(1-Parameters!$E$28) -> 6864 | H40: =SUMPRODUCT('Rice production'!$E$5:$E$12,'Rice production'!$I$5:$I$12) -> 900 | I40: =IF($A$1=1,SUMPRODUCT('Rice production'!$E$5:$E$12,'Rice production'!$K$5:$K$12),SUMPRODUCT('Rice production'!$E$19:$E$26,'Rice production'!$N$19:$N$26)) -> 1225 | J40: =+Tableau1[[#This Row],[4.Price dried paddy]]*SUMPRODUCT('Rice production'!$E$5:$E$12,'Rice production'!$L$5:$L$12)-Tableau1[[#This Row],[3. price wet paddy]] -> 178 | K40: =+Tableau1[[#This Row],[5.Riel Margin per kilo]]/4000*1000 -> 44.5 | L40: =Tableau1[[#This Row],[1.Tons wet paddy]]*SUMPRODUCT('Rice production'!$E$5:$E$12*('Rice production'!$C$5:$C$12="photo-sensitive")) -> 3900 | M40: =Tableau1[[#This Row],[1.Tons wet paddy]]*SUMPRODUCT('Rice production'!$E$5:$E$12*('Rice production'!$C$5:$C$12="non photo-sensitive")) -> 3900 | N40: =(Tableau1[[#This Row],[7.Nb of tons photo sensitive]]/Parameters!$E$3) -> 130 | O40: =Tableau1[[#This Row],[8.Nb of tons non-photo-sensitive]]/Parameters!$E$3 -> 130 | P40: =Tableau1[[#This Row],[9. Nb of loading photosensitive]]*(Parameters!$E$28/Parameters!$E$29)+Tableau1[[#This Row],[9. Nb of loading photosensitive]]*(Parameters!$E$31+Parameters!$E$32)/60 -> 1308.666667 | Q40: =Tableau1[[#This Row],[10. Nb of loading non- photosensitive]]*(Parameters!$E$28/Parameters!$E$29) -> 1040 | R40: =ROUNDUP(+Tableau1[[#This Row],[11. Hours needed for photosensitive]]/Parameters!$E$30,1) -> 65.5 | S40: =ROUNDUP(+Tableau1[[#This Row],[12. Hours needed for non-photosensitive]]/Parameters!$E$30,1) -> 52 | T40: =IFERROR(INT(MAX(Tableau1[[#This Row],[13.Days needed for photosensitive]],Tableau1[[#This Row],[14.Days needed (for non-photosensitive)]])/($D$1*'Rice production'!$H$13)),0)+1 -> 7 | U40: =Parameters!$E$7*Tableau1[[#This Row],[15. nb of dryer]] -> 52500 | V40: =Parameters!$E$12 -> 1200 | W40: =+Total_Intérêts/'Loan Dry'!$G$3*Tableau1[[#This Row],[15. nb of dryer]] -> 19892 | X40: =SUMPRODUCT(Parameters!$E$40:$E$43,Parameters!$G$40:$G$43) -> 7200 | Y40: =SUM(Tableau1[[#This Row],[16. Dep dryer]:[19. Labour]]) -> 80792 | Z40: =Y40/Tableau1[[#This Row],[2.Tons dried paddy]] -> 11.77039627 | AA40: =+(Tableau1[[#This Row],[11. Hours needed for photosensitive]]+Tableau1[[#This Row],[12. Hours needed for non-photosensitive]])*Parameters!$E$25*Parameters!$E$34 -> 6077.175 | AB40: =Parameters!$E$35*(Tableau1[[#This Row],[11. Hours needed for photosensitive]]+Tableau1[[#This Row],[12. Hours needed for non-photosensitive]])*Parameters!$E$36/4000 -> 70460 | AC40: =+Tableau1[[#This Row],[1.Tons wet paddy]]/Parameters!$E$46*Parameters!$E$45 -> 11142.85714 | AD40: =IF($A$1=1,0,(Tableau1[[#This Row],[3. price wet paddy]]*Tableau1[[#This Row],[1.Tons wet paddy]]*Parameters!$E$22/12*$D$9))*1000/4000 -> 58500 | AE40: =+SUM(Tableau1[[#This Row],[22. Electricity costs]:[25.Seasonal loan interests]]) -> 146180.0321 | AF40: =+Tableau1[[#This Row],[26. Total variable costs]]/Tableau1[[#This Row],[2.Tons dried paddy]] -> 21.29662473 | AG40: =+Tableau1[[#This Row],[27. Total variable cost/tons]]+Tableau1[[#This Row],[21. Fixed costs per ton (USD)]] -> 33.067021 | AH40: =+Tableau1[[#This Row],[28. Total dry costs per ton]]+Storage!P44 -> 35.55042703 | AI40: =+Tableau1[[#This Row],[28. Total dry costs per ton]]/1000*4000 -> 132.268084 | AJ40: =+Tableau1[[#This Row],[30. total dry per kilo in riel]]+Storage!Q44 -> 142.2017081
F41: =+F40+Drying!$D$4 -> 8000 | G41: =+Tableau1[[#This Row],[1.Tons wet paddy]]*(1-Parameters!$E$28) -> 7040 | H41: =SUMPRODUCT('Rice production'!$E$5:$E$12,'Rice production'!$I$5:$I$12) -> 900 | I41: =IF($A$1=1,SUMPRODUCT('Rice production'!$E$5:$E$12,'Rice production'!$K$5:$K$12),SUMPRODUCT('Rice production'!$E$19:$E$26,'Rice production'!$N$19:$N$26)) -> 1225 | J41: =+Tableau1[[#This Row],[4.Price dried paddy]]*SUMPRODUCT('Rice production'!$E$5:$E$12,'Rice production'!$L$5:$L$12)-Tableau1[[#This Row],[3. price wet paddy]] -> 178 | K41: =+Tableau1[[#This Row],[5.Riel Margin per kilo]]/4000*1000 -> 44.5 | L41: =Tableau1[[#This Row],[1.Tons wet paddy]]*SUMPRODUCT('Rice production'!$E$5:$E$12*('Rice production'!$C$5:$C$12="photo-sensitive")) -> 4000 | M41: =Tableau1[[#This Row],[1.Tons wet paddy]]*SUMPRODUCT('Rice production'!$E$5:$E$12*('Rice production'!$C$5:$C$12="non photo-sensitive")) -> 4000 | N41: =(Tableau1[[#This Row],[7.Nb of tons photo sensitive]]/Parameters!$E$3) -> 133.3333333 | O41: =Tableau1[[#This Row],[8.Nb of tons non-photo-sensitive]]/Parameters!$E$3 -> 133.3333333 | P41: =Tableau1[[#This Row],[9. Nb of loading photosensitive]]*(Parameters!$E$28/Parameters!$E$29)+Tableau1[[#This Row],[9. Nb of loading photosensitive]]*(Parameters!$E$31+Parameters!$E$32)/60 -> 1342.222222 | Q41: =Tableau1[[#This Row],[10. Nb of loading non- photosensitive]]*(Parameters!$E$28/Parameters!$E$29) -> 1066.666667 | R41: =ROUNDUP(+Tableau1[[#This Row],[11. Hours needed for photosensitive]]/Parameters!$E$30,1) -> 67.2 | S41: =ROUNDUP(+Tableau1[[#This Row],[12. Hours needed for non-photosensitive]]/Parameters!$E$30,1) -> 53.4 | T41: =IFERROR(INT(MAX(Tableau1[[#This Row],[13.Days needed for photosensitive]],Tableau1[[#This Row],[14.Days needed (for non-photosensitive)]])/($D$1*'Rice production'!$H$13)),0)+1 -> 7 | U41: =Parameters!$E$7*Tableau1[[#This Row],[15. nb of dryer]] -> 52500 | V41: =Parameters!$E$12 -> 1200 | W41: =+Total_Intérêts/'Loan Dry'!$G$3*Tableau1[[#This Row],[15. nb of dryer]] -> 19892 | X41: =SUMPRODUCT(Parameters!$E$40:$E$43,Parameters!$G$40:$G$43) -> 7200 | Y41: =SUM(Tableau1[[#This Row],[16. Dep dryer]:[19. Labour]]) -> 80792 | Z41: =Y41/Tableau1[[#This Row],[2.Tons dried paddy]] -> 11.47613636 | AA41: =+(Tableau1[[#This Row],[11. Hours needed for photosensitive]]+Tableau1[[#This Row],[12. Hours needed for non-photosensitive]])*Parameters!$E$25*Parameters!$E$34 -> 6233 | AB41: =Parameters!$E$35*(Tableau1[[#This Row],[11. Hours needed for photosensitive]]+Tableau1[[#This Row],[12. Hours needed for non-photosensitive]])*Parameters!$E$36/4000 -> 72266.66667 | AC41: =+Tableau1[[#This Row],[1.Tons wet paddy]]/Parameters!$E$46*Parameters!$E$45 -> 11428.57143 | AD41: =IF($A$1=1,0,(Tableau1[[#This Row],[3. price wet paddy]]*Tableau1[[#This Row],[1.Tons wet paddy]]*Parameters!$E$22/12*$D$9))*1000/4000 -> 60000 | AE41: =+SUM(Tableau1[[#This Row],[22. Electricity costs]:[25.Seasonal loan interests]]) -> 149928.2381 | AF41: =+Tableau1[[#This Row],[26. Total variable costs]]/Tableau1[[#This Row],[2.Tons dried paddy]] -> 21.29662473 | AG41: =+Tableau1[[#This Row],[27. Total variable cost/tons]]+Tableau1[[#This Row],[21. Fixed costs per ton (USD)]] -> 32.77276109 | AH41: =+Tableau1[[#This Row],[28. Total dry costs per ton]]+Storage!P45 -> 35.25616713 | AI41: =+Tableau1[[#This Row],[28. Total dry costs per ton]]/1000*4000 -> 131.0910444 | AJ41: =+Tableau1[[#This Row],[30. total dry per kilo in riel]]+Storage!Q45 -> 141.0246685
F42: =+F41+Drying!$D$4 -> 8200 | G42: =+Tableau1[[#This Row],[1.Tons wet paddy]]*(1-Parameters!$E$28) -> 7216 | H42: =SUMPRODUCT('Rice production'!$E$5:$E$12,'Rice production'!$I$5:$I$12) -> 900 | I42: =IF($A$1=1,SUMPRODUCT('Rice production'!$E$5:$E$12,'Rice production'!$K$5:$K$12),SUMPRODUCT('Rice production'!$E$19:$E$26,'Rice production'!$N$19:$N$26)) -> 1225 | J42: =+Tableau1[[#This Row],[4.Price dried paddy]]*SUMPRODUCT('Rice production'!$E$5:$E$12,'Rice production'!$L$5:$L$12)-Tableau1[[#This Row],[3. price wet paddy]] -> 178 | K42: =+Tableau1[[#This Row],[5.Riel Margin per kilo]]/4000*1000 -> 44.5 | L42: =Tableau1[[#This Row],[1.Tons wet paddy]]*SUMPRODUCT('Rice production'!$E$5:$E$12*('Rice production'!$C$5:$C$12="photo-sensitive")) -> 4100 | M42: =Tableau1[[#This Row],[1.Tons wet paddy]]*SUMPRODUCT('Rice production'!$E$5:$E$12*('Rice production'!$C$5:$C$12="non photo-sensitive")) -> 4100 | N42: =(Tableau1[[#This Row],[7.Nb of tons photo sensitive]]/Parameters!$E$3) -> 136.6666667 | O42: =Tableau1[[#This Row],[8.Nb of tons non-photo-sensitive]]/Parameters!$E$3 -> 136.6666667 | P42: =Tableau1[[#This Row],[9. Nb of loading photosensitive]]*(Parameters!$E$28/Parameters!$E$29)+Tableau1[[#This Row],[9. Nb of loading photosensitive]]*(Parameters!$E$31+Parameters!$E$32)/60 -> 1375.777778 | Q42: =Tableau1[[#This Row],[10. Nb of loading non- photosensitive]]*(Parameters!$E$28/Parameters!$E$29) -> 1093.333333 | R42: =ROUNDUP(+Tableau1[[#This Row],[11. Hours needed for photosensitive]]/Parameters!$E$30,1) -> 68.8 | S42: =ROUNDUP(+Tableau1[[#This Row],[12. Hours needed for non-photosensitive]]/Parameters!$E$30,1) -> 54.7 | T42: =IFERROR(INT(MAX(Tableau1[[#This Row],[13.Days needed for photosensitive]],Tableau1[[#This Row],[14.Days needed (for non-photosensitive)]])/($D$1*'Rice production'!$H$13)),0)+1 -> 7 | U42: =Parameters!$E$7*Tableau1[[#This Row],[15. nb of dryer]] -> 52500 | V42: =Parameters!$E$12 -> 1200 | W42: =+Total_Intérêts/'Loan Dry'!$G$3*Tableau1[[#This Row],[15. nb of dryer]] -> 19892 | X42: =SUMPRODUCT(Parameters!$E$40:$E$43,Parameters!$G$40:$G$43) -> 7200 | Y42: =SUM(Tableau1[[#This Row],[16. Dep dryer]:[19. Labour]]) -> 80792 | Z42: =Y42/Tableau1[[#This Row],[2.Tons dried paddy]] -> 11.1962306 | AA42: =+(Tableau1[[#This Row],[11. Hours needed for photosensitive]]+Tableau1[[#This Row],[12. Hours needed for non-photosensitive]])*Parameters!$E$25*Parameters!$E$34 -> 6388.825 | AB42: =Parameters!$E$35*(Tableau1[[#This Row],[11. Hours needed for photosensitive]]+Tableau1[[#This Row],[12. Hours needed for non-photosensitive]])*Parameters!$E$36/4000 -> 74073.33333 | AC42: =+Tableau1[[#This Row],[1.Tons wet paddy]]/Parameters!$E$46*Parameters!$E$45 -> 11714.28571 | AD42: =IF($A$1=1,0,(Tableau1[[#This Row],[3. price wet paddy]]*Tableau1[[#This Row],[1.Tons wet paddy]]*Parameters!$E$22/12*$D$9))*1000/4000 -> 61500 | AE42: =+SUM(Tableau1[[#This Row],[22. Electricity costs]:[25.Seasonal loan interests]]) -> 153676.444 | AF42: =+Tableau1[[#This Row],[26. Total variable costs]]/Tableau1[[#This Row],[2.Tons dried paddy]] -> 21.29662473 | AG42: =+Tableau1[[#This Row],[27. Total variable cost/tons]]+Tableau1[[#This Row],[21. Fixed costs per ton (USD)]] -> 32.49285533 | AH42: =+Tableau1[[#This Row],[28. Total dry costs per ton]]+Storage!P46 -> 34.97626136 | AI42: =+Tableau1[[#This Row],[28. Total dry costs per ton]]/1000*4000 -> 129.9714213 | AJ42: =+Tableau1[[#This Row],[30. total dry per kilo in riel]]+Storage!Q46 -> 139.9050454
F43: =+F42+Drying!$D$4 -> 8400 | G43: =+Tableau1[[#This Row],[1.Tons wet paddy]]*(1-Parameters!$E$28) -> 7392 | H43: =SUMPRODUCT('Rice production'!$E$5:$E$12,'Rice production'!$I$5:$I$12) -> 900 | I43: =IF($A$1=1,SUMPRODUCT('Rice production'!$E$5:$E$12,'Rice production'!$K$5:$K$12),SUMPRODUCT('Rice production'!$E$19:$E$26,'Rice production'!$N$19:$N$26)) -> 1225 | J43: =+Tableau1[[#This Row],[4.Price dried paddy]]*SUMPRODUCT('Rice production'!$E$5:$E$12,'Rice production'!$L$5:$L$12)-Tableau1[[#This Row],[3. price wet paddy]] -> 178 | K43: =+Tableau1[[#This Row],[5.Riel Margin per kilo]]/4000*1000 -> 44.5 | L43: =Tableau1[[#This Row],[1.Tons wet paddy]]*SUMPRODUCT('Rice production'!$E$5:$E$12*('Rice production'!$C$5:$C$12="photo-sensitive")) -> 4200 | M43: =Tableau1[[#This Row],[1.Tons wet paddy]]*SUMPRODUCT('Rice production'!$E$5:$E$12*('Rice production'!$C$5:$C$12="non photo-sensitive")) -> 4200 | N43: =(Tableau1[[#This Row],[7.Nb of tons photo sensitive]]/Parameters!$E$3) -> 140 | O43: =Tableau1[[#This Row],[8.Nb of tons non-photo-sensitive]]/Parameters!$E$3 -> 140 | P43: =Tableau1[[#This Row],[9. Nb of loading photosensitive]]*(Parameters!$E$28/Parameters!$E$29)+Tableau1[[#This Row],[9. Nb of loading photosensitive]]*(Parameters!$E$31+Parameters!$E$32)/60 -> 1409.333333 | Q43: =Tableau1[[#This Row],[10. Nb of loading non- photosensitive]]*(Parameters!$E$28/Parameters!$E$29) -> 1120 | R43: =ROUNDUP(+Tableau1[[#This Row],[11. Hours needed for photosensitive]]/Parameters!$E$30,1) -> 70.5 | S43: =ROUNDUP(+Tableau1[[#This Row],[12. Hours needed for non-photosensitive]]/Parameters!$E$30,1) -> 56 | T43: =IFERROR(INT(MAX(Tableau1[[#This Row],[13.Days needed for photosensitive]],Tableau1[[#This Row],[14.Days needed (for non-photosensitive)]])/($D$1*'Rice production'!$H$13)),0)+1 -> 8 | U43: =Parameters!$E$7*Tableau1[[#This Row],[15. nb of dryer]] -> 60000 | V43: =Parameters!$E$12 -> 1200 | W43: =+Total_Intérêts/'Loan Dry'!$G$3*Tableau1[[#This Row],[15. nb of dryer]] -> 22733.71429 | X43: =SUMPRODUCT(Parameters!$E$40:$E$43,Parameters!$G$40:$G$43) -> 7200 | Y43: =SUM(Tableau1[[#This Row],[16. Dep dryer]:[19. Labour]]) -> 91133.71429 | Z43: =Y43/Tableau1[[#This Row],[2.Tons dried paddy]] -> 12.32869511 | AA43: =+(Tableau1[[#This Row],[11. Hours needed for photosensitive]]+Tableau1[[#This Row],[12. Hours needed for non-photosensitive]])*Parameters!$E$25*Parameters!$E$34 -> 6544.65 | AB43: =Parameters!$E$35*(Tableau1[[#This Row],[11. Hours needed for photosensitive]]+Tableau1[[#This Row],[12. Hours needed for non-photosensitive]])*Parameters!$E$36/4000 -> 75880 | AC43: =+Tableau1[[#This Row],[1.Tons wet paddy]]/Parameters!$E$46*Parameters!$E$45 -> 12000 | AD43: =IF($A$1=1,0,(Tableau1[[#This Row],[3. price wet paddy]]*Tableau1[[#This Row],[1.Tons wet paddy]]*Parameters!$E$22/12*$D$9))*1000/4000 -> 63000 | AE43: =+SUM(Tableau1[[#This Row],[22. Electricity costs]:[25.Seasonal loan interests]]) -> 157424.65 | AF43: =+Tableau1[[#This Row],[26. Total variable costs]]/Tableau1[[#This Row],[2.Tons dried paddy]] -> 21.29662473 | AG43: =+Tableau1[[#This Row],[27. Total variable cost/tons]]+Tableau1[[#This Row],[21. Fixed costs per ton (USD)]] -> 33.62531984 | AH43: =+Tableau1[[#This Row],[28. Total dry costs per ton]]+Storage!P47 -> 36.10872588 | AI43: =+Tableau1[[#This Row],[28. Total dry costs per ton]]/1000*4000 -> 134.5012794 | AJ43: =+Tableau1[[#This Row],[30. total dry per kilo in riel]]+Storage!Q47 -> 144.4349035

Sheet Storage
A1: 2
A2: Back to menu | C2: Cost of m2 | D2: 100 | E2: USD/m2 | F2: H34
C3: Useful storage capacity | D3: 0.65 | E3: % | F3: H35
A4: Go to | C4: Tons by m3 | D4: 0.6 | E4: Tons | F4: H36
A5: User Guide | D5: For x m2 --> | E5: Maximum heigh | H5: Tons | I5: Volume of storage needed | J5: Heigh | K5: m2 needed | L5: Cost in dollars | M5: Depreciation yearly cost | N5: annual Interest costs | O5: Total costs | P5: Cost per tons | Q5: Cost in riel per kilo
C6: Heigh | D6: 200 | E6: 3 | F6: H37 | H6: =+Drying!F2 -> 200 | I6: =+H6/$D$4/$D$3 -> 512.8205128 | J6: =IF(H6<=$D$6,$E$6,IF(AND(H6>$D$6,H6<=$D$7),$E$7,IF(AND(H6>$D$7,H6<=$D$8),$E$8,$E$9))) -> 3 | K6: =+I6/J6 -> 170.9401709 | L6: =+K6*$D$2 -> 17094.01709 | M6: =+L6/$D$10 -> 854.7008547 | N6: =IFERROR(-(CUMIPMT(int_rate_stor/12,loan_dur_stor*12,Tableau2[[#This Row],[Cost in dollars]]*loanD_stor,1,loan_dur_stor*12,0))/loan_dur_stor,0) -> 469.7823635 | O6: =+Tableau2[[#This Row],[annual Interest costs]]+Tableau2[[#This Row],[Depreciation yearly cost]] -> 1324.483218 | P6: =+Tableau2[[#This Row],[Total costs]]/H6 -> 6.622416091 | Q6: =+P6/1000*4000 -> 26.48966436
A7: Investment | D7: 500 | E7: 4 | H7: =+Drying!F3 -> 400 | I7: =+H7/$D$4/$D$3 -> 1025.641026 | J7: 4 | K7: =+I7/J7 -> 256.4102564 | L7: =+K7*$D$2 -> 25641.02564 | M7: 1282.051282 | N7: =IFERROR(-(CUMIPMT(int_rate_stor/12,loan_dur_stor*12,Tableau2[[#This Row],[Cost in dollars]]*loanD_stor,1,loan_dur_stor*12,0))/loan_dur_stor,0) -> 704.6735453 | O7: =+Tableau2[[#This Row],[annual Interest costs]]+Tableau2[[#This Row],[Depreciation yearly cost]] -> 1986.724827 | P7: =+Tableau2[[#This Row],[Total costs]]/H7 -> 4.966812068 | Q7: =+P7/1000*4000 -> 19.86724827
D8: 750 | E8: 7 | H8: =+Drying!F4 -> 600 | I8: 1538.461538 | J8: 7 | K8: 219.7802198 | L8: 21978.02198 | M8: 1098.901099 | N8: =IFERROR(-(CUMIPMT(int_rate_stor/12,loan_dur_stor*12,Tableau2[[#This Row],[Cost in dollars]]*loanD_stor,1,loan_dur_stor*12,0))/loan_dur_stor,0) -> 604.005896 | O8: =+Tableau2[[#This Row],[annual Interest costs]]+Tableau2[[#This Row],[Depreciation yearly cost]] -> 1702.906995 | P8: =+Tableau2[[#This Row],[Total costs]]/H8 -> 2.838178325 | Q8: 11.3527133
A9: Rice information | D9: 1500 | E9: 8 | H9: =+Drying!F5 -> 800 | I9: 2051.282051 | J9: 8 | K9: 256.4102564 | L9: 25641.02564 | M9: 1282.051282 | N9: =IFERROR(-(CUMIPMT(int_rate_stor/12,loan_dur_stor*12,Tableau2[[#This Row],[Cost in dollars]]*loanD_stor,1,loan_dur_stor*12,0))/loan_dur_stor,0) -> 704.6735453 | O9: =+Tableau2[[#This Row],[annual Interest costs]]+Tableau2[[#This Row],[Depreciation yearly cost]] -> 1986.724827 | P9: =+Tableau2[[#This Row],[Total costs]]/H9 -> 2.483406034 | Q9: 9.933624137
C10: Life-time of warehouse | D10: 20 | F10: H38 | H10: =+Drying!F6 -> 1000 | I10: 2564.102564 | J10: 8 | K10: 320.5128205 | L10: 32051.28205 | M10: 1602.564103 | N10: =IFERROR(-(CUMIPMT(int_rate_stor/12,loan_dur_stor*12,Tableau2[[#This Row],[Cost in dollars]]*loanD_stor,1,loan_dur_stor*12,0))/loan_dur_stor,0) -> 880.8419317 | O10: =+Tableau2[[#This Row],[annual Interest costs]]+Tableau2[[#This Row],[Depreciation yearly cost]] -> 2483.406034 | P10: =+Tableau2[[#This Row],[Total costs]]/H10 -> 2.483406034 | Q10: 9.933624137
A11: Operation parameters | H11: =+Drying!F7 -> 1200 | I11: 3076.923077 | J11: 8 | K11: 384.6153846 | L11: 38461.53846 | M11: 1923.076923 | N11: =IFERROR(-(CUMIPMT(int_rate_stor/12,loan_dur_stor*12,Tableau2[[#This Row],[Cost in dollars]]*loanD_stor,1,loan_dur_stor*12,0))/loan_dur_stor,0) -> 1057.010318 | O11: =+Tableau2[[#This Row],[annual Interest costs]]+Tableau2[[#This Row],[Depreciation yearly cost]] -> 2980.087241 | P11: =+Tableau2[[#This Row],[Total costs]]/H11 -> 2.483406034 | Q11: 9.933624137
H12: =+Drying!F8 -> 1400 | I12: 3589.74359 | J12: 8 | K12: 448.7179487 | L12: 44871.79487 | M12: 2243.589744 | N12: =IFERROR(-(CUMIPMT(int_rate_stor/12,loan_dur_stor*12,Tableau2[[#This Row],[Cost in dollars]]*loanD_stor,1,loan_dur_stor*12,0))/loan_dur_stor,0) -> 1233.178704 | O12: =+Tableau2[[#This Row],[annual Interest costs]]+Tableau2[[#This Row],[Depreciation yearly cost]] -> 3476.768448 | P12: =+Tableau2[[#This Row],[Total costs]]/H12 -> 2.483406034 | Q12: 9.933624137
A13: Loan amortization | C13: For storage warehouse | H13: =+Drying!F9 -> 1600 | I13: 4102.564103 | J13: 8 | K13: 512.8205128 | L13: 51282.05128 | M13: 2564.102564 | N13: =IFERROR(-(CUMIPMT(int_rate_stor/12,loan_dur_stor*12,Tableau2[[#This Row],[Cost in dollars]]*loanD_stor,1,loan_dur_stor*12,0))/loan_dur_stor,0) -> 1409.347091 | O13: =+Tableau2[[#This Row],[annual Interest costs]]+Tableau2[[#This Row],[Depreciation yearly cost]] -> 3973.449655 | P13: =+Tableau2[[#This Row],[Total costs]]/H13 -> 2.483406034 | Q13: 9.933624137
C14: Autofinancing or grant | D14: =1-D15 -> 0.5 | E14: % | H14: =+Drying!F10 -> 1800 | I14: 4615.384615 | J14: 8 | K14: 576.9230769 | L14: 57692.30769 | M14: 2884.615385 | N14: =IFERROR(-(CUMIPMT(int_rate_stor/12,loan_dur_stor*12,Tableau2[[#This Row],[Cost in dollars]]*loanD_stor,1,loan_dur_stor*12,0))/loan_dur_stor,0) -> 1585.515477 | O14: =+Tableau2[[#This Row],[annual Interest costs]]+Tableau2[[#This Row],[Depreciation yearly cost]] -> 4470.130862 | P14: =+Tableau2[[#This Row],[Total costs]]/H14 -> 2.483406034 | Q14: 9.933624137
A15: Drying table | C15: Loan | D15: 0.5 | E15: % | F15: H39 | H15: =+Drying!F11 -> 2000 | I15: 5128.205128 | J15: 8 | K15: 641.025641 | L15: 64102.5641 | M15: 3205.128205 | N15: =IFERROR(-(CUMIPMT(int_rate_stor/12,loan_dur_stor*12,Tableau2[[#This Row],[Cost in dollars]]*loanD_stor,1,loan_dur_stor*12,0))/loan_dur_stor,0) -> 1761.683863 | O15: =+Tableau2[[#This Row],[annual Interest costs]]+Tableau2[[#This Row],[Depreciation yearly cost]] -> 4966.812068 | P15: =+Tableau2[[#This Row],[Total costs]]/H15 -> 2.483406034 | Q15: 9.933624137
C16: Yearly rate | D16: 0.1 | E16: %/Year | F16: H40 | H16: =+Drying!F12 -> 2200 | I16: 5641.025641 | J16: 8 | K16: 705.1282051 | L16: 70512.82051 | M16: 3525.641026 | N16: =IFERROR(-(CUMIPMT(int_rate_stor/12,loan_dur_stor*12,Tableau2[[#This Row],[Cost in dollars]]*loanD_stor,1,loan_dur_stor*12,0))/loan_dur_stor,0) -> 1937.85225 | O16: =+Tableau2[[#This Row],[annual Interest costs]]+Tableau2[[#This Row],[Depreciation yearly cost]] -> 5463.493275 | P16: =+Tableau2[[#This Row],[Total costs]]/H16 -> 2.483406034 | Q16: 9.933624137
A17: Storage table | C17: Duration (years) | D17: 5 | E17: years | F17: H41 | H17: =+Drying!F13 -> 2400 | I17: 6153.846154 | J17: 8 | K17: 769.2307692 | L17: 76923.07692 | M17: 3846.153846 | N17: =IFERROR(-(CUMIPMT(int_rate_stor/12,loan_dur_stor*12,Tableau2[[#This Row],[Cost in dollars]]*loanD_stor,1,loan_dur_stor*12,0))/loan_dur_stor,0) -> 2114.020636 | O17: =+Tableau2[[#This Row],[annual Interest costs]]+Tableau2[[#This Row],[Depreciation yearly cost]] -> 5960.174482 | P17: =+Tableau2[[#This Row],[Total costs]]/H17 -> 2.483406034 | Q17: 9.933624137
H18: =+Drying!F14 -> 2600 | I18: 6666.666667 | J18: 8 | K18: 833.3333333 | L18: 83333.33333 | M18: 4166.666667 | N18: =IFERROR(-(CUMIPMT(int_rate_stor/12,loan_dur_stor*12,Tableau2[[#This Row],[Cost in dollars]]*loanD_stor,1,loan_dur_stor*12,0))/loan_dur_stor,0) -> 2290.189022 | O18: =+Tableau2[[#This Row],[annual Interest costs]]+Tableau2[[#This Row],[Depreciation yearly cost]] -> 6456.855689 | P18: =+Tableau2[[#This Row],[Total costs]]/H18 -> 2.483406034 | Q18: 9.933624137
A19: Summary | H19: =+Drying!F15 -> 2800 | I19: 7179.487179 | J19: 8 | K19: 897.4358974 | L19: 89743.58974 | M19: 4487.179487 | N19: =IFERROR(-(CUMIPMT(int_rate_stor/12,loan_dur_stor*12,Tableau2[[#This Row],[Cost in dollars]]*loanD_stor,1,loan_dur_stor*12,0))/loan_dur_stor,0) -> 2466.357409 | O19: =+Tableau2[[#This Row],[annual Interest costs]]+Tableau2[[#This Row],[Depreciation yearly cost]] -> 6953.536896 | P19: =+Tableau2[[#This Row],[Total costs]]/H19 -> 2.483406034 | Q19: 9.933624137
H20: =+Drying!F16 -> 3000 | I20: 7692.307692 | J20: 8 | K20: 961.5384615 | L20: 96153.84615 | M20: 4807.692308 | N20: =IFERROR(-(CUMIPMT(int_rate_stor/12,loan_dur_stor*12,Tableau2[[#This Row],[Cost in dollars]]*loanD_stor,1,loan_dur_stor*12,0))/loan_dur_stor,0) -> 2642.525795 | O20: =+Tableau2[[#This Row],[annual Interest costs]]+Tableau2[[#This Row],[Depreciation yearly cost]] -> 7450.218103 | P20: =+Tableau2[[#This Row],[Total costs]]/H20 -> 2.483406034 | Q20: 9.933624137
A21: Sensitivity analysis | H21: =+Drying!F17 -> 3200 | I21: 8205.128205 | J21: 8 | K21: 1025.641026 | L21: 102564.1026 | M21: 5128.205128 | N21: =IFERROR(-(CUMIPMT(int_rate_stor/12,loan_dur_stor*12,Tableau2[[#This Row],[Cost in dollars]]*loanD_stor,1,loan_dur_stor*12,0))/loan_dur_stor,0) -> 2818.694181 | O21: =+Tableau2[[#This Row],[annual Interest costs]]+Tableau2[[#This Row],[Depreciation yearly cost]] -> 7946.899309 | P21: =+Tableau2[[#This Row],[Total costs]]/H21 -> 2.483406034 | Q21: 9.933624137
H22: =+Drying!F18 -> 3400 | I22: 8717.948718 | J22: 8 | K22: 1089.74359 | L22: 108974.359 | M22: 5448.717949 | N22: =IFERROR(-(CUMIPMT(int_rate_stor/12,loan_dur_stor*12,Tableau2[[#This Row],[Cost in dollars]]*loanD_stor,1,loan_dur_stor*12,0))/loan_dur_stor,0) -> 2994.862568 | O22: =+Tableau2[[#This Row],[annual Interest costs]]+Tableau2[[#This Row],[Depreciation yearly cost]] -> 8443.580516 | P22: =+Tableau2[[#This Row],[Total costs]]/H22 -> 2.483406034 | Q22: 9.933624137
H23: =+Drying!F19 -> 3600 | I23: 9230.769231 | J23: 8 | K23: 1153.846154 | L23: 115384.6154 | M23: 5769.230769 | N23: =IFERROR(-(CUMIPMT(int_rate_stor/12,loan_dur_stor*12,Tableau2[[#This Row],[Cost in dollars]]*loanD_stor,1,loan_dur_stor*12,0))/loan_dur_stor,0) -> 3171.030954 | O23: =+Tableau2[[#This Row],[annual Interest costs]]+Tableau2[[#This Row],[Depreciation yearly cost]] -> 8940.261723 | P23: =+Tableau2[[#This Row],[Total costs]]/H23 -> 2.483406034 | Q23: 9.933624137
H24: =+Drying!F20 -> 3800 | I24: 9743.589744 | J24: 8 | K24: 1217.948718 | L24: 121794.8718 | M24: 6089.74359 | N24: =IFERROR(-(CUMIPMT(int_rate_stor/12,loan_dur_stor*12,Tableau2[[#This Row],[Cost in dollars]]*loanD_stor,1,loan_dur_stor*12,0))/loan_dur_stor,0) -> 3347.19934 | O24: =+Tableau2[[#This Row],[annual Interest costs]]+Tableau2[[#This Row],[Depreciation yearly cost]] -> 9436.94293 | P24: =+Tableau2[[#This Row],[Total costs]]/H24 -> 2.483406034 | Q24: 9.933624137
H25: =+Drying!F21 -> 4000 | I25: 10256.41026 | J25: 8 | K25: 1282.051282 | L25: 128205.1282 | M25: 6410.25641 | N25: =IFERROR(-(CUMIPMT(int_rate_stor/12,loan_dur_stor*12,Tableau2[[#This Row],[Cost in dollars]]*loanD_stor,1,loan_dur_stor*12,0))/loan_dur_stor,0) -> 3523.367727 | O25: =+Tableau2[[#This Row],[annual Interest costs]]+Tableau2[[#This Row],[Depreciation yearly cost]] -> 9933.624137 | P25: =+Tableau2[[#This Row],[Total costs]]/H25 -> 2.483406034 | Q25: 9.933624137
H26: =+Drying!F22 -> 4200 | I26: 10769.23077 | J26: 8 | K26: 1346.153846 | L26: 134615.3846 | M26: 6730.769231 | N26: =IFERROR(-(CUMIPMT(int_rate_stor/12,loan_dur_stor*12,Tableau2[[#This Row],[Cost in dollars]]*loanD_stor,1,loan_dur_stor*12,0))/loan_dur_stor,0) -> 3699.536113 | O26: =+Tableau2[[#This Row],[annual Interest costs]]+Tableau2[[#This Row],[Depreciation yearly cost]] -> 10430.30534 | P26: =+Tableau2[[#This Row],[Total costs]]/H26 -> 2.483406034 | Q26: 9.933624137
H27: =+Drying!F23 -> 4400 | I27: 11282.05128 | J27: 8 | K27: 1410.25641 | L27: 141025.641 | M27: 7051.282051 | N27: =IFERROR(-(CUMIPMT(int_rate_stor/12,loan_dur_stor*12,Tableau2[[#This Row],[Cost in dollars]]*loanD_stor,1,loan_dur_stor*12,0))/loan_dur_stor,0) -> 3875.704499 | O27: =+Tableau2[[#This Row],[annual Interest costs]]+Tableau2[[#This Row],[Depreciation yearly cost]] -> 10926.98655 | P27: =+Tableau2[[#This Row],[Total costs]]/H27 -> 2.483406034 | Q27: 9.933624137
H28: =+Drying!F24 -> 4600 | I28: 11794.87179 | J28: 8 | K28: 1474.358974 | L28: 147435.8974 | M28: 7371.794872 | N28: =IFERROR(-(CUMIPMT(int_rate_stor/12,loan_dur_stor*12,Tableau2[[#This Row],[Cost in dollars]]*loanD_stor,1,loan_dur_stor*12,0))/loan_dur_stor,0) -> 4051.872886 | O28: =+Tableau2[[#This Row],[annual Interest costs]]+Tableau2[[#This Row],[Depreciation yearly cost]] -> 11423.66776 | P28: =+Tableau2[[#This Row],[Total costs]]/H28 -> 2.483406034 | Q28: 9.933624137
H29: =+Drying!F25 -> 4800 | I29: 12307.69231 | J29: 8 | K29: 1538.461538 | L29: 153846.1538 | M29: 7692.307692 | N29: =IFERROR(-(CUMIPMT(int_rate_stor/12,loan_dur_stor*12,Tableau2[[#This Row],[Cost in dollars]]*loanD_stor,1,loan_dur_stor*12,0))/loan_dur_stor,0) -> 4228.041272 | O29: =+Tableau2[[#This Row],[annual Interest costs]]+Tableau2[[#This Row],[Depreciation yearly cost]] -> 11920.34896 | P29: =+Tableau2[[#This Row],[Total costs]]/H29 -> 2.483406034 | Q29: 9.933624137
H30: =+Drying!F26 -> 5000 | I30: 12820.51282 | J30: 8 | K30: 1602.564103 | L30: 160256.4103 | M30: 8012.820513 | N30: =IFERROR(-(CUMIPMT(int_rate_stor/12,loan_dur_stor*12,Tableau2[[#This Row],[Cost in dollars]]*loanD_stor,1,loan_dur_stor*12,0))/loan_dur_stor,0) -> 4404.209658 | O30: =+Tableau2[[#This Row],[annual Interest costs]]+Tableau2[[#This Row],[Depreciation yearly cost]] -> 12417.03017 | P30: =+Tableau2[[#This Row],[Total costs]]/H30 -> 2.483406034 | Q30: 9.933624137
C31: 4000 | H31: =+Drying!F27 -> 5200 | I31: 13333.33333 | J31: 8 | K31: 1666.666667 | L31: 166666.6667 | M31: 8333.333333 | N31: =IFERROR(-(CUMIPMT(int_rate_stor/12,loan_dur_stor*12,Tableau2[[#This Row],[Cost in dollars]]*loanD_stor,1,loan_dur_stor*12,0))/loan_dur_stor,0) -> 4580.378045 | O31: =+Tableau2[[#This Row],[annual Interest costs]]+Tableau2[[#This Row],[Depreciation yearly cost]] -> 12913.71138 | P31: =+Tableau2[[#This Row],[Total costs]]/H31 -> 2.483406034 | Q31: 9.933624137
C32: =+C31/0.08 -> 50000 | H32: =+Drying!F28 -> 5400 | I32: 13846.15385 | J32: 8 | K32: 1730.769231 | L32: 173076.9231 | M32: 8653.846154 | N32: =IFERROR(-(CUMIPMT(int_rate_stor/12,loan_dur_stor*12,Tableau2[[#This Row],[Cost in dollars]]*loanD_stor,1,loan_dur_stor*12,0))/loan_dur_stor,0) -> 4756.546431 | O32: =+Tableau2[[#This Row],[annual Interest costs]]+Tableau2[[#This Row],[Depreciation yearly cost]] -> 13410.39258 | P32: =+Tableau2[[#This Row],[Total costs]]/H32 -> 2.483406034 | Q32: 9.933624137
H33: =+Drying!F29 -> 5600 | I33: 14358.97436 | J33: 8 | K33: 1794.871795 | L33: 179487.1795 | M33: 8974.358974 | N33: =IFERROR(-(CUMIPMT(int_rate_stor/12,loan_dur_stor*12,Tableau2[[#This Row],[Cost in dollars]]*loanD_stor,1,loan_dur_stor*12,0))/loan_dur_stor,0) -> 4932.714817 | O33: =+Tableau2[[#This Row],[annual Interest costs]]+Tableau2[[#This Row],[Depreciation yearly cost]] -> 13907.07379 | P33: =+Tableau2[[#This Row],[Total costs]]/H33 -> 2.483406034 | Q33: 9.933624137
H34: =+Drying!F30 -> 5800 | I34: 14871.79487 | J34: 8 | K34: 1858.974359 | L34: 185897.4359 | M34: 9294.871795 | N34: =IFERROR(-(CUMIPMT(int_rate_stor/12,loan_dur_stor*12,Tableau2[[#This Row],[Cost in dollars]]*loanD_stor,1,loan_dur_stor*12,0))/loan_dur_stor,0) -> 5108.883204 | O34: =+Tableau2[[#This Row],[annual Interest costs]]+Tableau2[[#This Row],[Depreciation yearly cost]] -> 14403.755 | P34: =+Tableau2[[#This Row],[Total costs]]/H34 -> 2.483406034 | Q34: 9.933624137
H35: =+Drying!F31 -> 6000 | I35: 15384.61538 | J35: 8 | K35: 1923.076923 | L35: 192307.6923 | M35: 9615.384615 | N35: =IFERROR(-(CUMIPMT(int_rate_stor/12,loan_dur_stor*12,Tableau2[[#This Row],[Cost in dollars]]*loanD_stor,1,loan_dur_stor*12,0))/loan_dur_stor,0) -> 5285.05159 | O35: =+Tableau2[[#This Row],[annual Interest costs]]+Tableau2[[#This Row],[Depreciation yearly cost]] -> 14900.43621 | P35: =+Tableau2[[#This Row],[Total costs]]/H35 -> 2.483406034 | Q35: 9.933624137
H36: =+Drying!F32 -> 6200 | I36: 15897.4359 | J36: 8 | K36: 1987.179487 | L36: 198717.9487 | M36: 9935.897436 | N36: =IFERROR(-(CUMIPMT(int_rate_stor/12,loan_dur_stor*12,Tableau2[[#This Row],[Cost in dollars]]*loanD_stor,1,loan_dur_stor*12,0))/loan_dur_stor,0) -> 5461.219976 | O36: =+Tableau2[[#This Row],[annual Interest costs]]+Tableau2[[#This Row],[Depreciation yearly cost]] -> 15397.11741 | P36: =+Tableau2[[#This Row],[Total costs]]/H36 -> 2.483406034 | Q36: 9.933624137
H37: =+Drying!F33 -> 6400 | I37: 16410.25641 | J37: 8 | K37: 2051.282051 | L37: 205128.2051 | M37: 10256.41026 | N37: =IFERROR(-(CUMIPMT(int_rate_stor/12,loan_dur_stor*12,Tableau2[[#This Row],[Cost in dollars]]*loanD_stor,1,loan_dur_stor*12,0))/loan_dur_stor,0) -> 5637.388363 | O37: =+Tableau2[[#This Row],[annual Interest costs]]+Tableau2[[#This Row],[Depreciation yearly cost]] -> 15893.79862 | P37: =+Tableau2[[#This Row],[Total costs]]/H37 -> 2.483406034 | Q37: 9.933624137
H38: =+Drying!F34 -> 6600 | I38: 16923.07692 | J38: 8 | K38: 2115.384615 | L38: 211538.4615 | M38: 10576.92308 | N38: =IFERROR(-(CUMIPMT(int_rate_stor/12,loan_dur_stor*12,Tableau2[[#This Row],[Cost in dollars]]*loanD_stor,1,loan_dur_stor*12,0))/loan_dur_stor,0) -> 5813.556749 | O38: =+Tableau2[[#This Row],[annual Interest costs]]+Tableau2[[#This Row],[Depreciation yearly cost]] -> 16390.47983 | P38: =+Tableau2[[#This Row],[Total costs]]/H38 -> 2.483406034 | Q38: 9.933624137
H39: =+Drying!F35 -> 6800 | I39: 17435.89744 | J39: 8 | K39: 2179.487179 | L39: 217948.7179 | M39: 10897.4359 | N39: =IFERROR(-(CUMIPMT(int_rate_stor/12,loan_dur_stor*12,Tableau2[[#This Row],[Cost in dollars]]*loanD_stor,1,loan_dur_stor*12,0))/loan_dur_stor,0) -> 5989.725135 | O39: =+Tableau2[[#This Row],[annual Interest costs]]+Tableau2[[#This Row],[Depreciation yearly cost]] -> 16887.16103 | P39: =+Tableau2[[#This Row],[Total costs]]/H39 -> 2.483406034 | Q39: 9.933624137
H40: =+Drying!F36 -> 7000 | I40: 17948.71795 | J40: 8 | K40: 2243.589744 | L40: 224358.9744 | M40: 11217.94872 | N40: =IFERROR(-(CUMIPMT(int_rate_stor/12,loan_dur_stor*12,Tableau2[[#This Row],[Cost in dollars]]*loanD_stor,1,loan_dur_stor*12,0))/loan_dur_stor,0) -> 6165.893522 | O40: =+Tableau2[[#This Row],[annual Interest costs]]+Tableau2[[#This Row],[Depreciation yearly cost]] -> 17383.84224 | P40: =+Tableau2[[#This Row],[Total costs]]/H40 -> 2.483406034 | Q40: 9.933624137
H41: =+Drying!F37 -> 7200 | I41: 18461.53846 | J41: 8 | K41: 2307.692308 | L41: 230769.2308 | M41: 11538.46154 | N41: =IFERROR(-(CUMIPMT(int_rate_stor/12,loan_dur_stor*12,Tableau2[[#This Row],[Cost in dollars]]*loanD_stor,1,loan_dur_stor*12,0))/loan_dur_stor,0) -> 6342.061908 | O41: =+Tableau2[[#This Row],[annual Interest costs]]+Tableau2[[#This Row],[Depreciation yearly cost]] -> 17880.52345 | P41: =+Tableau2[[#This Row],[Total costs]]/H41 -> 2.483406034 | Q41: 9.933624137
H42: =+Drying!F38 -> 7400 | I42: 18974.35897 | J42: 8 | K42: 2371.794872 | L42: 237179.4872 | M42: 11858.97436 | N42: =IFERROR(-(CUMIPMT(int_rate_stor/12,loan_dur_stor*12,Tableau2[[#This Row],[Cost in dollars]]*loanD_stor,1,loan_dur_stor*12,0))/loan_dur_stor,0) -> 6518.230294 | O42: =+Tableau2[[#This Row],[annual Interest costs]]+Tableau2[[#This Row],[Depreciation yearly cost]] -> 18377.20465 | P42: =+Tableau2[[#This Row],[Total costs]]/H42 -> 2.483406034 | Q42: 9.933624137
H43: =+Drying!F39 -> 7600 | I43: 19487.17949 | J43: 8 | K43: 2435.897436 | L43: 243589.7436 | M43: 12179.48718 | N43: =IFERROR(-(CUMIPMT(int_rate_stor/12,loan_dur_stor*12,Tableau2[[#This Row],[Cost in dollars]]*loanD_stor,1,loan_dur_stor*12,0))/loan_dur_stor,0) -> 6694.398681 | O43: =+Tableau2[[#This Row],[annual Interest costs]]+Tableau2[[#This Row],[Depreciation yearly cost]] -> 18873.88586 | P43: =+Tableau2[[#This Row],[Total costs]]/H43 -> 2.483406034 | Q43: 9.933624137
H44: =+Drying!F40 -> 7800 | I44: 20000 | J44: 8 | K44: 2500 | L44: 250000 | M44: 12500 | N44: =IFERROR(-(CUMIPMT(int_rate_stor/12,loan_dur_stor*12,Tableau2[[#This Row],[Cost in dollars]]*loanD_stor,1,loan_dur_stor*12,0))/loan_dur_stor,0) -> 6870.567067 | O44: =+Tableau2[[#This Row],[annual Interest costs]]+Tableau2[[#This Row],[Depreciation yearly cost]] -> 19370.56707 | P44: =+Tableau2[[#This Row],[Total costs]]/H44 -> 2.483406034 | Q44: 9.933624137
H45: =+Drying!F41 -> 8000 | I45: 20512.82051 | J45: 8 | K45: 2564.102564 | L45: 256410.2564 | M45: 12820.51282 | N45: =IFERROR(-(CUMIPMT(int_rate_stor/12,loan_dur_stor*12,Tableau2[[#This Row],[Cost in dollars]]*loanD_stor,1,loan_dur_stor*12,0))/loan_dur_stor,0) -> 7046.735453 | O45: =+Tableau2[[#This Row],[annual Interest costs]]+Tableau2[[#This Row],[Depreciation yearly cost]] -> 19867.24827 | P45: =+Tableau2[[#This Row],[Total costs]]/H45 -> 2.483406034 | Q45: 9.933624137
H46: =+Drying!F42 -> 8200 | I46: 21025.64103 | J46: 8 | K46: 2628.205128 | L46: 262820.5128 | M46: 13141.02564 | N46: =IFERROR(-(CUMIPMT(int_rate_stor/12,loan_dur_stor*12,Tableau2[[#This Row],[Cost in dollars]]*loanD_stor,1,loan_dur_stor*12,0))/loan_dur_stor,0) -> 7222.90384 | O46: =+Tableau2[[#This Row],[annual Interest costs]]+Tableau2[[#This Row],[Depreciation yearly cost]] -> 20363.92948 | P46: =+Tableau2[[#This Row],[Total costs]]/H46 -> 2.483406034 | Q46: 9.933624137
H47: =+Drying!F43 -> 8400 | I47: 21538.46154 | J47: 8 | K47: 2692.307692 | L47: 269230.7692 | M47: 13461.53846 | N47: =IFERROR(-(CUMIPMT(int_rate_stor/12,loan_dur_stor*12,Tableau2[[#This Row],[Cost in dollars]]*loanD_stor,1,loan_dur_stor*12,0))/loan_dur_stor,0) -> 7399.072226 | O47: =+Tableau2[[#This Row],[annual Interest costs]]+Tableau2[[#This Row],[Depreciation yearly cost]] -> 20860.61069 | P47: =+Tableau2[[#This Row],[Total costs]]/H47 -> 2.483406034 | Q47: 9.933624137

Sheet Sensitivity
A1: 2
A2: Back to menu | C2: Choose quantity | D2: 2000 | E2: H42
C3: Choose variation | D3: 0.33 | E3: H43
A4: Go to
A5: User Guide | E5: ="Variation of "&$D$3*100&"% for each parameter" -> Variation of 33% for each parameter
D6: Initial Data | E6: Cost of machine | F6: Time harvesting | G6: Dry rate per hour | H6: Life-time | I6: Debt rate | J6: Loan duration | K6: Interest rate for invest | L6: Electricity cost | M6: interest rate for WCR(*) | N6: cost of storage
A7: Investment | C7: Cost of machine | D7: =cost -> 60000 | E7: =+D7*(1-$D$3) -> 40200 | F7: =+$D$7 -> 60000 | G7: =+$D$7 -> 60000 | H7: 60000 | I7: 60000 | J7: 60000 | K7: 60000 | L7: 60000 | M7: 60000 | N7: 60000
C8: Time harvesting | D8: =time_harv -> 10 | E8: =+$D$8 -> 10 | F8: =+INT(D8*(1+$D$3)) -> 13 | G8: =+$D$8 -> 10 | H8: =+$D$8 -> 10 | I8: 10 | J8: 10 | K8: 10 | L8: 10 | M8: 10 | N8: 10
A9: Rice information | C9: Dry rate per hour | D9: =dryrate -> 0.015 | E9: =+D9 -> 0.015 | F9: =+$D$9 -> 0.015 | G9: =+D9*(1+$D$3) -> 0.01995 | H9: =+$D$9 -> 0.015 | I9: =+$D$9 -> 0.015 | J9: 0.015 | K9: 0.015 | L9: 0.015 | M9: 0.015 | N9: 0.015
C10: Life-time | D10: =duration -> 8 | E10: =+$D$10 -> 8 | F10: =+$D$10 -> 8 | G10: 8 | H10: =+INT(D10*(1+$D$3)) -> 10 | I10: 8 | J10: 8 | K10: 8 | L10: 8 | M10: 8 | N10: 8
A11: Operation parameters | C11: Debt rate | D11: =LoanD -> 0.67 | E11: =+$D$11 -> 0.67 | F11: =+$D$11 -> 0.67 | G11: 0.67 | H11: 0.67 | I11: =+IF($D$11*(1-$D$3)>=1,1,$D$11*(1-$D$3)) -> 0.4489 | J11: 0.67 | K11: 0.67 | L11: 0.67 | M11: 0.67 | N11: 0.67
C12: Loan duration | D12: =loan_dur -> 7 | E12: =+$D$12 -> 7 | F12: =+$D$12 -> 7 | G12: 7 | H12: 7 | I12: 7 | J12: =+D12*(1+$D$3) -> 9.31 | K12: 7 | L12: 7 | M12: 7 | N12: 7
A13: Loan amortization | C13: Interest rate | D13: =int_rate -> 0.1 | E13: =+$D$13 -> 0.1 | F13: =+$D$13 -> 0.1 | G13: 0.1 | H13: 0.1 | I13: 0.1 | J13: 0.1 | K13: =+D13*(1-$D$3) -> 0.067 | L13: 0.1 | M13: 0.1 | N13: 0.1
C14: Electricity cost | D14: =elec_cost -> 690 | E14: =+$D$14 -> 690 | F14: =+$D$14 -> 690 | G14: 690 | H14: 690 | I14: 690 | J14: 690 | K14: 690 | L14: =+D14*(1-$D$3) -> 462.3 | M14: 690 | N14: 690
A15: Drying table | C15: interest rate for WCR(*) | D15: =seas_int_rate -> 0.1 | E15: =+$D$15 -> 0.1 | F15: =+$D$15 -> 0.1 | G15: 0.1 | H15: 0.1 | I15: 0.1 | J15: 0.1 | K15: 0.1 | L15: 0.1 | M15: =+D15*(1-$D$3) -> 0.067 | N15: 0.1
C16: cost of storage (cost of m2) | D16: =stor_cost -> 100 | E16: 100 | F16: =+$D$16 -> 100 | G16: 100 | H16: 100 | I16: 100 | J16: 100 | K16: 100 | L16: 100 | M16: 100 | N16: =+E16*(1-$D$3) -> 67
A17: Storage table | C17: (*) Working capital requirement
A19: Summary | C19: Total dry and storage costs per ton in USD | D19: =VLOOKUP($D$2,Tableau1[#All],29,) -> 40.30470609 | E19: 45.25471484 | F19: 47.13848107 | G19: 44.68853812 | H19: 49.60536419 | I19: 50.87971484 | J19: 52.84934427 | K19: 50.76088367 | L19: 52.68889391 | M19: 50.3063926 | N19: 52.19493111
C20: total costs per kilo in riel | D20: =VLOOKUP($D$2,Tableau1[#All],31,) -> 161.2188244 | E20: 181.0188593 | F20: 188.5539243 | G20: 178.7541525 | H20: 198.4214568 | I20: 203.5188593 | J20: 211.3973771 | K20: 203.0435347 | L20: 210.7555756 | M20: 201.2255704 | N20: 208.7797244
A21: Sensitivity analysis | D21: Variation | E21: =+E20/$D$20-1 -> 0.1228146594 | F21: 0.1695527804 | G21: 0.1087672497 | H21: 0.2307586136 | I21: 0.2623765256 | J21: 0.3112449983 | K21: 0.2594282057 | L21: 0.3072640647 | M21: 0.2481518284 | N21: 0.2950083544

Sheet Summary
A1: 2
A2: Back to menu | C2: Recall of parameters used | K2: Costs results
A4: Go to | C4: Capacity by dryer | D4: =+Parameters!E3 -> 30 | E4: Tons | K4: Choose Tons | L4: 3000 | M4: H44
A5: User Guide | C5: Total dryer needed | D5: =VLOOKUP(L4,Tableau1[#All],15) -> 3 | E5: Units
C6: Total dryers costs | D6: =D5*Parameters!$E$5 -> 180000 | E6: USD | K6: Costs | L6: USD per ton | M6: Riel per kilo
A7: Investment | C7: Life-time | D7: =+Parameters!$E$6 -> 8 | E7: years | K7: Cost of drying | L7: =IFERROR(VLOOKUP($L$4,Tableau1[#All],28,FALSE),"")-IFERROR((VLOOKUP($L$4,Tableau1[#All],25,FALSE)/VLOOKUP($L$4,Tableau1[#All],1,FALSE)),"") -> 28.73039096 | M7: =+Tableau3[[#This Row],[USD per ton]]*4 -> 114.9215639
C8: For drying | K8: Cost of storage | L8: =IFERROR(VLOOKUP($L$4,Tableau2[#All],9,FALSE),"") -> 2.483406034 | M8: =+Tableau3[[#This Row],[USD per ton]]*4 -> 9.933624137
A9: Rice information | C9: Loan part | D9: =+Storage!$D$15 -> 0.5 | E9: % | K9: Cost of WCR | L9: =IFERROR((VLOOKUP($L$4,Tableau1[#All],25,FALSE)/VLOOKUP($L$4,Tableau1[#All],1,FALSE)),"") -> 7.5 | M9: =+Tableau3[[#This Row],[USD per ton]]*4 -> 30
C10: interest rate | D10: =+Storage!D16 -> 0.1 | E10: %/year | K10: Total costs | L10: =SUBTOTAL(109,L7:L9) -> 38.713797 | M10: =SUBTOTAL(109,M7:M9) -> 154.855188
A11: Operation parameters | C11: duration of loan | D11: =+Storage!D17 -> 5 | E11: years
C12: For storage
A13: Loan amortization | C13: Loan part | D13: =+loanD_stor -> 0.5 | E13: % | K13: costs | L13: USD per ton | M13: Fixed/variable
C14: interest rate | D14: =+int_rate_stor -> 0.1 | E14: %/year | K14: fixed cost dry | L14: =IFERROR(VLOOKUP($L$4,Tableau1[#All],21,FALSE),"") -> 14.93376623 | M14: =+L15+L14 -> 17.41717227
A15: Drying table | C15: duration of loan | D15: =loan_dur_stor -> 5 | E15: years | K15: fixed cost storage | L15: =IFERROR(VLOOKUP($L$4,Tableau2[#All],9,FALSE),"") -> 2.483406034
C16: For seasonnal loan | K16: variable costs | L16: =IFERROR(VLOOKUP($L$4,Tableau1[#All],27,FALSE),"")-L9 -> 13.79662473 | M16: =+L16+L17 -> 21.29662473
A17: Storage table | C17: interest rate | D17: =+seas_int_rate -> 0.1 | E17: %/year | G17: Time of selling | H17: =IF(Drying!$A$1=1,"after harvesting","after storage") -> after storage | K17: cost of WCR loan | L17: =+$L$9 -> 7.5
G18: If "after storage", how many month? | H18: =IF(Drying!$A$1=1,"not applicable",Drying!$D$9) -> 4 | I18: months | K18: Total costs | L18: =SUM(L14:L17) -> 38.713797 | M18: =SUM(M14:M17) -> 38.713797
A19: Summary
C20: Harvesting duration | D20: =time_harv -> 10 | E20: days
A21: Sensitivity analysis | C21: Moisture rate at harvest | D21: =+Parameters!E26 -> 0.25 | E21: %
C22: Moisture rate after drying | D22: =+Parameters!E27 -> 0.13 | E22: %
C23: Decrease points | D23: =+Parameters!E28 -> 0.12 | E23: %
C24: Drying rate/hour | D24: =+Parameters!E29 -> 0.015 | E24: % | K24: Price sensitivity
L26: H45 | M26: Price dried paddy after storage | N26: Price dried paddy after harvest | O26: Commercial margin (in riel/kg) | P26: Net margin (in Riel/kg) | Q26: Net Margin (in USD/tons)
K27: less | L27: -0.1 | M27: =++INT($N$31*(1+$L$31+L27)) -> 1121 | N27: =IF(Drying!$A$1=1,'Rice production'!$M$13,INT('Rice production'!$K$13)) -> 1040 | O27: =M27-N27 -> 81 | P27: =+O27-$M$10 -> -73.85518799 | Q27: =+P27/4 -> -18.463797
L28: -0.05 | M28: 1173 | N28: =IF(Drying!$A$1=1,'Rice production'!$M$13,INT('Rice production'!$K$13)) -> 1040 | O28: =M28-N28 -> 133 | P28: =+O28-$M$10 -> -21.85518799 | Q28: =+P28/4 -> -5.463796997
L29: -0.02 | M29: 1204 | N29: =IF(Drying!$A$1=1,'Rice production'!$M$13,INT('Rice production'!$K$13)) -> 1040 | O29: 164 | P29: 9.14481201 | Q29: 2.286203003
L30: -0.01 | M30: =++INT($N$31*(1+$L$31+L30)) -> 1214 | N30: =IF(Drying!$A$1=1,'Rice production'!$M$13,INT('Rice production'!$K$13)) -> 1040 | O30: 174 | P30: 19.14481201 | Q30: 4.786203003
K31: Margin | L31: =M31/N31-1 -> 0.1778846154 | M31: =IF(Drying!$A$1=1,'Rice production'!$K$13,INT(res_rice)) -> 1225 | N31: =IF(Drying!$A$1=1,'Rice production'!$M$13,INT('Rice production'!$K$13)) -> 1040 | O31: 185 | P31: 30.14481201 | Q31: 7.536203003
K32: more | L32: 0.01 | M32: =++INT($N$31*(1+$L$31+L32)) -> 1235 | N32: =IF(Drying!$A$1=1,'Rice production'!$M$13,INT('Rice production'!$K$13)) -> 1040 | O32: 195 | P32: 40.14481201 | Q32: 10.036203
L33: 0.02 | M33: 1245 | N33: =IF(Drying!$A$1=1,'Rice production'!$M$13,INT('Rice production'!$K$13)) -> 1040 | O33: 205 | P33: 50.14481201 | Q33: 12.536203
L34: 0.05 | M34: 1277 | N34: =IF(Drying!$A$1=1,'Rice production'!$M$13,INT('Rice production'!$K$13)) -> 1040 | O34: 237 | P34: 82.14481201 | Q34: 20.536203
L35: 0.1 | M35: 1329 | N35: =IF(Drying!$A$1=1,'Rice production'!$M$13,INT('Rice production'!$K$13)) -> 1040 | O35: 289 | P35: 134.144812 | Q35: 33.536203
